{"text_format":"1","workbook":"xlsx","n_sheets":80,"sheets":["Menu","Gruppeoplysninger","0-projektbeskrivelse","Gantt_lang","1-Problemanalyse","SPM1","SPM2","SPM3","SPM4","SPM5","2-Produkt og bruger","2a","2b","3-idegenerering","BS1","OBS1","BS2","OBS2","BS3","OBS3","BS4","OBS4","BS5","OBS5","spg1","spg2","spg3","spg4","spg5","Produktide","Nytteværdi","Købsadfærd","Skydeskivemodel","Swot","Fysisk_produkt","konsekvens","Skitse1","Skitse2","Skitse3","Helhedsvurdering","Konstruktiv","Produktspecifikation","Fysisk_konstruktion","Del1","Del2","Del3","Del4","Del5","Del6","Fremstilling","Aktivitetsplan","Teknologi-analyse","Miljøvurdering","Livscyklus","Produktmodning","Funktionstest_1","Funktionstest_2","Holdbarhedstest_1","Holdbarhedstest_2","Kundeevaluering","House_of_Quality","Eks_House_of_Quality","Endeligt_produkt","Emballage","Produktion","Flow","Produktionslayout","Gantt","Priser","Markedsføring","Grafisk_design","Økonomi","Omsætningsbudget","Etableringsbudget","Faste_udgifter","Virksomhedsetablering","PAEI","Gruppekontrakt","Forretningsmodel","SWOT_analyse"],"not_rendered":{"charts":0,"images":2,"macros":1,"external_links":0,"defined_names":81,"comments":9,"pivot_tables":0},"unopened":[],"bounds":{"document_bytes":16777216,"sheet_cells":100000,"rows_first":2000,"rows_last":500,"rows_between":2000,"halvings":0,"cell_chars":16384,"cell_head_chars":4096},"cells_cut":0,"cells_raw":0,"read":"whole","date_system":"1900"}

{"sheet":"Menu","index":0,"n_rows":26,"n_cols":4,"rows_kept":26,"cut":false,"hidden":false,"merged":[]}
[]
[]
[]
["kapitel","Status","Emne","Vis"]
[null,{"$f":"Gruppeoplysninger!F2","v":0},"Oplysninger om projektet"]
[0,{"$f":"'0-projektbeskrivelse'!E2","v":0},"Projektbeskrivelse"]
[1,{"$f":"'1-Problemanalyse'!D2","v":0},"Problemanalyse"]
[2,{"$f":"'2-Produkt og bruger'!M2","v":0},"Produktet og brugeren"]
[3,{"$f":"'3-idegenerering'!D2","v":0},"Idegenerering"]
[4,{"$f":"Købsadfærd!G2","v":0},"Produktet og kunden"]
[5,{"$f":"Fysisk_produkt!H2","v":0},"Udvikling af fysisk produktløsning"]
[6,{"$f":"Produktspecifikation!G2","v":0},"Produktspecifikation"]
[7,{"$f":"Fysisk_konstruktion!I2","v":0},"Fysisk konstruktion"]
[8,{"$f":"Fremstilling!K2","v":0},"Fremstilling"]
[9,{"$f":"'Teknologi-analyse'!R2","v":0},"Teknologi-analyse"]
[10,{"$f":"Miljøvurdering!F2","v":0},"Miljøvurdering"]
[11,{"$f":"Produktmodning!D2","v":0},"Produktmodning"]
[12,{"$f":"Produktion!G2","v":0},"Produktion"]
[13,{"$f":"Markedsføring!E2","v":0},"Markedsføring"]
[14,{"$f":"Markedsføring!E3","v":0},"Økonomi"]
[15,{"$f":"Virksomhedsetablering!C2","v":0},"Virksomhedens etablering"]
[]
["Status:"]
[0,"Indikerer, at aktiviteten ikke er påbegyndt",null,"Luk alle faner og hop til menuen"]
[1,"Aktiviteten er startet"]
[2,"Aktiviteten er udført"]

{"sheet":"Gruppeoplysninger","index":1,"n_rows":50,"n_cols":12,"rows_kept":50,"cut":false,"hidden":true,"merged":[[7,1,7,3],[2,1,2,3],[3,1,3,3],[4,1,4,3],[5,1,5,3],[6,1,6,3],[8,1,8,3],[9,1,9,3],[10,1,10,5],[12,1,12,5],[13,1,13,5],[14,1,14,5],[15,1,15,5],[16,1,16,5],[17,1,17,5],[18,1,18,5]]}
[]
[null,null,null,null,"Udført: ",{"$f":"IF(L18>0,IF(L18=11,2,1),0)","v":0}]
[null,"Projekt udleveret",null,null,"dato ",null,null,null,null,null,null,{"$f":"ISTEXT(F3)*1","v":0}]
[null,"Projekt afsluttes",null,null,"dato ",null,null,null,null,null,null,{"$f":"ISTEXT(F4)*1","v":0}]
[null,"Projektbeskrivelse afleveres",null,null,"dato ",null,null,null,null,null,null,0]
[null,"Materiale bestilling",null,null,"dato ",null,null,null,null,null,null,0]
[null,"Værksteds start",null,null,"dato ",null,null,null,null,null,null,0]
[null,"Værksteds slut",null,null,"dato ",null,null,null,null,null,null,0]
[null,"Produkt aflevering",null,null,"dato ",null,null,null,null,null,null,0]
[null,"Rapport aflevering",null,null,"dato ",null,null,null,null,null,null,{"$f":"ISTEXT(F10)*1","v":0}]
[null,"Gruppe medlemmer"]
[null,null,null,null,null,null,null,null,null,null,{"$f":"ISTEXT(B12)+ISTEXT(C12)+ISTEXT(D12)+ISTEXT(E12)+ISTEXT(F12)","v":0},{"$f":"IF(K12>2,1,0)","v":0}]
[null,"Projekt Tema"]
[null,null,null,null,null,null,null,null,null,null,null,{"$f":"ISTEXT(F14)*1","v":0}]
[null,"Projekt navn "]
[null,null,null,null,null,null,null,null,null,null,null,0]
[null,"Produktnavn/Produkt"]
[null,{"$f":"'3-idegenerering'!B31","v":" "},null,null,null,null,null,null,null,null,null,{"$f":"SUM(L3:L17)","v":0}]
[]
[]
[]
[]
[]
[]
[]
[]
[]
[]
[]
[]
[]
[]
[]
[]
[]
[]
[]
[]
[]
[]
[]
[]
[]
[]
[]
[]
[]
[]
[]
[null,{"$f":"\"Projekt: \"&B16&\"    Lavet af: \"&B12 &\" \" &C12 & \" \" & D12 & \"\" & E12 & \" \" & F12","v":"Projekt:     Lavet af:    "}]

{"sheet":"0-projektbeskrivelse","index":2,"n_rows":16,"n_cols":15,"rows_kept":16,"cut":false,"hidden":true,"merged":[[7,2,7,4],[2,1,2,4],[3,1,3,4],[4,1,4,4],[5,2,5,4],[6,2,6,4],[14,1,14,4],[15,1,15,4],[8,1,8,2],[9,1,9,4],[10,1,10,4],[11,1,11,4],[12,1,12,4],[13,1,13,4]]}
[]
[null,null,null,"Udført: ",{"$f":"IF(O2>0,IF(O2=8,2,1),0)","v":0},null,null,null,null,null,null,null,null,null,{"$f":"ISTEXT(B4)+ISTEXT(C6)+ISTEXT(C7)+ISTEXT(C8)+ISTEXT(E9)+ISTEXT(B10)+ISTEXT(B12)+ISTEXT(B14)","v":0}]
[null,"Læs projektoplægget grundigt og skriv et resume, der specielt er rettet mod din opfattelse af emnet og de dele af emnet, du synes er interessante.",null,null,null,null,null,null,null,null,null,null,null,null,9]
[]
[null,"Find 3 nøgleproblemer, du kunne tænke dig at beskæftige dig med i dette projekt"]
[null,"Nøgleproblem 1"]
[null,"Nøgleproblem 2"]
[null,"Nøgleproblem 3"]
[null,"Udvælg et af dine nøgleproblemer, og argumenter for dit valg",null,"Jeg har valgt nøgleproblem nr."]
[]
[null,"Beskriv årsagerne til dit nøgleproblem"]
[]
[null,"Beskriv virkningerne af dit nøgleproblem"]
[]
[null,"Opstil en tidsplan for projektet. Du kan benytte: \n\nGantt-kortet på fanebladet herunder"]
[null,"Generer Projektbeskrivelse.  Udskriv denne projektbeskrivelse sammen med dit ganttkort og eventuelt andet, din lærer ønsker indgår i projektbeskrivelsen"]

{"sheet":"Gantt_lang","index":3,"n_rows":49,"n_cols":44,"rows_kept":49,"cut":false,"hidden":true,"merged":[[3,41,3,42],[3,43,3,44],[3,29,3,30],[3,31,3,32],[3,33,3,34],[3,35,3,36],[3,37,3,38],[3,39,3,40],[3,27,3,28],[3,5,3,6],[3,7,3,8],[3,9,3,10],[3,11,3,12],[3,13,3,14],[3,15,3,16],[3,17,3,18],[3,19,3,20],[3,21,3,22],[3,23,3,24],[3,25,3,26]]}
[]
[]
[]
["Tema ",null,null,null,null,"Uge 1",null,"Uge 2",null,"Uge 3",null,"Uge 4",null,"Uge 5",null,"Uge 6",null,"Uge 7",null,"Uge 8",null,"Uge 9",null,"Uge 10",null,"Uge 11",null,"Uge 12",null,"Uge 13",null,"Uge 14",null,"Uge 15",null,"Uge 16",null,"Uge 17",null,"Uge 18",null,"Uge 19",null,"Uge 20"]
["Produktet"]
["0   - Projektbeskrivelse","FM, STJ",null,447]
["             Gennemlæsning af oplæg"]
["             Identifikation af nøgleproblemer"]
["             Opstilling af problemtræer"]
["             Beskrivelse af projekt"]
["             Udarbejdelse af tidsplan"]
["             Aflevering af projektbeskrivelse"]
["1   - Problemanalyse","FM, STJ",null,447]
["             Informationssøgning   "]
["             Kildekritik"]
["2   - Produktet og brugeren","FM, STJ",null,447]
["              Udarbejdelse af spørgeskema","FM",null,447]
["              Udførsel af spørgeskema"]
["              Opfølgelse på spørgeskema undersøgelse","STJ",null,447]
["3   - Idearbejde"]
["             Idegenerering","FM",null,447]
["             ideudvælgelse ","STJ","STH",447]
["             ideudbyggelse"]
["             nytteværdianalyse"]
["4   - Produktet og kunden (A)","FM","STH",447,"Forgik også på Jem & Fix (Fawad)"]
["             identificer brugere, kunder og beslutningstager"]
["             "]
["5   - Udvikling af fysisk produktløsning","FM",null,447]
["             Tre forskellige tekniske løsningsforslag"]
["             Udvælgelse med scorecard"]
["             Teknologivurdering"]
["6   - Produktspecifikation","STJ",null,447]
["             Benchmarking"]
["7   - konstruktion fysisk","FM","STH",447]
["             Tegninger og beskrivelser"]
["             Materialer"]
["             Processbeskrivelser"]
["8 - Værksted","STJ",null,447]
["             Værktøj"]
["             Tidstagning og procesbeskrivelser"]
["9   - Teknologi-analyse","STJ",null,470]
["10 - Miljøvurdering","STJ, FM","STH","470-447","Hjælp fra Peter Mortensen "]
["11 - Produkt modning","STJ",null,447]
["Teknologirapporten"]
[]
["Finn Madsen","FM",null,null,null,null,null,"håndværkeren"]
["Søren Thor Jensen","STJ",null,null,null,null,null,"Idemand /Entreprenør"]
["Stefan Hedegaard","STH",null,null,null,null,null,"Administrator"]
["Alle"]

{"sheet":"1-Problemanalyse","index":4,"n_rows":18,"n_cols":14,"rows_kept":18,"cut":false,"hidden":true,"merged":[[5,2,5,3],[2,1,2,3],[3,1,3,3],[4,1,4,3],[6,1,6,3],[9,1,9,3],[16,1,16,3],[17,1,17,3],[7,1,7,3],[8,1,8,3],[10,1,10,3],[23,1,23,3],[24,1,24,3],[18,1,18,3],[19,1,19,3],[20,1,20,3],[21,1,21,3],[22,1,22,3]]}
[]
[null,null,"Udført:",{"$f":"IF(N2>0,IF(N2=19,2,1),0)","v":0},null,null,null,null,null,null,null,null,null,{"$f":"ISTEXT(C6)+ISTEXT(B8)+ISTEXT(B10)+ISTEXT(C12)+ISTEXT(C13)+ISTEXT(C14)+ISTEXT(C15)+ISTEXT(C16)+ISTEXT(B19) + SUM(E12:E16)","v":0}]
[null,"Problemtræ",null,null,null,null,null,null,null,null,null,null,null,19]
[null,"Opstil et problemtræ over årsager og virkninger  - benyt fx  https://www.lucidchart.com  "]
[null,"Udvælg i dit problemtræ, med grøn farve, de punkter, du mener, bør indgå i dit projekt. Indsæt linket til det færdige resultat herunder."]
[null,"Link til problemtræ:"]
[null,"Beskriv problemstillingen"]
[]
[null,"Opstil en problemformulering"]
[]
[null,"Stil 5 spørgsmål med HV-ord til, hvad du vil undersøge i rapporten. Analyser og dokumenter ud fra dine 5 spørgsmål. Skriv spørgsmålet, og klik så på linket til højre for at uddybe."]
[null,"Spørgsmål 1",null,null,{"$f":"'SPM1'!G2","v":0}]
[null,"Spørgsmål 2",null,null,{"$f":"'SPM2'!G2","v":0}]
[null,"Spørgsmål 3",null,null,{"$f":"'SPM3'!G2","v":0}]
[null,"Spørgsmål 4",null,null,{"$f":"'SPM4'!G2","v":0}]
[null,"Spørgsmål 5",null,null,{"$f":"'SPM5'!G2","v":0}]
[null,"Links til din Analyse og Dokumentation af problemstillingen \n(indsæt dine links herunder). \nDu kan benytte nedenstående link til at hjælpe med at skrive referencerne korrekt"]
[null,"http://www.americanessays.com/tool-box/apa-format-citation-generator/"]

{"sheet":"SPM1","index":5,"n_rows":20,"n_cols":17,"rows_kept":20,"cut":false,"hidden":true,"merged":[[2,1,2,6],[12,1,12,6],[8,1,9,1],[8,3,8,6],[9,3,9,6],[10,1,11,1],[10,3,10,6],[11,3,11,6],[3,1,3,6],[4,1,4,6],[5,1,5,6],[6,1,7,1],[6,3,6,6],[7,3,7,6],[13,1,16,6],[17,1,17,6],[18,1,18,6]]}
[]
[null,null,null,null,null,"Udført:",{"$f":"IF(Q20>0,IF(Q20>6,2,1),0)","v":0}]
[null,{"$f":"IF(LEN('1-Problemanalyse'!C12)=0,\"Spørgsmålet hentes automatisk\",'1-Problemanalyse'!C12)","v":"Spørgsmålet hentes automatisk"}]
[null,"Formålet med spørgsmålet"]
[null,null,null,null,null,null,null,null,null,null,null,null,null,null,null,null,{"$f":"ISTEXT(B5)*1","v":0}]
[null,"Kildernes hovedsynspunkter"]
[null,1,"Kilde-henvisning",null,null,null,null,null,null,null,null,null,null,null,null,null,{"$f":"ISTEXT(D7)*1","v":0}]
[null,null,"Hoved- synspunkter i teksten",null,null,null,null,null,null,null,null,null,null,null,null,null,{"$f":"ISTEXT(D8)*1","v":0}]
[null,2,"Kilde-henvisning",null,null,null,null,null,null,null,null,null,null,null,null,null,0]
[null,null,"Hoved- synspunkter i teksten",null,null,null,null,null,null,null,null,null,null,null,null,null,0]
[null,3,"Kilde-henvisning",null,null,null,null,null,null,null,null,null,null,null,null,null,0]
[null,null,"Hoved- synspunkter i teksten",null,null,null,null,null,null,null,null,null,null,null,null,null,{"$f":"ISTEXT(D12)*1","v":0}]
[null,"Find kildernes holdning til spørgsmålet"]
[null,null,null,null,null,null,null,null,null,null,null,null,null,null,null,null,{"$f":"ISTEXT(B14)*1","v":0}]
[]
[]
[]
[null,"Konkluder med udgangspunkt i dine kilder"]
[null,null,null,null,null,null,null,null,null,null,null,null,null,null,null,null,{"$f":"ISTEXT(B19)*1","v":0}]
[null,null,null,null,null,null,null,null,null,null,null,null,null,null,null,null,{"$f":"SUM(Q5:Q19)","v":0}]

{"sheet":"SPM2","index":6,"n_rows":20,"n_cols":17,"rows_kept":20,"cut":false,"hidden":true,"merged":[[2,1,2,6],[3,1,3,6],[4,1,4,6],[5,1,5,6],[6,1,7,1],[6,3,6,6],[7,3,7,6],[18,1,18,6],[12,1,12,6],[13,1,16,6],[17,1,17,6],[8,1,9,1],[8,3,8,6],[9,3,9,6],[10,1,11,1],[10,3,10,6],[11,3,11,6]]}
[]
[null,null,null,null,null,"Udført:",{"$f":"IF(Q20>0,IF(Q20>6,2,1),0)","v":0}]
[null,{"$f":"IF(LEN('1-Problemanalyse'!C13)=0,\"Spørgsmålet hentes automatisk\",'1-Problemanalyse'!C13)","v":"Spørgsmålet hentes automatisk"}]
[null,"Formålet med spørgsmålet"]
[null,null,null,null,null,null,null,null,null,null,null,null,null,null,null,null,{"$f":"ISTEXT(B5)*1","v":0}]
[null,"Kildernes hovedsynspunkter"]
[null,1,"Kilde-henvisning",null,null,null,null,null,null,null,null,null,null,null,null,null,{"$f":"ISTEXT(D7)*1","v":0}]
[null,null,"Hoved- synspunkter i teksten",null,null,null,null,null,null,null,null,null,null,null,null,null,{"$f":"ISTEXT(D8)*1","v":0}]
[null,2,"Kilde-henvisning",null,null,null,null,null,null,null,null,null,null,null,null,null,0]
[null,null,"Hoved- synspunkter i teksten",null,null,null,null,null,null,null,null,null,null,null,null,null,0]
[null,3,"Kilde-henvisning",null,null,null,null,null,null,null,null,null,null,null,null,null,0]
[null,null,"Hoved- synspunkter i teksten",null,null,null,null,null,null,null,null,null,null,null,null,null,{"$f":"ISTEXT(D12)*1","v":0}]
[null,"Find kildernes holdning til spørgsmålet"]
[null,null,null,null,null,null,null,null,null,null,null,null,null,null,null,null,{"$f":"ISTEXT(B14)*1","v":0}]
[]
[]
[]
[null,"Konkluder med udgangspunkt i dine kilder"]
[null,null,null,null,null,null,null,null,null,null,null,null,null,null,null,null,{"$f":"ISTEXT(B19)*1","v":0}]
[null,null,null,null,null,null,null,null,null,null,null,null,null,null,null,null,{"$f":"SUM(Q5:Q19)","v":0}]

{"sheet":"SPM3","index":7,"n_rows":20,"n_cols":17,"rows_kept":20,"cut":false,"hidden":true,"merged":[[2,1,2,6],[3,1,3,6],[4,1,4,6],[5,1,5,6],[6,1,7,1],[6,3,6,6],[7,3,7,6],[18,1,18,6],[12,1,12,6],[13,1,16,6],[17,1,17,6],[8,1,9,1],[8,3,8,6],[9,3,9,6],[10,1,11,1],[10,3,10,6],[11,3,11,6]]}
[]
[null,null,null,null,null,"Udført:",{"$f":"IF(Q20>0,IF(Q20>6,2,1),0)","v":0}]
[null,{"$f":"IF(LEN('1-Problemanalyse'!C14)=0,\"Spørgsmålet hentes automatisk\",'1-Problemanalyse'!C14)","v":"Spørgsmålet hentes automatisk"}]
[null,"Formålet med spørgsmålet"]
[null,null,null,null,null,null,null,null,null,null,null,null,null,null,null,null,{"$f":"ISTEXT(B5)*1","v":0}]
[null,"Kildernes hovedsynspunkter"]
[null,1,"Kilde-henvisning",null,null,null,null,null,null,null,null,null,null,null,null,null,{"$f":"ISTEXT(D7)*1","v":0}]
[null,null,"Hoved- synspunkter i teksten",null,null,null,null,null,null,null,null,null,null,null,null,null,{"$f":"ISTEXT(D8)*1","v":0}]
[null,2,"Kilde-henvisning",null,null,null,null,null,null,null,null,null,null,null,null,null,0]
[null,null,"Hoved- synspunkter i teksten",null,null,null,null,null,null,null,null,null,null,null,null,null,0]
[null,3,"Kilde-henvisning",null,null,null,null,null,null,null,null,null,null,null,null,null,0]
[null,null,"Hoved- synspunkter i teksten",null,null,null,null,null,null,null,null,null,null,null,null,null,{"$f":"ISTEXT(D12)*1","v":0}]
[null,"Find kildernes holdning til spørgsmålet"]
[null,null,null,null,null,null,null,null,null,null,null,null,null,null,null,null,{"$f":"ISTEXT(B14)*1","v":0}]
[]
[]
[]
[null,"Konkluder med udgangspunkt i dine kilder"]
[null,null,null,null,null,null,null,null,null,null,null,null,null,null,null,null,{"$f":"ISTEXT(B19)*1","v":0}]
[null,null,null,null,null,null,null,null,null,null,null,null,null,null,null,null,{"$f":"SUM(Q5:Q19)","v":0}]

{"sheet":"SPM4","index":8,"n_rows":20,"n_cols":17,"rows_kept":20,"cut":false,"hidden":true,"merged":[[2,1,2,6],[3,1,3,6],[4,1,4,6],[5,1,5,6],[6,1,7,1],[6,3,6,6],[7,3,7,6],[18,1,18,6],[12,1,12,6],[13,1,16,6],[17,1,17,6],[8,1,9,1],[8,3,8,6],[9,3,9,6],[10,1,11,1],[10,3,10,6],[11,3,11,6]]}
[]
[null,null,null,null,null,"Udført:",{"$f":"IF(Q20>0,IF(Q20>6,2,1),0)","v":0}]
[null,{"$f":"IF(LEN('1-Problemanalyse'!C15)=0,\"Spørgsmålet hentes automatisk\",'1-Problemanalyse'!C15)","v":"Spørgsmålet hentes automatisk"}]
[null,"Formålet med spørgsmålet"]
[null,null,null,null,null,null,null,null,null,null,null,null,null,null,null,null,{"$f":"ISTEXT(B5)*1","v":0}]
[null,"Kildernes hovedsynspunkter"]
[null,1,"Kilde-henvisning",null,null,null,null,null,null,null,null,null,null,null,null,null,{"$f":"ISTEXT(D7)*1","v":0}]
[null,null,"Hoved- synspunkter i teksten",null,null,null,null,null,null,null,null,null,null,null,null,null,{"$f":"ISTEXT(D8)*1","v":0}]
[null,2,"Kilde-henvisning",null,null,null,null,null,null,null,null,null,null,null,null,null,0]
[null,null,"Hoved- synspunkter i teksten",null,null,null,null,null,null,null,null,null,null,null,null,null,0]
[null,3,"Kilde-henvisning",null,null,null,null,null,null,null,null,null,null,null,null,null,0]
[null,null,"Hoved- synspunkter i teksten",null,null,null,null,null,null,null,null,null,null,null,null,null,{"$f":"ISTEXT(D12)*1","v":0}]
[null,"Find kildernes holdning til spørgsmålet"]
[null,null,null,null,null,null,null,null,null,null,null,null,null,null,null,null,{"$f":"ISTEXT(B14)*1","v":0}]
[]
[]
[]
[null,"Konkluder med udgangspunkt i dine kilder"]
[null,null,null,null,null,null,null,null,null,null,null,null,null,null,null,null,{"$f":"ISTEXT(B19)*1","v":0}]
[null,null,null,null,null,null,null,null,null,null,null,null,null,null,null,null,{"$f":"SUM(Q5:Q19)","v":0}]

{"sheet":"SPM5","index":9,"n_rows":20,"n_cols":17,"rows_kept":20,"cut":false,"hidden":true,"merged":[[2,1,2,6],[3,1,3,6],[4,1,4,6],[5,1,5,6],[6,1,7,1],[6,3,6,6],[7,3,7,6],[18,1,18,6],[12,1,12,6],[13,1,16,6],[17,1,17,6],[8,1,9,1],[8,3,8,6],[9,3,9,6],[10,1,11,1],[10,3,10,6],[11,3,11,6]]}
[]
[null,null,null,null,null,"Udført:",{"$f":"IF(Q20>0,IF(Q20>6,2,1),0)","v":0}]
[null,{"$f":"IF(LEN('1-Problemanalyse'!C16)=0,\"Spørgsmålet hentes automatisk\",'1-Problemanalyse'!C16)","v":"Spørgsmålet hentes automatisk"}]
[null,"Formålet med spørgsmålet"]
[null,null,null,null,null,null,null,null,null,null,null,null,null,null,null,null,{"$f":"ISTEXT(B5)*1","v":0}]
[null,"Kildernes hovedsynspunkter"]
[null,1,"Kilde-henvisning",null,null,null,null,null,null,null,null,null,null,null,null,null,{"$f":"ISTEXT(D7)*1","v":0}]
[null,null,"Hoved- synspunkter i teksten",null,null,null,null,null,null,null,null,null,null,null,null,null,{"$f":"ISTEXT(D8)*1","v":0}]
[null,2,"Kilde-henvisning",null,null,null,null,null,null,null,null,null,null,null,null,null,0]
[null,null,"Hoved- synspunkter i teksten",null,null,null,null,null,null,null,null,null,null,null,null,null,0]
[null,3,"Kilde-henvisning",null,null,null,null,null,null,null,null,null,null,null,null,null,0]
[null,null,"Hoved- synspunkter i teksten",null,null,null,null,null,null,null,null,null,null,null,null,null,{"$f":"ISTEXT(D12)*1","v":0}]
[null,"Find kildernes holdning til spørgsmålet"]
[null,null,null,null,null,null,null,null,null,null,null,null,null,null,null,null,{"$f":"ISTEXT(B14)*1","v":0}]
[]
[]
[]
[null,"Konkluder med udgangspunkt i dine kilder"]
[null,null,null,null,null,null,null,null,null,null,null,null,null,null,null,null,{"$f":"ISTEXT(B19)*1","v":0}]
[null,null,null,null,null,null,null,null,null,null,null,null,null,null,null,null,{"$f":"SUM(Q5:Q19)","v":0}]

{"sheet":"2-Produkt og bruger","index":10,"n_rows":28,"n_cols":16,"rows_kept":28,"cut":false,"hidden":true,"merged":[[6,1,6,3],[6,4,6,12],[2,1,2,12],[3,1,3,12],[4,1,4,12],[5,1,5,3],[5,4,5,12],[7,1,7,3],[8,1,8,3],[7,4,8,12],[9,1,9,3],[10,1,10,3],[9,4,10,12],[19,1,19,2],[19,3,19,7],[19,8,19,9],[19,10,19,12],[11,1,11,3],[11,4,11,12],[12,1,12,12],[13,1,13,12],[14,1,14,12],[15,1,15,12],[16,1,16,12],[17,2,17,4],[17,5,17,6],[17,9,17,10],[18,1,18,12],[24,1,24,5],[24,6,24,12],[25,1,25,12],[26,1,26,12],[20,1,20,12],[21,1,21,5],[21,6,21,12],[22,1,22,5],[22,6,22,12],[23,1,23,5],[23,6,23,12]]}
[]
[null,null,null,null,null,null,null,null,null,null,null,"Udført:",{"$f":"IF(O28>0,IF((O28=14)*(P18=4),2,1),0)","v":0}]
[null,"Beskriv brugeren"]
[null,null,null,null,null,null,null,null,null,null,null,null,null,null,{"$f":"ISTEXT(B4)*1","v":0}]
[null,"Brugerens data"]
[null,"Alder, uddannelse og familiær status",null,null,null,null,null,null,null,null,null,null,null,null,{"$f":"ISTEXT(E6)*1","v":0}]
[null,"Indkomst, personligt og i husstanden",null,null,null,null,null,null,null,null,null,null,null,null,{"$f":"ISTEXT(E7)*1","v":0}]
[null,"Holdningsprofil",null,null,null,null,null,null,null,null,null,null,null,null,0]
[null,"Politik, kultur m.m."]
[null,"Status profil "]
[null,"Hvad giver status",null,null,null,null,null,null,null,null,null,null,null,null,{"$f":"ISTEXT(E10)*1","v":0}]
[null,"Hvem køber, ejer, anvender produktet",null,null,null,null,null,null,null,null,null,null,null,null,0]
[null,"Beskriv brugerens behov i forhold til problemstillingen"]
[null,null,null,null,null,null,null,null,null,null,null,null,null,null,{"$f":"ISTEXT(B14)*1","v":0}]
[null,"Beskriv, hvad formålet med en brugerundersøgelse skal være"]
[null,null,null,null,null,null,null,null,null,null,null,null,null,null,0]
[null,"Arten af brugerundersøgelsen"]
[null,"Kvalitativ",null,null,null,"Kvantitativ",null,{"$f":"'2b'!F2","v":0},"Anonym",null,null,"Personlig",null,null,null,{"$f":"C18+H18","v":0}]
[null,"Antal adspurgte og medie (internet, telefon, personligt, udsendt eller ….)"]
[null,"Antal",null,null,null,null,null,null,"Medie",null,null,null,null,null,{"$f":"ISTEXT(K20)*ISNUMBER(D20)","v":0}]
[null,"Emner, der skal besvares i undersøgelsen"]
[null,"Indledende ",null,null,null,null,null,null,null,null,null,null,null,null,{"$f":"ISTEXT(G22)*1","v":0}]
[null,"Undersøgelse del1",null,null,null,null,null,null,null,null,null,null,null,null,{"$f":"ISTEXT(G23)*1","v":0}]
[null,"Undersøgelse del2",null,null,null,null,null,null,null,null,null,null,null,null,0]
[null,"Afsluttende",null,null,null,null,null,null,null,null,null,null,null,null,0]
[null,"4-6 linjer, der indfører de adspurgte i problemstillingen"]
[null,null,null,null,null,null,null,null,null,null,null,null,null,null,0]
[null,null,null,null,null,null,null,null,null,null,null,null,null,null,{"$f":"SUM(O4:O27)","v":0}]

{"sheet":"2a","index":11,"n_rows":24,"n_cols":5,"rows_kept":24,"cut":false,"hidden":true,"merged":[]}
[]
[null,"Udført:",{"$f":"IF(E24>0,IF((E24>7),2,1),0)","v":0}]
[null,"Denne undersøgelse"]
[null,"Skriv din indledning her\nAnvend dette skema som inspiration, idet du skal udskifte ALT, hvad der er skrevet, med din egen tekst.\nDenne boks skal du også slette, når du har læst den.\n"]
[null,"Evt. demografiske spørgsmål"]
[null,null,null,null,{"$f":"ISTEXT(B6)*1","v":0}]
[null,"Spørg med Hv-ord (Husk, de første spørgsmål skal være lette og føre den adspurgte ind i problemstillingen)"]
[null,null,null,null,{"$f":"ISTEXT(B8)*1","v":0}]
[null,"Spørg med Hv-ord "]
[null,null,null,null,0]
[null,"Spørg med Hv-ord "]
[null,null,null,null,0]
[null,"Spørg med Hv-ord "]
[null,null,null,null,0]
[null,"Spørg med Hv-ord "]
[null,null,null,null,0]
[null,"Spørg med Hv-ord "]
[null,null,null,null,0]
[null,"Spørg med Hv-ord  "]
[null,null,null,null,0]
[null,"Spørg med Hv-ord  "]
[null,null,null,null,0]
[]
[null,null,null,null,{"$f":"SUM(E4:E22)","v":0}]

{"sheet":"2b","index":12,"n_rows":13,"n_cols":11,"rows_kept":13,"cut":false,"hidden":true,"merged":[[10,1,10,4],[11,1,11,4],[12,1,12,5],[2,1,2,5],[3,1,3,5],[6,1,6,5],[7,1,7,5],[8,1,8,4],[9,1,9,4]]}
[]
[null,null,null,null,"Udført:",{"$f":"IF(K4>0,IF((K4=1),2,1),0)","v":0}]
[null,"Denne undersøgelse"]
[null,"Skriv din indledning her\nAnvend dette skema som inspiration, idet du skal udskifte ALT, hvad der er skrevet med din egen tekst.\nDenne boks skal du også slette, når du har læst den.\n",null,null,null,null,null,null,null,null,{"$f":"IF(LEN(B4)<>181,1,0)","v":0}]
[null,"Sæt kryds efter, hvor enig du er i udsagnet . 4 er helt enig",4,3,2,1]
[null,"Spørg med Hv-ord "]
[]
[null,"Sæt kryds i det udsagn, du er mest enig i "]
[null,"Udsagn 1"]
[null,"Udsagn 2"]
[null,"Udsagn 3"]
[null,"Udsagn 4"]
[null,"Kopier og skab dit eget skema med de spørgsmål, du har behov for"]

{"sheet":"3-idegenerering","index":13,"n_rows":34,"n_cols":14,"rows_kept":34,"cut":false,"hidden":true,"merged":[[14,1,16,1],[14,3,16,3],[2,1,2,2],[3,1,4,1],[3,2,4,2],[5,1,6,1],[5,2,6,2],[7,1,8,1],[7,2,8,2],[9,1,10,1],[9,2,10,2],[11,1,12,1],[11,2,12,2],[13,1,13,3],[32,1,32,2],[17,1,19,1],[17,3,19,3],[20,1,22,1],[20,3,22,3],[23,1,25,1],[23,3,25,3],[31,1,31,2],[26,1,28,1],[26,3,28,3],[29,1,29,3],[30,1,30,3]]}
[]
[null,null,"Udført:",{"$f":"IF(N34>0,IF((N33=6)*(N29>=6)*(N33>=6),2,1),0)","v":0}]
[null,"Fokusspørgsmål (der skal idegenereres over)",null,"Brainstorm"]
[null,"Spørgsmål 1",null,"Almindelig",{"$f":"IF((N4=2)+(N5=2),2,IF((N4=1)+(N5=1),1,0))","v":0},null,null,null,null,null,null,null,null,{"$f":"'BS1'!D2","v":0}]
[null,null,null,"Omvendt",null,null,null,null,null,null,null,null,null,{"$f":"'OBS1'!D2","v":0}]
[null,"Spørgsmål 2",null,"Almindelig",{"$f":"IF((N6=2)+(N7=2),2,IF((N6=1)+(N7=1),1,0))","v":0},null,null,null,null,null,null,null,null,{"$f":"'BS2'!D4","v":0}]
[null,null,null,"Omvendt",null,null,null,null,null,null,null,null,null,{"$f":"'OBS2'!D4","v":0}]
[null,"Spørgsmål 3",null,"Almindelig",{"$f":"IF((N8=2)+(N9=2),2,IF((N8=1)+(N9=1),1,0))","v":0},null,null,null,null,null,null,null,null,{"$f":"'BS3'!D6","v":0}]
[null,null,null,"Omvendt",null,null,null,null,null,null,null,null,null,{"$f":"'OBS3'!D6","v":0}]
[null,"Spørgsmål 4",null,"Almindeligt",{"$f":"IF((N10=2)+(N11=2),2,IF((N10=1)+(N11=1),1,0))","v":0},null,null,null,null,null,null,null,null,{"$f":"'BS4'!D8","v":0}]
[null,null,null,"Omvendt",null,null,null,null,null,null,null,null,null,{"$f":"'OBS4'!D8","v":0}]
[null,"Spørgsmål 5",null,"Almindelig",{"$f":"IF((N12=2)+(N13=2),2,IF((N12=1)+(N13=1),1,0))","v":0},null,null,null,null,null,null,null,null,{"$f":"'BS5'!D10","v":0}]
[null,null,null,"Omvendt",null,null,null,null,null,null,null,null,null,{"$f":"'OBS5'!D10","v":0}]
[null,"Udvælg og beskriv ud fra ovenstående brainstorming - 3 vilde ideer, der kan udbygges. Skriv først ideerne, og udbyg og kombiner dem derefter i linket til højre",null,null,null,null,null,null,null,null,null,null,null,{"$f":"SUM(E4:E13)","v":0}]
[null,{"$f":"IF(ISTEXT(C4),C4,\"Spørgsmål 1\")","v":"Spørgsmål 1"}]
[null,null,null,null,{"$f":"'spg1'!C2","v":0}]
[]
[null,{"$f":"IF(ISTEXT(C4),C4,\"Spørgsmål 2\")","v":"Spørgsmål 2"}]
[null,null,null,null,{"$f":"'spg2'!C2","v":0}]
[]
[null,{"$f":"IF(ISTEXT(C5),C5,\"Spørgsmål 3\")","v":"Spørgsmål 3"}]
[null,null,null,null,{"$f":"'spg3'!C2","v":0}]
[]
[null,{"$f":"IF(ISTEXT(C6),C6,\"Spørgsmål4\")","v":"Spørgsmål4"}]
[null,null,null,null,{"$f":"'spg4'!C2","v":0}]
[]
[null,{"$f":"IF(ISTEXT(C7),C7,\"Spørgsmål5\")","v":"Spørgsmål5"}]
[null,null,null,null,{"$f":"'spg5'!C2","v":0}]
[null,null,null,null,null,null,null,null,null,null,null,null,null,{"$f":"SUM(E16:E28)","v":0}]
[null,"Beskriv den udvalgte ide og det produkt, den kan føre til "]
[null," ",null,null,null,null,null,null,null,null,null,null,null,{"$f":"IF(LEN(C31)>0,2,0)","v":0}]
[null,"Tegn og beskriv forslag til, hvordan produktet kan se ud",null,null,{"$f":"Produktide!C2","v":0}]
[null,"Udfør en nytteværdianalyse på produktideen",null,null,{"$f":"Nytteværdi!C2","v":0},null,null,null,null,null,null,null,null,{"$f":"SUM(E31:E33)","v":0}]
[null,null,null,null,null,null,null,null,null,null,null,null,null,{"$f":"N33+N29+N14","v":0}]

{"sheet":"BS1","index":14,"n_rows":28,"n_cols":14,"rows_kept":28,"cut":false,"hidden":true,"merged":[[7,2,7,3],[2,1,2,2],[3,1,3,3],[4,2,4,3],[5,2,5,3],[6,2,6,3],[19,2,19,3],[8,2,8,3],[9,2,9,3],[10,2,10,3],[11,2,11,3],[12,2,12,3],[13,2,13,3],[14,2,14,3],[15,2,15,3],[16,2,16,3],[17,2,17,3],[18,2,18,3],[26,2,26,3],[20,2,20,3],[21,2,21,3],[22,2,22,3],[23,2,23,3],[24,2,24,3],[25,2,25,3]]}
[]
[null,null,"Udført:",{"$f":"IF(N28>0,IF(N28>6,2,1),0)","v":0}]
[null,"Fokusspørgsmål (der skal idegenereres over)",null,"Brainstorm"]
[null,{"$f":"IF(LEN('3-idegenerering'!C4)=0,\"Spørgsmålet hentes automatisk\",'3-idegenerering'!C4)","v":"Spørgsmålet hentes automatisk"}]
[null,"Ide 1",null,null,null,null,null,null,null,null,null,null,null,{"$f":"IF(LEN(C5)>0,1,\"\")","v":""}]
[null,"Ide 2",null,null,null,null,null,null,null,null,null,null,null,{"$f":"IF(LEN(C6)>0,1,\"\")","v":""}]
[null,"Ide 3",null,null,null,null,null,null,null,null,null,null,null,""]
[null,"Ide 4",null,null,null,null,null,null,null,null,null,null,null,""]
[null,"Ide 5",null,null,null,null,null,null,null,null,null,null,null,""]
[null,"Ide 6",null,null,null,null,null,null,null,null,null,null,null,""]
[null,"Ide 7",null,null,null,null,null,null,null,null,null,null,null,""]
[null,"Ide 8",null,null,null,null,null,null,null,null,null,null,null,""]
[null,"Ide 9",null,null,null,null,null,null,null,null,null,null,null,""]
[null,"Ide 10",null,null,null,null,null,null,null,null,null,null,null,""]
[null,"Ide 11",null,null,null,null,null,null,null,null,null,null,null,""]
[null,"Ide 12",null,null,null,null,null,null,null,null,null,null,null,""]
[null,"Ide 13",null,null,null,null,null,null,null,null,null,null,null,""]
[null,"Ide 14",null,null,null,null,null,null,null,null,null,null,null,""]
[null,"Ide 15",null,null,null,null,null,null,null,null,null,null,null,""]
[null,"Ide 16",null,null,null,null,null,null,null,null,null,null,null,""]
[null,"Ide 17",null,null,null,null,null,null,null,null,null,null,null,""]
[null,"Ide 18",null,null,null,null,null,null,null,null,null,null,null,""]
[null,"Ide 19",null,null,null,null,null,null,null,null,null,null,null,""]
[null,"Ide 20",null,null,null,null,null,null,null,null,null,null,null,""]
[null,"Ide 21",null,null,null,null,null,null,null,null,null,null,null,""]
[null,"Ide 22",null,null,null,null,null,null,null,null,null,null,null,""]
[null,"Ide 23",null,null,null,null,null,null,null,null,null,null,null,""]
[null,null,null,null,null,null,null,null,null,null,null,null,null,{"$f":"SUM(N5:N27)","v":0}]

{"sheet":"OBS1","index":15,"n_rows":28,"n_cols":14,"rows_kept":28,"cut":false,"hidden":true,"merged":[[2,1,2,3],[3,1,3,3],[4,1,4,3],[5,1,5,3]]}
[]
[null,null,"Udført:",{"$f":"IF(N28+N6>0,IF((N28>5)*(N6=1),2,1),0)","v":0}]
[null,"Fokusspørgsmål (der skal idegenereres over)"]
[null,{"$f":"IF(LEN('3-idegenerering'!C4)=0,\"Spørgsmålet hentes automatisk\",'3-idegenerering'!C4)","v":"Spørgsmålet hentes automatisk"}]
[null,"Fokusspørgsmål negativt formuleret"]
[null,null,null,null,null,null,null,null,null,null,null,null,null,{"$f":"IF(LEN(B6)>0,1,0)","v":0}]
[null,"Ide nr.","Den negative ide ","Vendt til brugbar ide"]
[null,"Ide 1",null,null,null,null,null,null,null,null,null,null,null,{"$f":"IF(ISTEXT(C8)+ISTEXT(D8)=2,1,0)","v":0}]
[null,"Ide 2",null,null,null,null,null,null,null,null,null,null,null,{"$f":"IF(ISTEXT(C9)+ISTEXT(D9)=2,1,0)","v":0}]
[null,"Ide 3",null,null,null,null,null,null,null,null,null,null,null,0]
[null,"Ide 4",null,null,null,null,null,null,null,null,null,null,null,0]
[null,"Ide 5",null,null,null,null,null,null,null,null,null,null,null,0]
[null,"Ide 6",null,null,null,null,null,null,null,null,null,null,null,0]
[null,"Ide 7",null,null,null,null,null,null,null,null,null,null,null,0]
[null,"Ide 8",null,null,null,null,null,null,null,null,null,null,null,0]
[null,"Ide 9",null,null,null,null,null,null,null,null,null,null,null,0]
[null,"Ide 10",null,null,null,null,null,null,null,null,null,null,null,0]
[null,"Ide 11",null,null,null,null,null,null,null,null,null,null,null,0]
[null,"Ide 12",null,null,null,null,null,null,null,null,null,null,null,0]
[null,"Ide 13",null,null,null,null,null,null,null,null,null,null,null,0]
[null,"Ide 14",null,null,null,null,null,null,null,null,null,null,null,0]
[null,"Ide 15",null,null,null,null,null,null,null,null,null,null,null,0]
[null,"Ide 16",null,null,null,null,null,null,null,null,null,null,null,0]
[null,"Ide 17",null,null,null,null,null,null,null,null,null,null,null,0]
[null,"Ide 18",null,null,null,null,null,null,null,null,null,null,null,0]
[null,"Ide 19",null,null,null,null,null,null,null,null,null,null,null,0]
[null,"Ide 20",null,null,null,null,null,null,null,null,null,null,null,0]
[null,null,null,null,null,null,null,null,null,null,null,null,null,{"$f":"SUM(N8:N27)","v":0}]

{"sheet":"BS2","index":16,"n_rows":28,"n_cols":14,"rows_kept":28,"cut":false,"hidden":true,"merged":[[7,2,7,3],[2,1,2,2],[3,1,3,3],[4,2,4,3],[5,2,5,3],[6,2,6,3],[19,2,19,3],[8,2,8,3],[9,2,9,3],[10,2,10,3],[11,2,11,3],[12,2,12,3],[13,2,13,3],[14,2,14,3],[15,2,15,3],[16,2,16,3],[17,2,17,3],[18,2,18,3],[26,2,26,3],[20,2,20,3],[21,2,21,3],[22,2,22,3],[23,2,23,3],[24,2,24,3],[25,2,25,3]]}
[]
[null,null,"Udført:",{"$f":"IF(N28>0,IF(N28>6,2,1),0)","v":0}]
[null,"Fokusspørgsmål (der skal idegenereres over)",null,"Brainstorm"]
[null,{"$f":"IF(LEN('3-idegenerering'!C6)=0,\"Spørgsmålet hentes automatisk\",'3-idegenerering'!C6)","v":"Spørgsmålet hentes automatisk"}]
[null,"Ide 1",null,null,null,null,null,null,null,null,null,null,null,{"$f":"IF(LEN(C5)>0,1,\"\")","v":""}]
[null,"Ide 2",null,null,null,null,null,null,null,null,null,null,null,{"$f":"IF(LEN(C6)>0,1,\"\")","v":""}]
[null,"Ide 3",null,null,null,null,null,null,null,null,null,null,null,""]
[null,"Ide 4",null,null,null,null,null,null,null,null,null,null,null,""]
[null,"Ide 5",null,null,null,null,null,null,null,null,null,null,null,""]
[null,"Ide 6",null,null,null,null,null,null,null,null,null,null,null,""]
[null,"Ide 7",null,null,null,null,null,null,null,null,null,null,null,""]
[null,"Ide 8",null,null,null,null,null,null,null,null,null,null,null,""]
[null,"Ide 9",null,null,null,null,null,null,null,null,null,null,null,""]
[null,"Ide 10",null,null,null,null,null,null,null,null,null,null,null,""]
[null,"Ide 11",null,null,null,null,null,null,null,null,null,null,null,""]
[null,"Ide 12",null,null,null,null,null,null,null,null,null,null,null,""]
[null,"Ide 13",null,null,null,null,null,null,null,null,null,null,null,""]
[null,"Ide 14",null,null,null,null,null,null,null,null,null,null,null,""]
[null,"Ide 15",null,null,null,null,null,null,null,null,null,null,null,""]
[null,"Ide 16",null,null,null,null,null,null,null,null,null,null,null,""]
[null,"Ide 17",null,null,null,null,null,null,null,null,null,null,null,""]
[null,"Ide 18",null,null,null,null,null,null,null,null,null,null,null,""]
[null,"Ide 19",null,null,null,null,null,null,null,null,null,null,null,""]
[null,"Ide 20",null,null,null,null,null,null,null,null,null,null,null,""]
[null,"Ide 21",null,null,null,null,null,null,null,null,null,null,null,""]
[null,"Ide 22",null,null,null,null,null,null,null,null,null,null,null,""]
[null,"Ide 23",null,null,null,null,null,null,null,null,null,null,null,""]
[null,null,null,null,null,null,null,null,null,null,null,null,null,{"$f":"SUM(N5:N27)","v":0}]

{"sheet":"OBS2","index":17,"n_rows":28,"n_cols":14,"rows_kept":28,"cut":false,"hidden":true,"merged":[[2,1,2,3],[3,1,3,3],[4,1,4,3],[5,1,5,3]]}
[]
[null,null,"Udført:",{"$f":"IF(N28+N6>0,IF((N28>5)*(N6=1),2,1),0)","v":0}]
[null,"Fokusspørgsmål (der skal idegenereres over)"]
[null,{"$f":"IF(LEN('3-idegenerering'!C6)=0,\"Spørgsmålet hentes automatisk\",'3-idegenerering'!C6)","v":"Spørgsmålet hentes automatisk"}]
[null,"Fokusspørgsmål negativt formuleret"]
[null,null,null,null,null,null,null,null,null,null,null,null,null,{"$f":"IF(LEN(B6)>0,1,0)","v":0}]
[null,"Ide nr.","Den negative ide ","Vendt til brugbar ide"]
[null,"Ide 1",null,null,null,null,null,null,null,null,null,null,null,{"$f":"IF(ISTEXT(C8)+ISTEXT(D8)=2,1,0)","v":0}]
[null,"Ide 2",null,null,null,null,null,null,null,null,null,null,null,{"$f":"IF(ISTEXT(C9)+ISTEXT(D9)=2,1,0)","v":0}]
[null,"Ide 3",null,null,null,null,null,null,null,null,null,null,null,0]
[null,"Ide 4",null,null,null,null,null,null,null,null,null,null,null,0]
[null,"Ide 5",null,null,null,null,null,null,null,null,null,null,null,0]
[null,"Ide 6",null,null,null,null,null,null,null,null,null,null,null,0]
[null,"Ide 7",null,null,null,null,null,null,null,null,null,null,null,0]
[null,"Ide 8",null,null,null,null,null,null,null,null,null,null,null,0]
[null,"Ide 9",null,null,null,null,null,null,null,null,null,null,null,0]
[null,"Ide 10",null,null,null,null,null,null,null,null,null,null,null,0]
[null,"Ide 11",null,null,null,null,null,null,null,null,null,null,null,0]
[null,"Ide 12",null,null,null,null,null,null,null,null,null,null,null,0]
[null,"Ide 13",null,null,null,null,null,null,null,null,null,null,null,0]
[null,"Ide 14",null,null,null,null,null,null,null,null,null,null,null,0]
[null,"Ide 15",null,null,null,null,null,null,null,null,null,null,null,0]
[null,"Ide 16",null,null,null,null,null,null,null,null,null,null,null,0]
[null,"Ide 17",null,null,null,null,null,null,null,null,null,null,null,0]
[null,"Ide 18",null,null,null,null,null,null,null,null,null,null,null,0]
[null,"Ide 19",null,null,null,null,null,null,null,null,null,null,null,0]
[null,"Ide 20",null,null,null,null,null,null,null,null,null,null,null,0]
[null,null,null,null,null,null,null,null,null,null,null,null,null,{"$f":"SUM(N8:N27)","v":0}]

{"sheet":"BS3","index":18,"n_rows":28,"n_cols":14,"rows_kept":28,"cut":false,"hidden":true,"merged":[[7,2,7,3],[2,1,2,2],[3,1,3,3],[4,2,4,3],[5,2,5,3],[6,2,6,3],[19,2,19,3],[8,2,8,3],[9,2,9,3],[10,2,10,3],[11,2,11,3],[12,2,12,3],[13,2,13,3],[14,2,14,3],[15,2,15,3],[16,2,16,3],[17,2,17,3],[18,2,18,3],[26,2,26,3],[20,2,20,3],[21,2,21,3],[22,2,22,3],[23,2,23,3],[24,2,24,3],[25,2,25,3]]}
[]
[null,null,"Udført:",{"$f":"IF(N28>0,IF(N28>6,2,1),0)","v":0}]
[null,"Fokusspørgsmål (der skal idegenereres over)",null,"Brainstorm"]
[null,{"$f":"IF(LEN('3-idegenerering'!C8)=0,\"Spørgsmålet hentes automatisk\",'3-idegenerering'!C8)","v":"Spørgsmålet hentes automatisk"}]
[null,"Ide 1",null,null,null,null,null,null,null,null,null,null,null,{"$f":"IF(LEN(C5)>0,1,\"\")","v":""}]
[null,"Ide 2",null,null,null,null,null,null,null,null,null,null,null,{"$f":"IF(LEN(C6)>0,1,\"\")","v":""}]
[null,"Ide 3",null,null,null,null,null,null,null,null,null,null,null,""]
[null,"Ide 4",null,null,null,null,null,null,null,null,null,null,null,""]
[null,"Ide 5",null,null,null,null,null,null,null,null,null,null,null,""]
[null,"Ide 6",null,null,null,null,null,null,null,null,null,null,null,""]
[null,"Ide 7",null,null,null,null,null,null,null,null,null,null,null,""]
[null,"Ide 8",null,null,null,null,null,null,null,null,null,null,null,""]
[null,"Ide 9",null,null,null,null,null,null,null,null,null,null,null,""]
[null,"Ide 10",null,null,null,null,null,null,null,null,null,null,null,""]
[null,"Ide 11",null,null,null,null,null,null,null,null,null,null,null,""]
[null,"Ide 12",null,null,null,null,null,null,null,null,null,null,null,""]
[null,"Ide 13",null,null,null,null,null,null,null,null,null,null,null,""]
[null,"Ide 14",null,null,null,null,null,null,null,null,null,null,null,""]
[null,"Ide 15",null,null,null,null,null,null,null,null,null,null,null,""]
[null,"Ide 16",null,null,null,null,null,null,null,null,null,null,null,""]
[null,"Ide 17",null,null,null,null,null,null,null,null,null,null,null,""]
[null,"Ide 18",null,null,null,null,null,null,null,null,null,null,null,""]
[null,"Ide 19",null,null,null,null,null,null,null,null,null,null,null,""]
[null,"Ide 20",null,null,null,null,null,null,null,null,null,null,null,""]
[null,"Ide 21",null,null,null,null,null,null,null,null,null,null,null,""]
[null,"Ide 22",null,null,null,null,null,null,null,null,null,null,null,""]
[null,"Ide 23",null,null,null,null,null,null,null,null,null,null,null,""]
[null,null,null,null,null,null,null,null,null,null,null,null,null,{"$f":"SUM(N5:N27)","v":0}]

{"sheet":"OBS3","index":19,"n_rows":28,"n_cols":14,"rows_kept":28,"cut":false,"hidden":true,"merged":[[2,1,2,3],[3,1,3,3],[4,1,4,3],[5,1,5,3]]}
[]
[null,null,"Udført:",{"$f":"IF(N28+N6>0,IF((N28>5)*(N6=1),2,1),0)","v":0}]
[null,"Fokusspørgsmål (der skal idegenereres over)"]
[null,{"$f":"IF(LEN('3-idegenerering'!C8)=0,\"Spørgsmålet hentes automatisk\",'3-idegenerering'!C8)","v":"Spørgsmålet hentes automatisk"}]
[null,"Fokusspørgsmål negativt formuleret"]
[null,null,null,null,null,null,null,null,null,null,null,null,null,{"$f":"IF(LEN(B6)>0,1,0)","v":0}]
[null,"Ide nr.","Den negative ide ","Vendt til brugbar ide"]
[null,"Ide 1",null,null,null,null,null,null,null,null,null,null,null,{"$f":"IF(ISTEXT(C8)+ISTEXT(D8)=2,1,0)","v":0}]
[null,"Ide 2",null,null,null,null,null,null,null,null,null,null,null,{"$f":"IF(ISTEXT(C9)+ISTEXT(D9)=2,1,0)","v":0}]
[null,"Ide 3",null,null,null,null,null,null,null,null,null,null,null,0]
[null,"Ide 4",null,null,null,null,null,null,null,null,null,null,null,0]
[null,"Ide 5",null,null,null,null,null,null,null,null,null,null,null,0]
[null,"Ide 6",null,null,null,null,null,null,null,null,null,null,null,0]
[null,"Ide 7",null,null,null,null,null,null,null,null,null,null,null,0]
[null,"Ide 8",null,null,null,null,null,null,null,null,null,null,null,0]
[null,"Ide 9",null,null,null,null,null,null,null,null,null,null,null,0]
[null,"Ide 10",null,null,null,null,null,null,null,null,null,null,null,0]
[null,"Ide 11",null,null,null,null,null,null,null,null,null,null,null,0]
[null,"Ide 12",null,null,null,null,null,null,null,null,null,null,null,0]
[null,"Ide 13",null,null,null,null,null,null,null,null,null,null,null,0]
[null,"Ide 14",null,null,null,null,null,null,null,null,null,null,null,0]
[null,"Ide 15",null,null,null,null,null,null,null,null,null,null,null,0]
[null,"Ide 16",null,null,null,null,null,null,null,null,null,null,null,0]
[null,"Ide 17",null,null,null,null,null,null,null,null,null,null,null,0]
[null,"Ide 18",null,null,null,null,null,null,null,null,null,null,null,0]
[null,"Ide 19",null,null,null,null,null,null,null,null,null,null,null,0]
[null,"Ide 20",null,null,null,null,null,null,null,null,null,null,null,0]
[null,null,null,null,null,null,null,null,null,null,null,null,null,{"$f":"SUM(N8:N27)","v":0}]

{"sheet":"BS4","index":20,"n_rows":28,"n_cols":14,"rows_kept":28,"cut":false,"hidden":true,"merged":[[7,2,7,3],[2,1,2,2],[3,1,3,3],[4,2,4,3],[5,2,5,3],[6,2,6,3],[19,2,19,3],[8,2,8,3],[9,2,9,3],[10,2,10,3],[11,2,11,3],[12,2,12,3],[13,2,13,3],[14,2,14,3],[15,2,15,3],[16,2,16,3],[17,2,17,3],[18,2,18,3],[26,2,26,3],[20,2,20,3],[21,2,21,3],[22,2,22,3],[23,2,23,3],[24,2,24,3],[25,2,25,3]]}
[]
[null,null,"Udført:",{"$f":"IF(N28>0,IF(N28>6,2,1),0)","v":0}]
[null,"Fokusspørgsmål (der skal idegenereres over)",null,"Brainstorm"]
[null,{"$f":"IF(LEN('3-idegenerering'!C10)=0,\"Spørgsmålet hentes automatisk\",'3-idegenerering'!C10)","v":"Spørgsmålet hentes automatisk"}]
[null,"Ide 1",null,null,null,null,null,null,null,null,null,null,null,{"$f":"IF(LEN(C5)>0,1,\"\")","v":""}]
[null,"Ide 2",null,null,null,null,null,null,null,null,null,null,null,{"$f":"IF(LEN(C6)>0,1,\"\")","v":""}]
[null,"Ide 3",null,null,null,null,null,null,null,null,null,null,null,""]
[null,"Ide 4",null,null,null,null,null,null,null,null,null,null,null,""]
[null,"Ide 5",null,null,null,null,null,null,null,null,null,null,null,""]
[null,"Ide 6",null,null,null,null,null,null,null,null,null,null,null,""]
[null,"Ide 7",null,null,null,null,null,null,null,null,null,null,null,""]
[null,"Ide 8",null,null,null,null,null,null,null,null,null,null,null,""]
[null,"Ide 9",null,null,null,null,null,null,null,null,null,null,null,""]
[null,"Ide 10",null,null,null,null,null,null,null,null,null,null,null,""]
[null,"Ide 11",null,null,null,null,null,null,null,null,null,null,null,""]
[null,"Ide 12",null,null,null,null,null,null,null,null,null,null,null,""]
[null,"Ide 13",null,null,null,null,null,null,null,null,null,null,null,""]
[null,"Ide 14",null,null,null,null,null,null,null,null,null,null,null,""]
[null,"Ide 15",null,null,null,null,null,null,null,null,null,null,null,""]
[null,"Ide 16",null,null,null,null,null,null,null,null,null,null,null,""]
[null,"Ide 17",null,null,null,null,null,null,null,null,null,null,null,""]
[null,"Ide 18",null,null,null,null,null,null,null,null,null,null,null,""]
[null,"Ide 19",null,null,null,null,null,null,null,null,null,null,null,""]
[null,"Ide 20",null,null,null,null,null,null,null,null,null,null,null,""]
[null,"Ide 21",null,null,null,null,null,null,null,null,null,null,null,""]
[null,"Ide 22",null,null,null,null,null,null,null,null,null,null,null,""]
[null,"Ide 23",null,null,null,null,null,null,null,null,null,null,null,""]
[null,null,null,null,null,null,null,null,null,null,null,null,null,{"$f":"SUM(N5:N27)","v":0}]

{"sheet":"OBS4","index":21,"n_rows":28,"n_cols":14,"rows_kept":28,"cut":false,"hidden":true,"merged":[[2,1,2,3],[3,1,3,3],[4,1,4,3],[5,1,5,3]]}
[]
[null,null,"Udført:",{"$f":"IF(N28+N6>0,IF((N28>5)*(N6=1),2,1),0)","v":0}]
[null,"Fokusspørgsmål (der skal idegenereres over)"]
[null,{"$f":"IF(LEN('3-idegenerering'!C10)=0,\"Spørgsmålet hentes automatisk\",'3-idegenerering'!C10)","v":"Spørgsmålet hentes automatisk"}]
[null,"Fokusspørgsmål negativt formuleret"]
[null,null,null,null,null,null,null,null,null,null,null,null,null,{"$f":"IF(LEN(B6)>0,1,0)","v":0}]
[null,"Ide nr.","Den negative ide ","Vendt til brugbar ide"]
[null,"Ide 1",null,null,null,null,null,null,null,null,null,null,null,{"$f":"IF(ISTEXT(C8)+ISTEXT(D8)=2,1,0)","v":0}]
[null,"Ide 2",null,null,null,null,null,null,null,null,null,null,null,{"$f":"IF(ISTEXT(C9)+ISTEXT(D9)=2,1,0)","v":0}]
[null,"Ide 3",null,null,null,null,null,null,null,null,null,null,null,0]
[null,"Ide 4",null,null,null,null,null,null,null,null,null,null,null,0]
[null,"Ide 5",null,null,null,null,null,null,null,null,null,null,null,0]
[null,"Ide 6",null,null,null,null,null,null,null,null,null,null,null,0]
[null,"Ide 7",null,null,null,null,null,null,null,null,null,null,null,0]
[null,"Ide 8",null,null,null,null,null,null,null,null,null,null,null,0]
[null,"Ide 9",null,null,null,null,null,null,null,null,null,null,null,0]
[null,"Ide 10",null,null,null,null,null,null,null,null,null,null,null,0]
[null,"Ide 11",null,null,null,null,null,null,null,null,null,null,null,0]
[null,"Ide 12",null,null,null,null,null,null,null,null,null,null,null,0]
[null,"Ide 13",null,null,null,null,null,null,null,null,null,null,null,0]
[null,"Ide 14",null,null,null,null,null,null,null,null,null,null,null,0]
[null,"Ide 15",null,null,null,null,null,null,null,null,null,null,null,0]
[null,"Ide 16",null,null,null,null,null,null,null,null,null,null,null,0]
[null,"Ide 17",null,null,null,null,null,null,null,null,null,null,null,0]
[null,"Ide 18",null,null,null,null,null,null,null,null,null,null,null,0]
[null,"Ide 19",null,null,null,null,null,null,null,null,null,null,null,0]
[null,"Ide 20",null,null,null,null,null,null,null,null,null,null,null,0]
[null,null,null,null,null,null,null,null,null,null,null,null,null,{"$f":"SUM(N8:N27)","v":0}]

{"sheet":"BS5","index":22,"n_rows":28,"n_cols":14,"rows_kept":28,"cut":false,"hidden":true,"merged":[[7,2,7,3],[2,1,2,2],[3,1,3,3],[4,2,4,3],[5,2,5,3],[6,2,6,3],[19,2,19,3],[8,2,8,3],[9,2,9,3],[10,2,10,3],[11,2,11,3],[12,2,12,3],[13,2,13,3],[14,2,14,3],[15,2,15,3],[16,2,16,3],[17,2,17,3],[18,2,18,3],[26,2,26,3],[20,2,20,3],[21,2,21,3],[22,2,22,3],[23,2,23,3],[24,2,24,3],[25,2,25,3]]}
[]
[null,null,"Udført:",{"$f":"IF(N28>0,IF(N28>6,2,1),0)","v":0}]
[null,"Fokusspørgsmål (der skal idegenereres over)",null,"Brainstorm"]
[null,{"$f":"IF(LEN('3-idegenerering'!C12)=0,\"Spørgsmålet hentes automatisk\",'3-idegenerering'!C12)","v":"Spørgsmålet hentes automatisk"}]
[null,"Ide 1",null,null,null,null,null,null,null,null,null,null,null,{"$f":"IF(LEN(C5)>0,1,\"\")","v":""}]
[null,"Ide 2",null,null,null,null,null,null,null,null,null,null,null,{"$f":"IF(LEN(C6)>0,1,\"\")","v":""}]
[null,"Ide 3",null,null,null,null,null,null,null,null,null,null,null,""]
[null,"Ide 4",null,null,null,null,null,null,null,null,null,null,null,""]
[null,"Ide 5",null,null,null,null,null,null,null,null,null,null,null,""]
[null,"Ide 6",null,null,null,null,null,null,null,null,null,null,null,""]
[null,"Ide 7",null,null,null,null,null,null,null,null,null,null,null,""]
[null,"Ide 8",null,null,null,null,null,null,null,null,null,null,null,""]
[null,"Ide 9",null,null,null,null,null,null,null,null,null,null,null,""]
[null,"Ide 10",null,null,null,null,null,null,null,null,null,null,null,""]
[null,"Ide 11",null,null,null,null,null,null,null,null,null,null,null,""]
[null,"Ide 12",null,null,null,null,null,null,null,null,null,null,null,""]
[null,"Ide 13",null,null,null,null,null,null,null,null,null,null,null,""]
[null,"Ide 14",null,null,null,null,null,null,null,null,null,null,null,""]
[null,"Ide 15",null,null,null,null,null,null,null,null,null,null,null,""]
[null,"Ide 16",null,null,null,null,null,null,null,null,null,null,null,""]
[null,"Ide 17",null,null,null,null,null,null,null,null,null,null,null,""]
[null,"Ide 18",null,null,null,null,null,null,null,null,null,null,null,""]
[null,"Ide 19",null,null,null,null,null,null,null,null,null,null,null,""]
[null,"Ide 20",null,null,null,null,null,null,null,null,null,null,null,""]
[null,"Ide 21",null,null,null,null,null,null,null,null,null,null,null,""]
[null,"Ide 22",null,null,null,null,null,null,null,null,null,null,null,""]
[null,"Ide 23",null,null,null,null,null,null,null,null,null,null,null,""]
[null,null,null,null,null,null,null,null,null,null,null,null,null,{"$f":"SUM(N5:N27)","v":0}]

{"sheet":"OBS5","index":23,"n_rows":28,"n_cols":14,"rows_kept":28,"cut":false,"hidden":true,"merged":[[2,1,2,3],[3,1,3,3],[4,1,4,3],[5,1,5,3]]}
[]
[null,null,"Udført:",{"$f":"IF(N28+N6>0,IF((N28>5)*(N6=1),2,1),0)","v":0}]
[null,"Fokusspørgsmål (der skal idegenereres over)"]
[null,{"$f":"IF(LEN('3-idegenerering'!C12)=0,\"Spørgsmålet hentes automatisk\",'3-idegenerering'!C12)","v":"Spørgsmålet hentes automatisk"}]
[null,"Fokusspørgsmål negativt formuleret"]
[null,null,null,null,null,null,null,null,null,null,null,null,null,{"$f":"IF(LEN(B6)>0,1,0)","v":0}]
[null,"Ide nr.","Den negative ide ","Vendt til brugbar ide"]
[null,"Ide 1",null,null,null,null,null,null,null,null,null,null,null,{"$f":"IF(ISTEXT(C8)+ISTEXT(D8)=2,1,0)","v":0}]
[null,"Ide 2",null,null,null,null,null,null,null,null,null,null,null,{"$f":"IF(ISTEXT(C9)+ISTEXT(D9)=2,1,0)","v":0}]
[null,"Ide 3",null,null,null,null,null,null,null,null,null,null,null,0]
[null,"Ide 4",null,null,null,null,null,null,null,null,null,null,null,0]
[null,"Ide 5",null,null,null,null,null,null,null,null,null,null,null,0]
[null,"Ide 6",null,null,null,null,null,null,null,null,null,null,null,0]
[null,"Ide 7",null,null,null,null,null,null,null,null,null,null,null,0]
[null,"Ide 8",null,null,null,null,null,null,null,null,null,null,null,0]
[null,"Ide 9",null,null,null,null,null,null,null,null,null,null,null,0]
[null,"Ide 10",null,null,null,null,null,null,null,null,null,null,null,0]
[null,"Ide 11",null,null,null,null,null,null,null,null,null,null,null,0]
[null,"Ide 12",null,null,null,null,null,null,null,null,null,null,null,0]
[null,"Ide 13",null,null,null,null,null,null,null,null,null,null,null,0]
[null,"Ide 14",null,null,null,null,null,null,null,null,null,null,null,0]
[null,"Ide 15",null,null,null,null,null,null,null,null,null,null,null,0]
[null,"Ide 16",null,null,null,null,null,null,null,null,null,null,null,0]
[null,"Ide 17",null,null,null,null,null,null,null,null,null,null,null,0]
[null,"Ide 18",null,null,null,null,null,null,null,null,null,null,null,0]
[null,"Ide 19",null,null,null,null,null,null,null,null,null,null,null,0]
[null,"Ide 20",null,null,null,null,null,null,null,null,null,null,null,0]
[null,null,null,null,null,null,null,null,null,null,null,null,null,{"$f":"SUM(N8:N27)","v":0}]

{"sheet":"spg1","index":24,"n_rows":12,"n_cols":13,"rows_kept":12,"cut":false,"hidden":true,"merged":[[8,1,8,2],[11,1,11,2],[12,1,12,2],[2,1,2,2],[3,1,3,2],[4,1,4,2],[5,1,5,2],[6,1,6,2],[7,1,7,2]]}
[]
[null,"Udført:",{"$f":"IF(M2>0,IF(M2>20,2,1),0)","v":0},null,null,null,null,null,null,null,null,null,{"$f":"LEN(B13)","v":0}]
[null,"Fokusspørgsmål (der skal idegenereres over)"]
[null,{"$f":"IF(LEN('3-idegenerering'!C4)=0,\"Spørgsmålet hentes automatisk\",'3-idegenerering'!C4)","v":"Spørgsmålet hentes automatisk"}]
[null,"3 vilde ideer, der kan udbygges"]
[null,{"$f":"IF(LEN('3-idegenerering'!C15)=0,\"Ide hentes automatisk\",'3-idegenerering'!C15)","v":"Ide hentes automatisk"}]
[null,{"$f":"IF(LEN('3-idegenerering'!C16)=0,\"Ide hentes automatisk\",'3-idegenerering'!C16)","v":"Ide hentes automatisk"}]
[null,{"$f":"IF(LEN('3-idegenerering'!C17)=0,\"Ide hentes automatisk\",'3-idegenerering'!C17)","v":"Ide hentes automatisk"}]
[null,"Tegninger: forslag til design"]
[]
[]
[null,"Beskrivelse af VALGT forslag til design"]

{"sheet":"spg2","index":25,"n_rows":12,"n_cols":13,"rows_kept":12,"cut":false,"hidden":true,"merged":[[8,1,8,2],[11,1,11,2],[12,1,12,2],[2,1,2,2],[3,1,3,2],[4,1,4,2],[5,1,5,2],[6,1,6,2],[7,1,7,2]]}
[]
[null,"Udført:",{"$f":"IF(M2>0,IF(M2>20,2,1),0)","v":0},null,null,null,null,null,null,null,null,null,{"$f":"LEN(B13)","v":0}]
[null,"Fokusspørgsmål (der skal idegenereres over)"]
[null,{"$f":"IF(LEN('3-idegenerering'!C6)=0,\"Spørgsmålet hentes automatisk\",'3-idegenerering'!C6)","v":"Spørgsmålet hentes automatisk"}]
[null,"3 vilde ideer, der kan udbygges"]
[null,{"$f":"IF(LEN('3-idegenerering'!C18)=0,\"Ide hentes automatisk\",'3-idegenerering'!C18)","v":"Ide hentes automatisk"}]
[null,{"$f":"IF(LEN('3-idegenerering'!C19)=0,\"Ide hentes automatisk\",'3-idegenerering'!C19)","v":"Ide hentes automatisk"}]
[null,{"$f":"IF(LEN('3-idegenerering'!C20)=0,\"Ide hentes automatisk\",'3-idegenerering'!C20)","v":"Ide hentes automatisk"}]
[null,"Tegninger: forslag til design"]
[]
[]
[null,"Beskrivelse af VALGT forslag til design"]

{"sheet":"spg3","index":26,"n_rows":12,"n_cols":13,"rows_kept":12,"cut":false,"hidden":true,"merged":[[8,1,8,2],[11,1,11,2],[12,1,12,2],[2,1,2,2],[3,1,3,2],[4,1,4,2],[5,1,5,2],[6,1,6,2],[7,1,7,2]]}
[]
[null,"Udført:",{"$f":"IF(M2>0,IF(M2>20,2,1),0)","v":0},null,null,null,null,null,null,null,null,null,{"$f":"LEN(B13)","v":0}]
[null,"Fokusspørgsmål (der skal idegenereres over)"]
[null,{"$f":"IF(LEN('3-idegenerering'!C8)=0,\"Spørgsmålet hentes automatisk\",'3-idegenerering'!C8)","v":"Spørgsmålet hentes automatisk"}]
[null,"3 vilde ideer, der kan udbygges"]
[null,{"$f":"IF(LEN('3-idegenerering'!C21)=0,\"Ide hentes automatisk\",'3-idegenerering'!C21)","v":"Ide hentes automatisk"}]
[null,{"$f":"IF(LEN('3-idegenerering'!C22)=0,\"Ide hentes automatisk\",'3-idegenerering'!C22)","v":"Ide hentes automatisk"}]
[null,{"$f":"IF(LEN('3-idegenerering'!C23)=0,\"Ide hentes automatisk\",'3-idegenerering'!C23)","v":"Ide hentes automatisk"}]
[null,"Tegninger: forslag til design"]
[]
[]
[null,"Beskrivelse af VALGT forslag til design"]

{"sheet":"spg4","index":27,"n_rows":12,"n_cols":13,"rows_kept":12,"cut":false,"hidden":true,"merged":[[8,1,8,2],[11,1,11,2],[12,1,12,2],[2,1,2,2],[3,1,3,2],[4,1,4,2],[5,1,5,2],[6,1,6,2],[7,1,7,2]]}
[]
[null,"Udført:",{"$f":"IF(M2>0,IF(M2>20,2,1),0)","v":0},null,null,null,null,null,null,null,null,null,{"$f":"LEN(B13)","v":0}]
[null,"Fokusspørgsmål (der skal idegenereres over)"]
[null,{"$f":"IF(LEN('3-idegenerering'!C10)=0,\"Spørgsmålet hentes automatisk\",'3-idegenerering'!C10)","v":"Spørgsmålet hentes automatisk"}]
[null,"3 vilde ideer, der kan udbygges"]
[null,{"$f":"IF(LEN('3-idegenerering'!C24)=0,\"Ide hentes automatisk\",'3-idegenerering'!C24)","v":"Ide hentes automatisk"}]
[null,{"$f":"IF(LEN('3-idegenerering'!C25)=0,\"Ide hentes automatisk\",'3-idegenerering'!C25)","v":"Ide hentes automatisk"}]
[null,{"$f":"IF(LEN('3-idegenerering'!C26)=0,\"Ide hentes automatisk\",'3-idegenerering'!C26)","v":"Ide hentes automatisk"}]
[null,"Tegninger: forslag til design"]
[]
[]
[null,"Beskrivelse af VALGT forslag til design"]

{"sheet":"spg5","index":28,"n_rows":12,"n_cols":13,"rows_kept":12,"cut":false,"hidden":true,"merged":[[8,1,8,2],[11,1,11,2],[12,1,12,2],[2,1,2,2],[3,1,3,2],[4,1,4,2],[5,1,5,2],[6,1,6,2],[7,1,7,2]]}
[]
[null,"Udført:",{"$f":"IF(M2>0,IF(M2>20,2,1),0)","v":0},null,null,null,null,null,null,null,null,null,{"$f":"LEN(B13)","v":0}]
[null,"Fokusspørgsmål (der skal idegenereres over)"]
[null,{"$f":"IF(LEN('3-idegenerering'!C12)=0,\"Spørgsmålet hentes automatisk\",'3-idegenerering'!C12)","v":"Spørgsmålet hentes automatisk"}]
[null,"3 vilde ideer, der kan udbygges"]
[null,{"$f":"IF(LEN('3-idegenerering'!C27)=0,\"Ide hentes automatisk\",'3-idegenerering'!C27)","v":"Ide hentes automatisk"}]
[null,{"$f":"IF(LEN('3-idegenerering'!C28)=0,\"Ide hentes automatisk\",'3-idegenerering'!C28)","v":"Ide hentes automatisk"}]
[null,{"$f":"IF(LEN('3-idegenerering'!C29)=0,\"Ide hentes automatisk\",'3-idegenerering'!C29)","v":"Ide hentes automatisk"}]
[null,"Tegninger: forslag til design"]
[]
[]
[null,"Beskrivelse af VALGT forslag til design"]

{"sheet":"Produktide","index":29,"n_rows":8,"n_cols":13,"rows_kept":8,"cut":false,"hidden":true,"merged":[[2,1,2,2],[3,1,3,2],[4,1,4,2],[7,1,7,2],[8,1,8,2]]}
[]
[null,"Udført:",{"$f":"IF(M2>0,IF(M2>20,2,1),0)","v":0},null,null,null,null,null,null,null,null,null,{"$f":"LEN(B9)","v":0}]
[null,"Produktide"]
[null,{"$f":"IF(LEN('3-idegenerering'!C31)=0,\"Produktide hentes automatisk\",'3-idegenerering'!C31)","v":"Produktide hentes automatisk"}]
[null,"Tegninger: forslag til endeligt design"]
[]
[]
[null,"Beskrivelse af VALGT forslag til design"]

{"sheet":"Nytteværdi","index":30,"n_rows":11,"n_cols":13,"rows_kept":11,"cut":false,"hidden":true,"merged":[[2,1,2,2],[3,1,3,2]]}
[]
[null,"Udført:",{"$f":"IF(M2>0,IF(M2>3,2,1),0)","v":0},null,null,null,null,null,null,null,null,null,{"$f":"SUM(M6:M11)","v":0}]
[null,"Indfør de egenskaber, I har fundet ud af, produktet skal have, og analyser for hver egenskab, hvilken nytte brugeren vil få af produktet"]
[null,{"$f":"IF(LEN('3-idegenerering'!C31)=0,\"Produktide hentes automatisk\",'3-idegenerering'!C31)","v":"Produktide hentes automatisk"}]
[null,"Egenskaber ","Nytteværdi for brugeren"]
[null,null,null,null,null,null,null,null,null,null,null,null,{"$f":"ISTEXT(B6)*ISTEXT(C6)","v":0}]
[null,null,null,null,null,null,null,null,null,null,null,null,{"$f":"ISTEXT(B7)*ISTEXT(C7)","v":0}]
[null,null,null,null,null,null,null,null,null,null,null,null,0]
[null,null,null,null,null,null,null,null,null,null,null,null,0]
[null,null,null,null,null,null,null,null,null,null,null,null,0]
[null," ",null,null,null,null,null,null,null,null,null,null,0]

{"sheet":"Købsadfærd","index":31,"n_rows":28,"n_cols":14,"rows_kept":28,"cut":false,"hidden":true,"merged":[[7,1,7,6],[2,1,2,6],[3,1,3,6],[4,1,4,6],[5,1,5,6],[6,1,6,6],[20,2,20,6],[8,1,8,6],[9,1,9,6],[10,1,10,6],[11,1,11,6],[13,2,13,6],[14,2,14,6],[15,2,15,6],[16,2,16,6],[17,2,17,6],[18,2,18,6],[19,1,19,6],[26,1,26,5],[21,2,21,6],[22,1,22,6],[23,2,23,6],[24,2,24,6],[25,1,25,5]]}
[]
[null,null,null,null,null,"Udført:",{"$f":"IF(N28>0,IF(N28>18,2,1),0)","v":0}]
[null,"Købsadfærd"]
[null,"Generel købsbeslutning (Hvilke økonomiske overvejelser har kunden før købet)"]
[null,null,null,null,null,null,null,null,null,null,null,null,null,{"$f":"ISTEXT(B5)*1","v":0}]
[null,"Konkret købsbeslutning (Hvilke alternative produkttyper kan kunden købe)"]
[null,null,null,null,null,null,null,null,null,null,null,null,null,{"$f":"ISTEXT(B7)*1","v":0}]
[null,"Udvælgelsesbeslutning (Hvilke konkurrenter kan kunden vælge)"]
[null,null,null,null,null,null,null,null,null,null,null,null,null,{"$f":"ISTEXT(B9)*1","v":0}]
[null,"Teknisk købsformidling (hvilke services kan vi yde kunden under selve købet)"]
[null,null,null,null,null,null,null,null,null,null,null,null,null,{"$f":"ISTEXT(B11)*1","v":0}]
[null,"Persona (Beskriv den person, du mener helt sikkert vil købe dit produkt)"]
[null,"Alder",null,"Køn",null,"Indkomst",null,null,null,null,null,null,null,{"$f":"ISTEXT(C13)*ISTEXT(E13)*ISTEXT(G13)","v":0}]
[null,"Personlighed",null,null,null,null,null,null,null,null,null,null,null,{"$f":"ISTEXT(C14)*1","v":0}]
[null,"Job og uddannelse",null,null,null,null,null,null,null,null,null,null,null,{"$f":"ISTEXT(C15)*1","v":0}]
[null,"Fritids-aktiviteter",null,null,null,null,null,null,null,null,null,null,null,0]
[null,"Familieforhold",null,null,null,null,null,null,null,null,null,null,null,0]
[null,"Venner og socialt liv",null,null,null,null,null,null,null,null,null,null,null,0]
[null,"Hvad giver status",null,null,null,null,null,null,null,null,null,null,null,0]
[null,"Placering i målgruppen"]
[null,"Minerva",null,null,null,null,null,null,null,null,null,null,null,{"$f":"ISTEXT(C21)*1","v":0}]
[null,"Conzoom",null,null,null,null,null,null,null,null,null,null,null,{"$f":"ISTEXT(C22)*1","v":0}]
[null,"Målgruppens størrelse "]
[null,"Minerva",null,null,null,null,null,null,null,null,null,null,null,{"$f":"ISTEXT(C24)*1","v":0}]
[null,"Conzoom",null,null,null,null,null,null,null,null,null,null,null,{"$f":"ISTEXT(C25)*1","v":0}]
[null,"Identificer konkurrenter, vurder konkurrenterne",null,null,null,null,"skydeskive modellen",{"$f":"Skydeskivemodel!C2","v":0}]
[null,"Foretag en swot-analyse",null,null,null,null,"Swot",{"$f":"Swot!C2","v":0}]
[null,null,null,null,null,null,null,null,null,null,null,null,null,{"$f":"SUM(N5:N25)+H26+H27","v":0}]

{"sheet":"Skydeskivemodel","index":32,"n_rows":13,"n_cols":13,"rows_kept":13,"cut":false,"hidden":true,"merged":[]}
[]
[null,"Udført:",{"$f":"IF(M13>0,IF(M13>3,2,1),0)","v":0}]
[null,"Skydeskivemodel Indsæt dine konkurrenter på skydeskiven "]
[]
[null,"Samme produkt. Beskriv produkterne og konkurrenterne (alt hvad du kan finde)"]
[null,null,null,null,null,null,null,null,null,null,null,null,{"$f":"ISTEXT(B6)","v":false}]
[null,"Lignende produkter. Beskriv produkterne og konkurrenterne (alt hvad du kan finde)"]
[null,null,null,null,null,null,null,null,null,null,null,null,{"$f":"ISTEXT(B8)*1","v":0}]
[null,"Løsninger på problemet. Beskriv produkterne og konkurrenterne (alt hvad du kan finde)"]
[null,null,null,null,null,null,null,null,null,null,null,null,{"$f":"ISTEXT(B10)*1","v":0}]
[null,"Hvad kan/vil en i målgruppen købe for dit produkts pris?"]
[null,null,null,null,null,null,null,null,null,null,null,null,{"$f":"ISTEXT(B12)*1","v":0}]
[null,null,null,null,null,null,null,null,null,null,null,null,{"$f":"SUM(M6:M12)","v":0}]

{"sheet":"Swot","index":33,"n_rows":19,"n_cols":13,"rows_kept":19,"cut":false,"hidden":true,"merged":[[13,1,13,2],[2,1,2,2],[3,1,3,2],[4,1,4,2],[5,1,5,2],[6,1,6,2],[7,1,7,2],[8,1,8,2],[9,1,9,2],[10,1,10,2],[11,1,11,2],[12,1,12,2]]}
[]
[null,"Udført:",{"$f":"IF(M19>0,IF(M19>6,2,1),0)","v":0}]
[null,"Hvem har økonomiske muskler af jeres konkurrenter (hvad har I)"]
[null,null,null,null,null,null,null,null,null,null,null,null,{"$f":"ISTEXT(B4)*1","v":0}]
[null,"Er der nogen, der vil føle, I har taget deres design (retssager truer)"]
[null,null,null,null,null,null,null,null,null,null,null,null,{"$f":"ISTEXT(B6)*1","v":0}]
[null,"Er der patent på noget af det, I vil arbejde med (retssager truer)"]
[null,null,null,null,null,null,null,null,null,null,null,null,{"$f":"ISTEXT(B8)*1","v":0}]
[null,"Hvem løser problemet bedst (prisen er ligegyldig)"]
[null,null,null,null,null,null,null,null,null,null,null,null,{"$f":"ISTEXT(B10)*1","v":0}]
[null,"Har I gode leverandørforbindelser (priser/forsyningssikkerhed)"]
[null,null,null,null,null,null,null,null,null,null,null,null,{"$f":"ISTEXT(B12)*1","v":0}]
[null,"Har I gode afsætningskanaler (likes er ikke godt nok; har I aftaler)"]
[null,null,null,null,null,null,null,null,null,null,null,null,{"$f":"ISTEXT(B14)*1","v":0}]
[null,"Styrker (internt)","Svagheder (internt)"]
[null,null,null,null,null,null,null,null,null,null,null,null,{"$f":"ISTEXT(B16)*ISTEXT(C16)","v":0}]
[null,"Muligheder (eksternt)","Trusler (eksternt)"]
[null,null,null,null,null,null,null,null,null,null,null,null,{"$f":"ISTEXT(B18)*ISTEXT(C18)","v":0}]
[null,null,null,null,null,null,null,null,null,null,null,null,{"$f":"SUM(M4:M18)","v":0}]

{"sheet":"Fysisk_produkt","index":34,"n_rows":36,"n_cols":15,"rows_kept":36,"cut":false,"hidden":true,"merged":[[2,1,2,7],[3,1,3,7],[5,2,5,3],[4,1,4,7],[9,2,9,3],[10,1,10,7],[11,2,11,3],[6,1,6,7],[7,2,7,3],[8,1,8,7],[16,1,16,7],[17,1,17,2],[18,1,18,2],[17,3,18,7],[19,1,19,2],[19,3,19,7],[30,1,30,2],[29,3,30,7],[31,1,31,2],[20,1,20,2],[20,3,20,7],[21,1,21,2],[21,3,21,7],[22,1,22,7],[23,1,23,7],[25,4,25,6],[26,4,26,6],[24,1,24,7],[28,1,28,7],[29,1,29,2],[32,1,32,2],[31,3,32,7],[33,1,33,2],[34,1,34,2],[33,3,34,7]]}
[]
[null,null,null,null,null,null,"Udført:",{"$f":"IF(N36>0,IF(N36>23,2,1),0)","v":0}]
[null,"Formuler krav til produktet"]
[null,"Krav til produktets funktion (Service, oplukkelighed, justerbarhed, løfteevne)"]
[null,"Du må vægte hver af kravene med 1-5"]
[null,1," ",null,null,2," ",null,null,null,null,{"$f":"ISTEXT(C6)*ISNUMBER(E6)","v":0},{"$f":"ISTEXT(G6)*ISNUMBER(H6)","v":0}]
[null,"Krav til produktets kvalitet (Overflader, materialer, holdbarhed)"]
[null,3," ",null,null,4," ",null,null,null,null,{"$f":"ISTEXT(C8)*ISNUMBER(E8)","v":0},{"$f":"ISTEXT(G8)*ISNUMBER(H8)","v":0}]
[null,"Krav til produktets design (overflader, farver, organiske former, formsprog)"]
[null,5," ",null,null,6," ",null,null,null,null,0,0]
[null,"Produktionsvenlighed (Proceskendskab, rådighed over værktøj, egne evner, tidsforbrug)"]
[null,7," ",null,null,8," ",null,null,null,null,0,0]
[null,"Opstil 3 løsningsforslag ",null,null,null,null,null,"Score",null,null,null,null,null,{"$f":"SUM(L6:M12)","v":0},"Bør være 8"]
[null,null,null,null,null,null,"Skitse 1",{"$f":"Skitse1!H26","v":0},{"$f":"Skitse1!H2","v":0}]
[null,null,null,null,null,null,"Skitse 2",{"$f":"Skitse2!H27","v":0},{"$f":"Skitse2!H3","v":0}]
[null,null,null,null,null,null,"Skitse 3",{"$f":"Skitse3!H28","v":0},{"$f":"Skitse3!H4","v":0},null,null,null,null,{"$f":"SUM(I14:I16)","v":0},"Bør være 6"]
[null,"Anvendelse af naturvidenskabelig viden i (funktion eller fremstilling)"]
[null,"Matematik"]
[null,"Fx geometri",null,null,null,null,null,null,null,null,null,{"$f":"ISTEXT(D18)*1","v":0}]
[null,"Fysik",null,null,null,null,null,null,null,null,null,{"$f":"ISTEXT(D19)*1","v":0}]
[null,"Biologi",null,null,null,null,null,null,null,null,null,0]
[null,"Kemi",null,null,null,null,null,null,null,null,null,0]
[null,"Beskriv valget af løsning med udgangspunkt i Scorecard"]
[null,null,null,null,null,null,null,null,null,null,null,0]
[null,"Udfør en teknologivurdering \nVurder, hvilken af de tre modeller der giver mest mening for dit produkts indflydelse på samfundet). Du behøver kun lave den ene!"]
[null,null,null,null,"Teknologisk helhedsvurdering",null,null,null,{"$f":"Helhedsvurdering!C2","v":0}]
[null,null,null,null,"Konstruktiv vurdering",null,null,null,{"$f":"Konstruktiv!C2","v":0},null,null,{"$f":"IF(SUM(I26:I27)>2,2,SUM(I26:I27))","v":0},null,{"$f":"SUM(L19:L27)","v":0},"bør være 7"]
[null,null,null,null,"Konsekvenser",null,null,null,{"$f":"konsekvens!D2","v":0}]
[null,"Undersøgelse af muligheder og trusler"]
[null,"Love/regler"]
[null,"Produktet kan komme i problemer med",null,null,null,null,null,null,null,null,null,{"$f":"ISTEXT(D30)*1","v":0}]
[null,"Moralske problemstillinger"]
[null,"Produktet kan komme i problemer med",null,null,null,null,null,null,null,null,null,{"$f":"ISTEXT(D32)*1","v":0}]
[null,"Patenter eller designbeskyttelse",null,null,null,null,null,null,null,null,null,{"$f":"ISTEXT(D34)*1","v":0}]
[null,"Det kunne også være lignende produkter",null,null,null,null,null,null,null,null,null,null,null,{"$f":"SUM(L31:L34)","v":0},"Bør være 3"]
[null,null,null,null,null,null,null,null,null,null,null,null,null,{"$f":"N35+N27+N16+N13","v":0}]

{"sheet":"konsekvens","index":35,"n_rows":10,"n_cols":9,"rows_kept":10,"cut":false,"hidden":true,"merged":[[2,1,2,2],[5,1,5,2],[8,1,8,2],[9,1,9,2]]}
[]
[null,null,"Udført:",{"$f":"IF(H4>0,IF(H4>4,2,1),0)","v":0}]
[null,"Teknologivurdering som konsekvensvurdering "]
[null,"Positive","Negative",null,null,null,null,{"$f":"SUM(H5:I10)","v":0}]
[null,null,null,null,null,null,null,{"$f":"ISTEXT(B5)*1","v":0},{"$f":"ISTEXT(C5)*1","v":0}]
[null,"Bedøm konsekvenserne"]
[null,"Heldige konsekvenser","Uheldige konsekvenser"]
[null,null,null,null,null,null,null,{"$f":"ISTEXT(B8)*1","v":0},{"$f":"ISTEXT(C8)*1","v":0}]
[null,"Hvilke løsninger kan afhjælpe de negative konsekvenser "]
[null,null,null,null,null,null,null,{"$f":"ISTEXT(B10)*1","v":0}]

{"sheet":"Skitse1","index":36,"n_rows":30,"n_cols":14,"rows_kept":30,"cut":false,"hidden":true,"merged":[[13,1,13,7],[2,1,2,7],[3,1,3,7],[4,2,4,3],[5,1,5,7],[6,2,6,3],[7,1,7,7],[8,2,8,3],[9,1,9,7],[10,2,10,3],[11,1,11,7],[12,1,12,7],[19,1,19,2],[20,1,20,2],[21,1,21,2],[14,1,14,7],[15,1,15,7],[17,1,17,2],[18,1,18,2],[17,3,17,4],[17,5,17,6],[18,3,18,4],[18,5,18,6],[16,3,16,4],[16,5,16,6],[16,1,16,2],[19,3,19,4],[19,5,19,6],[20,3,20,4],[20,5,20,6],[21,3,21,4],[21,5,21,6],[29,1,29,7],[22,3,22,4],[23,3,23,4],[24,3,24,4],[24,5,24,6],[23,5,23,6],[22,5,22,6],[22,1,22,2],[23,1,23,2],[24,1,24,2]]}
[]
[null,null,null,null,null,null,"Udført:",{"$f":"IF(N17>0,IF(N17>5,2,1),0)","v":0}]
[null,"Formuler krav til produktet"]
[null,"Giv point for, hvor godt produktet udfylder dine krav (du må give 1, 3, 9)"]
[null,1,{"$f":"Fysisk_produkt!C6","v":" "},null,null,2,{"$f":"Fysisk_produkt!G6","v":" "},null,null,null,null,null,null,{"$f":"ISNUMBER(E5)*ISNUMBER(H5)","v":0}]
[null,"Krav til produktets kvalitet (overflader, materialer, holdbarhed),"]
[null,3,{"$f":"Fysisk_produkt!C8","v":" "},null,null,4,{"$f":"Fysisk_produkt!G8","v":" "},null,null,null,null,null,null,{"$f":"ISNUMBER(E7)*ISNUMBER(H7)","v":0}]
[null,"Krav til produktets design (overflader, farver, organiske former, formsprog)"]
[null,5,{"$f":"Fysisk_produkt!C10","v":" "},null,null,6,{"$f":"Fysisk_produkt!G10","v":" "},null,null,null,null,null,null,0]
[null,"Produktionsvenlighed (proceskendskab, rådighed over værktøj, egne evner, tidsforbrug)"]
[null,7,{"$f":"Fysisk_produkt!C12","v":" "},null,null,8,{"$f":"Fysisk_produkt!G12","v":" "},null,null,null,null,null,null,0]
[null,"Skitse af produkt, der udfylder dine krav"]
[null,null,null,null,null,null,null,null,null,null,null,null,null,{"$f":"ISTEXT(B13)*1","v":0}]
[null,"Beskrivelse af produktet"]
[null,null,null,null,null,null,null,null,null,null,null,null,null,{"$f":"ISTEXT(B15)*1","v":0}]
[null,"Grafisk fremstilling af (Krav point * Opfyldelsespoint)"]
[null,null,null,"Vægt",null,"Point",null,"V*P",null,null,null,null,null,{"$f":"SUM(N5:N15)","v":0}]
[null,{"$f":"Fysisk_produkt!C6","v":" "},null,{"$f":"IF(ISNUMBER(Fysisk_produkt!E6),Fysisk_produkt!E6,0)","v":0},null,{"$f":"IF(ISNUMBER(E5),E5,0)","v":0},null,{"$f":"D18*F18","v":0}]
[null,{"$f":"Fysisk_produkt!G6","v":" "},null,{"$f":"IF(ISNUMBER(Fysisk_produkt!H6),Fysisk_produkt!H6,0)","v":0},null,{"$f":"IF(ISNUMBER(G5),G5,0)","v":0},null,{"$f":"D19*F19","v":0}]
[null,{"$f":"Fysisk_produkt!C8","v":" "},null,{"$f":"IF(ISNUMBER(Fysisk_produkt!E8),Fysisk_produkt!E8,0)","v":0},null,{"$f":"IF(ISNUMBER(E7),E7,0)","v":0},null,0]
[null,{"$f":"Fysisk_produkt!G8","v":" "},null,{"$f":"IF(ISNUMBER(Fysisk_produkt!H8),Fysisk_produkt!H8,0)","v":0},null,{"$f":"IF(ISNUMBER(G7),G7,0)","v":0},null,0]
[null,{"$f":"Fysisk_produkt!C10","v":" "},null,{"$f":"IF(ISNUMBER(Fysisk_produkt!E10),Fysisk_produkt!E10,0)","v":0},null,0,null,0]
[null,{"$f":"Fysisk_produkt!G10","v":" "},null,{"$f":"IF(ISNUMBER(Fysisk_produkt!H10),Fysisk_produkt!H10,0)","v":0},null,{"$f":"IF(ISNUMBER(G9),G9,0)","v":0},null,0]
[null,{"$f":"Fysisk_produkt!C12","v":" "},null,{"$f":"IF(ISNUMBER(Fysisk_produkt!E12),Fysisk_produkt!E12,0)","v":0},null,0,null,0]
[null,{"$f":"Fysisk_produkt!G12","v":" "},null,{"$f":"IF(ISNUMBER(Fysisk_produkt!H12),Fysisk_produkt!H12,0)","v":0},null,{"$f":"IF(ISNUMBER(G11),G11,0)","v":0},null,0]
[null,null,null,null,null,null,"Samlet score",{"$f":"SUM(H18:H25)","v":0}]
[]
[]
[]
[null,"Indsæt en graf her, der viser scoren fordelt på kravene"]

{"sheet":"Skitse2","index":37,"n_rows":30,"n_cols":14,"rows_kept":30,"cut":false,"hidden":true,"merged":[[7,1,7,7],[2,1,2,7],[3,1,3,7],[4,2,4,3],[5,1,5,7],[6,2,6,3],[17,1,17,2],[17,3,17,4],[17,5,17,6],[8,2,8,3],[9,1,9,7],[10,2,10,3],[11,1,11,7],[12,1,12,7],[13,1,13,7],[14,1,14,7],[15,1,15,7],[16,1,16,2],[16,3,16,4],[16,5,16,6],[18,1,18,2],[18,3,18,4],[18,5,18,6],[19,1,19,2],[19,3,19,4],[19,5,19,6],[20,1,20,2],[20,3,20,4],[20,5,20,6],[21,1,21,2],[21,3,21,4],[21,5,21,6],[24,1,24,2],[24,3,24,4],[24,5,24,6],[29,1,29,7],[22,1,22,2],[22,3,22,4],[22,5,22,6],[23,1,23,2],[23,3,23,4],[23,5,23,6]]}
[]
[null,null,null,null,null,null,"Udført:",{"$f":"IF(N17>0,IF(N17>5,2,1),0)","v":0}]
[null,"Formuler krav til produktet"]
[null,"Giv point for, hvor godt produktet udfylder dine krav (du må give 1, 3, 9)"]
[null,1,{"$f":"Fysisk_produkt!C6","v":" "},null,null,2,{"$f":"Fysisk_produkt!G6","v":" "},null,null,null,null,null,null,{"$f":"ISNUMBER(E5)*ISNUMBER(H5)","v":0}]
[null,"Krav til produktets kvalitet (overflader, materialer, holdbarhed),"]
[null,3,{"$f":"Fysisk_produkt!C8","v":" "},null,null,4,{"$f":"Fysisk_produkt!G8","v":" "},null,null,null,null,null,null,{"$f":"ISNUMBER(E7)*ISNUMBER(H7)","v":0}]
[null,"Krav til produktets design (overflader, farver, organiske former, formsprog)"]
[null,5,{"$f":"Fysisk_produkt!C10","v":" "},null,null,6,{"$f":"Fysisk_produkt!G10","v":" "},null,null,null,null,null,null,0]
[null,"Produktionsvenlighed (proceskendskab, rådighed over værktøj, egne evner, tidsforbrug)"]
[null,7,{"$f":"Fysisk_produkt!C12","v":" "},null,null,8,{"$f":"Fysisk_produkt!G12","v":" "},null,null,null,null,null,null,0]
[null,"Skitse af produkt, der udfylder dine krav"]
[null,null,null,null,null,null,null,null,null,null,null,null,null,{"$f":"ISTEXT(B13)*1","v":0}]
[null,"Beskrivelse af produktet"]
[null,null,null,null,null,null,null,null,null,null,null,null,null,{"$f":"ISTEXT(B15)*1","v":0}]
[null,"Grafisk fremstilling af (Krav point * Opfyldelsespoint)"]
[null,null,null,"Vægt",null,"Point",null,"V*P",null,null,null,null,null,{"$f":"SUM(N5:N15)","v":0}]
[null,{"$f":"Fysisk_produkt!C6","v":" "},null,{"$f":"IF(ISNUMBER(Fysisk_produkt!E6),Fysisk_produkt!E6,0)","v":0},null,{"$f":"IF(ISNUMBER(E5),E5,0)","v":0},null,{"$f":"D18*F18","v":0}]
[null,{"$f":"Fysisk_produkt!G6","v":" "},null,{"$f":"IF(ISNUMBER(Fysisk_produkt!H6),Fysisk_produkt!H6,0)","v":0},null,{"$f":"IF(ISNUMBER(G5),G5,0)","v":0},null,{"$f":"D19*F19","v":0}]
[null,{"$f":"Fysisk_produkt!C8","v":" "},null,{"$f":"IF(ISNUMBER(Fysisk_produkt!E8),Fysisk_produkt!E8,0)","v":0},null,{"$f":"IF(ISNUMBER(E7),E7,0)","v":0},null,0]
[null,{"$f":"Fysisk_produkt!G8","v":" "},null,{"$f":"IF(ISNUMBER(Fysisk_produkt!H8),Fysisk_produkt!H8,0)","v":0},null,{"$f":"IF(ISNUMBER(G7),G7,0)","v":0},null,0]
[null,{"$f":"Fysisk_produkt!C10","v":" "},null,{"$f":"IF(ISNUMBER(Fysisk_produkt!E10),Fysisk_produkt!E10,0)","v":0},null,0,null,0]
[null,{"$f":"Fysisk_produkt!G10","v":" "},null,{"$f":"IF(ISNUMBER(Fysisk_produkt!H10),Fysisk_produkt!H10,0)","v":0},null,{"$f":"IF(ISNUMBER(G9),G9,0)","v":0},null,0]
[null,{"$f":"Fysisk_produkt!C12","v":" "},null,{"$f":"IF(ISNUMBER(Fysisk_produkt!E12),Fysisk_produkt!E12,0)","v":0},null,0,null,0]
[null,{"$f":"Fysisk_produkt!G12","v":" "},null,{"$f":"IF(ISNUMBER(Fysisk_produkt!H12),Fysisk_produkt!H12,0)","v":0},null,{"$f":"IF(ISNUMBER(G11),G11,0)","v":0},null,0]
[null,null,null,null,null,null,"Samlet score",{"$f":"SUM(H18:H25)","v":0}]
[]
[]
[]
[null,"Indsæt en graf her, der viser scoren fordelt på kravene"]

{"sheet":"Skitse3","index":38,"n_rows":30,"n_cols":14,"rows_kept":30,"cut":false,"hidden":true,"merged":[[7,1,7,7],[2,1,2,7],[3,1,3,7],[4,2,4,3],[5,1,5,7],[6,2,6,3],[17,1,17,2],[17,3,17,4],[17,5,17,6],[8,2,8,3],[9,1,9,7],[10,2,10,3],[11,1,11,7],[12,1,12,7],[13,1,13,7],[14,1,14,7],[15,1,15,7],[16,1,16,2],[16,3,16,4],[16,5,16,6],[18,1,18,2],[18,3,18,4],[18,5,18,6],[19,1,19,2],[19,3,19,4],[19,5,19,6],[20,1,20,2],[20,3,20,4],[20,5,20,6],[21,1,21,2],[21,3,21,4],[21,5,21,6],[24,1,24,2],[24,3,24,4],[24,5,24,6],[29,1,29,7],[22,1,22,2],[22,3,22,4],[22,5,22,6],[23,1,23,2],[23,3,23,4],[23,5,23,6]]}
[]
[null,null,null,null,null,null,"Udført:",{"$f":"IF(N17>0,IF(N17>5,2,1),0)","v":0}]
[null,"Formuler krav til produktet"]
[null,"Giv point for, hvor godt produktet udfylder dine krav (du må give 1, 3, 9)"]
[null,1,{"$f":"Fysisk_produkt!C6","v":" "},null,null,2,{"$f":"Fysisk_produkt!G6","v":" "},null,null,null,null,null,null,{"$f":"ISNUMBER(E5)*ISNUMBER(H5)","v":0}]
[null,"Krav til produktets kvalitet (overflader, materialer, holdbarhed),"]
[null,3,{"$f":"Fysisk_produkt!C8","v":" "},null,null,4,{"$f":"Fysisk_produkt!G8","v":" "},null,null,null,null,null,null,{"$f":"ISNUMBER(E7)*ISNUMBER(H7)","v":0}]
[null,"Krav til produktets design (overflader, farver, organiske former, formsprog)"]
[null,5,{"$f":"Fysisk_produkt!C10","v":" "},null,null,6,{"$f":"Fysisk_produkt!G10","v":" "},null,null,null,null,null,null,0]
[null,"Produktionsvenlighed (proceskendskab, rådighed over værktøj, egne evner, tidsforbrug)"]
[null,7,{"$f":"Fysisk_produkt!C12","v":" "},null,null,8,{"$f":"Fysisk_produkt!G12","v":" "},null,null,null,null,null,null,0]
[null,"Skitse af produkt, der udfylder dine krav"]
[null,null,null,null,null,null,null,null,null,null,null,null,null,{"$f":"ISTEXT(B13)*1","v":0}]
[null,"Beskrivelse af produktet"]
[null,null,null,null,null,null,null,null,null,null,null,null,null,{"$f":"ISTEXT(B15)*1","v":0}]
[null,"Grafisk fremstilling af (Krav point * Opfyldelsespoint)"]
[null,null,null,"Vægt",null,"Point",null,"V*P",null,null,null,null,null,{"$f":"SUM(N5:N15)","v":0}]
[null,{"$f":"Fysisk_produkt!C6","v":" "},null,{"$f":"IF(ISNUMBER(Fysisk_produkt!E6),Fysisk_produkt!E6,0)","v":0},null,{"$f":"IF(ISNUMBER(E5),E5,0)","v":0},null,{"$f":"D18*F18","v":0}]
[null,{"$f":"Fysisk_produkt!G6","v":" "},null,{"$f":"IF(ISNUMBER(Fysisk_produkt!H6),Fysisk_produkt!H6,0)","v":0},null,{"$f":"IF(ISNUMBER(G5),G5,0)","v":0},null,{"$f":"D19*F19","v":0}]
[null,{"$f":"Fysisk_produkt!C8","v":" "},null,{"$f":"IF(ISNUMBER(Fysisk_produkt!E8),Fysisk_produkt!E8,0)","v":0},null,{"$f":"IF(ISNUMBER(E7),E7,0)","v":0},null,0]
[null,{"$f":"Fysisk_produkt!G8","v":" "},null,{"$f":"IF(ISNUMBER(Fysisk_produkt!H8),Fysisk_produkt!H8,0)","v":0},null,{"$f":"IF(ISNUMBER(G7),G7,0)","v":0},null,0]
[null,{"$f":"Fysisk_produkt!C10","v":" "},null,{"$f":"IF(ISNUMBER(Fysisk_produkt!E10),Fysisk_produkt!E10,0)","v":0},null,0,null,0]
[null,{"$f":"Fysisk_produkt!G10","v":" "},null,{"$f":"IF(ISNUMBER(Fysisk_produkt!H10),Fysisk_produkt!H10,0)","v":0},null,{"$f":"IF(ISNUMBER(G9),G9,0)","v":0},null,0]
[null,{"$f":"Fysisk_produkt!C12","v":" "},null,{"$f":"IF(ISNUMBER(Fysisk_produkt!E12),Fysisk_produkt!E12,0)","v":0},null,0,null,0]
[null,{"$f":"Fysisk_produkt!G12","v":" "},null,{"$f":"IF(ISNUMBER(Fysisk_produkt!H12),Fysisk_produkt!H12,0)","v":0},null,{"$f":"IF(ISNUMBER(G11),G11,0)","v":0},null,0]
[null,null,null,null,null,null,"Samlet score",{"$f":"SUM(H18:H25)","v":0}]
[]
[]
[]
[null,"Indsæt en graf, her der viser scoren fordelt på kravene"]

{"sheet":"Helhedsvurdering","index":39,"n_rows":10,"n_cols":7,"rows_kept":10,"cut":false,"hidden":true,"merged":[]}
[]
[null,"Udført:",{"$f":"IF(G10>0,IF(G10>2,2,1),0)","v":0}]
[null,"Teknologivurdering som helhedsvurdering"]
[null,"Beskriv de funktioner, teknologien har i forhold til brugerens og samfundets behov"]
[null,null,null,null,null,null,{"$f":"ISTEXT(B5)*1","v":0}]
[null,"Foreslå forskellige teknologier, der dækker disse behov"]
[null,null,null,null,null,null,{"$f":"ISTEXT(B7)*1","v":0}]
[null,"Hvilke fordele og ulemper er der ved de forskellige teknologier? "]
[null,null,null,null,null,null,0]
[null,null,null,null,null,null,{"$f":"SUM(G5:G9)","v":0}]

{"sheet":"Konstruktiv","index":40,"n_rows":16,"n_cols":8,"rows_kept":16,"cut":false,"hidden":true,"merged":[[11,1,11,2],[12,1,12,2],[13,1,13,2],[2,1,2,2],[3,1,3,2],[4,1,4,2],[6,1,6,2],[7,1,7,2],[10,1,10,2]]}
[]
[null,"Udført:",{"$f":"IF(H16>0,IF(H16>4,2,1),0)","v":0}]
[null,"Teknologivurdering som konstruktiv vurdering "]
[null,"(tag udgangspunkt i muligheden for skabe en bedre løsning for samfundet ved samarbejde med aktører)"]
[null,"Analyser problemstillingen"]
[null,null,null,null,null,null,null,{"$f":"ISTEXT(B6)*ISTEXT(C6)","v":0}]
[null,"Angiv forskellige løsninger til problemet"]
[null,null,null,null,null,null,null,{"$f":"ISTEXT(B8)*1","v":0}]
[null,"Positive konsekvenser","Negative konsekvenser"]
[null,null,null,null,null,null,null,{"$f":"ISTEXT(B10)*ISTEXT(C10)","v":0}]
[null,"Efter diskussion med aktører har vi fundet, at følgende skal revideres på vores produkt "]
[null,null,null,null,null,null,null,{"$f":"ISTEXT(B12)*1","v":0}]
[null,"Beskriv, hvordan ovennævnte forslag kan komme samfundet til gavn "]
[null,null,null,null,null,null,null,{"$f":"ISTEXT(B14)*1","v":0}]
[]
[null,null,null,null,null,null,null,{"$f":"SUM(H6:H14)","v":0}]

{"sheet":"Produktspecifikation","index":41,"n_rows":34,"n_cols":13,"rows_kept":34,"cut":false,"hidden":true,"merged":[[13,1,13,6],[2,1,2,6],[3,1,3,6],[4,2,4,6],[5,2,5,6],[6,1,6,6],[7,2,7,6],[8,2,8,6],[9,1,9,6],[10,2,10,6],[11,2,11,6],[12,1,12,6],[24,1,24,3],[22,4,24,6],[14,1,14,6],[15,1,15,6],[16,1,16,6],[17,1,17,6],[18,1,18,2],[18,3,18,4],[19,1,19,6],[20,1,20,6],[21,1,21,6],[22,1,22,3],[23,1,23,3],[25,1,25,3],[26,1,26,3],[27,1,27,3],[25,4,27,6],[28,1,28,3],[30,1,30,3],[28,4,30,6],[31,1,31,3],[32,1,32,3],[33,1,33,3],[31,4,33,6],[29,1,29,3]]}
[]
[null,null,null,null,null,"Udført:",{"$f":"IF(M34>0,IF(M34>14,2,1),0)","v":0}]
[null,"Opstil detaljerede krav til produktløsningen på baggrund af de krav, der blev stillet til det generelle produkt i afsnit 5"]
[null,"Beskriv krav til produktets funktion (hårde/bløde) krav"]
[null,1,null,null,null,null,null,null,null,null,null,null,{"$f":"ISTEXT(C5)*1","v":0}]
[null,2,null,null,null,null,null,null,null,null,null,null,{"$f":"ISTEXT(C6)*1","v":0}]
[null,"Beskriv krav til produktets design (hårde/bløde) krav"]
[null,1,null,null,null,null,null,null,null,null,null,null,0]
[null,2,null,null,null,null,null,null,null,null,null,null,0]
[null,"Beskriv krav til produktets miljøprofil (hårde/bløde) krav"]
[null,1,null,null,null,null,null,null,null,null,null,null,0]
[null,2,null,null,null,null,null,null,null,null,null,null,0]
[null,"Undersøg betingelserne for fremstilling af produktløsning"]
[null,"Hvilke fremstillingsmetoder har I rådighed over (hvor er erstatninger nødvendige)"]
[null,null,null,null,null,null,null,null,null,null,null,null,{"$f":"ISTEXT(B15)*1","v":0}]
[null,"Hvilke materialer har I rådighed over (hvor er erstatninger nødvendige)"]
[null,null,null,null,null,null,null,null,null,null,null,null,0]
[null,"Benchmarking (vælg et produkt, du vil hente vigtige egenskaber/inspiration fra)"]
[null,"Valgt produkt",null,null,null,"Fabrikat",null,null,null,null,null,null,{"$f":"ISTEXT(D19)*ISTEXT(G19)","v":0}]
[null,"Beskriv de egenskaber ved produktet, du vil lade dig inspirere af"]
[null,null,null,null,null,null,null,null,null,null,null,null,{"$f":"ISTEXT(B21)*1","v":0}]
[null,"Opstil produktspecifikation",null,null,null,null,null,null,null,null,null,null,0]
[null,"Dimensioner ",null,null,null,null,null,null,null,null,null,null,{"$f":"ISTEXT(E23)*1","v":0}]
[null,"mm, mL, kg, andet"]
[]
[null,"Designkrav",null,null,null,null,null,null,null,null,null,null,{"$f":"ISTEXT(E26)*1","v":0}]
[null,"Farver, formudtryk "]
[]
[null,"Ydelse",null,null,null,null,null,null,null,null,null,null,{"$f":"ISTEXT(E29)*1","v":0}]
[null,"(Køre 50 km/L benzin)"]
[]
[null,"Service/miljøkrav",null,null,null,null,null,null,null,null,null,null,{"$f":"ISTEXT(E32)*1","v":0}]
[null,"(Olieskift pr. 30.000)"]
[null,null,null,null,null,null,null,null,null,null,null,null,{"$f":"SUM(M5:M32)","v":0}]

{"sheet":"Fysisk_konstruktion","index":42,"n_rows":14,"n_cols":14,"rows_kept":14,"cut":false,"hidden":true,"merged":[[17,1,17,2],[18,1,18,2],[19,1,19,2],[2,1,2,8],[4,2,4,7],[5,2,5,7],[6,2,6,7],[7,2,7,7],[25,1,25,2],[3,2,3,8],[22,1,22,2],[23,1,23,2],[24,1,24,2],[9,2,9,7],[10,1,10,8],[11,1,11,8],[12,1,12,8],[8,2,8,7],[13,1,13,2],[14,1,14,2],[20,1,20,2],[21,1,21,2],[15,1,15,2],[16,1,16,2]]}
[]
[null,null,null,null,null,null,null,"Udført:",{"$f":"IF(N5>0,IF(N5>4,2,1),0)","v":0}]
[null,"Beskriv, hvilke enkeltdele produktet ender med at bestå af"]
[null,null,"Beskriv delen i en linje og gå derefter til filen med linket til højre"]
[null,"Del 1","Stikben, der skal gå i stikkontakten, skal laves runde med rigtig afstand og diameter",null,null,null,null,null,null,{"$f":"'Del1'!C2","v":0},null,null,null,{"$f":"SUMIF(J5:J10,\"=2\")","v":0}]
[null,"Del 2"," ",null,null,null,null,null,null,{"$f":"'Del2'!C3","v":0}]
[null,"Del 3"," ",null,null,null,null,null,null,{"$f":"'Del3'!C4","v":0}]
[null,"Del 4"," ",null,null,null,null,null,null,{"$f":"'Del4'!C5","v":0}]
[null,"Del 5"," ",null,null,null,null,null,null,{"$f":"'Del5'!C6","v":0}]
[null,"Del 6"," ",null,null,null,null,null,null,{"$f":"'Del6'!C7","v":0},null,null,null,{"$f":"SUM(J5:J10)","v":0}]
[null,"Samlingstegning: med numre for hver del"]
[null,"Samlingstegningen kan være håndtegnet, skannet eller fotograferet ind"]
[null,"Materiale-/stykliste "]
[null,"Beskrivelse",null,"Leverandør","Varenummer","Antal","Pris pr. enhed","Andel","pris"]

{"sheet":"Del1","index":43,"n_rows":22,"n_cols":6,"rows_kept":22,"cut":false,"hidden":true,"merged":[[17,1,17,2],[18,1,18,2],[19,1,19,2],[3,1,3,2],[2,1,2,2],[4,2,6,2],[7,2,10,2],[11,2,13,2],[14,2,15,2],[16,1,16,2]]}
[]
[null,"Udført:",{"$f":"IF(F22>0,IF(F22>4,2,1),0)","v":0}]
[null,"Beskriv nedenstående enkeltdel:"]
[null,{"$f":"Fysisk_konstruktion!C5","v":"Stikben, der skal gå i stikkontakten, skal laves runde med rigtig afstand og diameter"}]
[null,"Hvilket materiale"]
[null,"Skal enkeltdelen fremstilles i  ",null,null,null,{"$f":"ISTEXT(C5)*1","v":0}]
[null,"Stål, krydsfiner, lister, elektronik"]
[null,"Hvilke samlinger"]
[null,"Har enkeltdelen med andre dele,",null,null,null,{"$f":"ISTEXT(C8)*1","v":0}]
[null,"Og hvordan skal de udføres"]
[null,"Skruer, søm , nitter, svejsninger, lim,"]
[null,"Hvilke grovprocesser",null,null,null,{"$f":"ISTEXT(C12)*1","v":0}]
[null,"Bukning, klipning, boring, skæring…"]
[]
[null,"Hvilke overfladebehandlinger",null,null,null,{"$f":"ISTEXT(C15)*1","v":0}]
[null,"Slibning, maling, bejdsning, lakering"]
[null,"Arbejdstegning : med mål og tegningshovede"]
[null,"Arbejdstegningen kan være fra et tegneprogram, eller den kan være håndtegnet og skannet eller fotograferet ind"]
[null,"Beskrivelse af enkeltdel "]
[null,null,null,null,null,{"$f":"ISTEXT(B20)*1","v":0}]
[]
[null,null,null,null,null,{"$f":"SUM(F1:F20)","v":0}]

{"sheet":"Del2","index":44,"n_rows":22,"n_cols":6,"rows_kept":22,"cut":false,"hidden":true,"merged":[[16,1,16,2],[17,1,17,2],[18,1,18,2],[19,1,19,2],[2,1,2,2],[3,1,3,2],[4,2,6,2],[7,2,10,2],[11,2,13,2],[14,2,15,2]]}
[]
[null,"Udført:",{"$f":"IF(F22>0,IF(F22>4,2,1),0)","v":0}]
[null,"Beskriv nedenstående enkeltdel:"]
[null,{"$f":"Fysisk_konstruktion!C6","v":" "}]
[null,"Hvilket materiale"]
[null,"Skal enkeltdelen fremstilles i  ",null,null,null,{"$f":"ISTEXT(C5)*1","v":0}]
[null,"Stål, krydsfiner, lister, elektronik"]
[null,"Hvilke samlinger"]
[null,"Har enkeltdelen med andre dele,",null,null,null,{"$f":"ISTEXT(C8)*1","v":0}]
[null,"Og hvordan skal de udføres"]
[null,"Skruer, søm , nitter, svejsninger, lim,"]
[null,"Hvilke grovprocesser",null,null,null,{"$f":"ISTEXT(C12)*1","v":0}]
[null,"Bukning, klipning, boring, skæring…"]
[]
[null,"Hvilke overfladebehandlinger",null,null,null,{"$f":"ISTEXT(C15)*1","v":0}]
[null,"Slibning, maling, bejdsning, lakering"]
[null,"Arbejdstegning : med mål og tegningshovede"]
[null,"Arbejdstegningen kan være fra et tegneprogram, eller den kan være håndtegnet og skannet eller fotograferet ind"]
[null,"Beskrivelse af enkeltdel "]
[null,null,null,null,null,{"$f":"ISTEXT(B20)*1","v":0}]
[]
[null,null,null,null,null,{"$f":"SUM(F1:F20)","v":0}]

{"sheet":"Del3","index":45,"n_rows":22,"n_cols":6,"rows_kept":22,"cut":false,"hidden":true,"merged":[[16,1,16,2],[17,1,17,2],[18,1,18,2],[19,1,19,2],[2,1,2,2],[3,1,3,2],[4,2,6,2],[7,2,10,2],[11,2,13,2],[14,2,15,2]]}
[]
[null,"Udført:",{"$f":"IF(F22>0,IF(F22>4,2,1),0)","v":0}]
[null,"Beskriv nedenstående enkeltdel:"]
[null,{"$f":"Fysisk_konstruktion!C7","v":" "}]
[null,"Hvilket materiale"]
[null,"Skal enkeltdelen fremstilles i  ",null,null,null,{"$f":"ISTEXT(C5)*1","v":0}]
[null,"Stål, krydsfiner, lister, elektronik"]
[null,"Hvilke samlinger"]
[null,"Har enkeltdelen med andre dele,",null,null,null,{"$f":"ISTEXT(C8)*1","v":0}]
[null,"Og hvordan skal de udføres"]
[null,"Skruer, søm , nitter, svejsninger, lim,"]
[null,"Hvilke grovprocesser",null,null,null,{"$f":"ISTEXT(C12)*1","v":0}]
[null,"Bukning, klipning, boring, skæring…"]
[]
[null,"Hvilke overfladebehandlinger",null,null,null,{"$f":"ISTEXT(C15)*1","v":0}]
[null,"Slibning, maling, bejdsning, lakering"]
[null,"Arbejdstegning : med mål og tegningshovede"]
[null,"Arbejdstegningen kan være fra et tegneprogram, eller den kan være håndtegnet og skannet eller fotograferet ind"]
[null,"Beskrivelse af enkeltdel "]
[null,null,null,null,null,{"$f":"ISTEXT(B20)*1","v":0}]
[]
[null,null,null,null,null,{"$f":"SUM(F1:F20)","v":0}]

{"sheet":"Del4","index":46,"n_rows":22,"n_cols":6,"rows_kept":22,"cut":false,"hidden":true,"merged":[[16,1,16,2],[17,1,17,2],[18,1,18,2],[19,1,19,2],[2,1,2,2],[3,1,3,2],[4,2,6,2],[7,2,10,2],[11,2,13,2],[14,2,15,2]]}
[]
[null,"Udført:",{"$f":"IF(F22>0,IF(F22>4,2,1),0)","v":0}]
[null,"Beskriv nedenstående enkeltdel:"]
[null,{"$f":"Fysisk_konstruktion!C8","v":" "}]
[null,"Hvilket materiale"]
[null,"Skal enkeltdelen fremstilles i  ",null,null,null,{"$f":"ISTEXT(C5)*1","v":0}]
[null,"Stål, krydsfiner, lister, elektronik"]
[null,"Hvilke samlinger"]
[null,"Har enkeltdelen med andre dele,",null,null,null,{"$f":"ISTEXT(C8)*1","v":0}]
[null,"Og hvordan skal de udføres"]
[null,"Skruer, søm , nitter, svejsninger, lim,"]
[null,"Hvilke grovprocesser",null,null,null,{"$f":"ISTEXT(C12)*1","v":0}]
[null,"Bukning, klipning, boring, skæring…"]
[]
[null,"Hvilke overfladebehandlinger",null,null,null,{"$f":"ISTEXT(C15)*1","v":0}]
[null,"Slibning, maling, bejdsning, lakering"]
[null,"Arbejdstegning : med mål og tegningshovede"]
[null,"Arbejdstegningen kan være fra et tegneprogram, eller den kan være håndtegnet og skannet eller fotograferet ind"]
[null,"Beskrivelse af enkeltdel "]
[null,null,null,null,null,{"$f":"ISTEXT(B20)*1","v":0}]
[]
[null,null,null,null,null,{"$f":"SUM(F1:F20)","v":0}]

{"sheet":"Del5","index":47,"n_rows":22,"n_cols":6,"rows_kept":22,"cut":false,"hidden":true,"merged":[[16,1,16,2],[17,1,17,2],[18,1,18,2],[19,1,19,2],[2,1,2,2],[3,1,3,2],[4,2,6,2],[7,2,10,2],[11,2,13,2],[14,2,15,2]]}
[]
[null,"Udført:",{"$f":"IF(F22>0,IF(F22>4,2,1),0)","v":0}]
[null,"Beskriv nedenstående enkeltdel:"]
[null,{"$f":"Fysisk_konstruktion!C9","v":" "}]
[null,"Hvilket materiale"]
[null,"Skal enkeltdelen fremstilles i  ",null,null,null,{"$f":"ISTEXT(C5)*1","v":0}]
[null,"Stål, krydsfiner, lister, elektronik"]
[null,"Hvilke samlinger"]
[null,"Har enkeltdelen med andre dele,",null,null,null,{"$f":"ISTEXT(C8)*1","v":0}]
[null,"Og hvordan skal de udføres"]
[null,"Skruer, søm , nitter, svejsninger, lim,"]
[null,"Hvilke grovprocesser",null,null,null,{"$f":"ISTEXT(C12)*1","v":0}]
[null,"Bukning, klipning, boring, skæring…"]
[]
[null,"Hvilke overfladebehandlinger",null,null,null,{"$f":"ISTEXT(C15)*1","v":0}]
[null,"Slibning, maling, bejdsning, lakering"]
[null,"Arbejdstegning : med mål og tegningshovede"]
[null,"Arbejdstegningen kan være fra et tegneprogram, eller den kan være håndtegnet og skannet eller fotograferet ind"]
[null,"Beskrivelse af enkeltdel "]
[null,null,null,null,null,{"$f":"ISTEXT(B20)*1","v":0}]
[]
[null,null,null,null,null,{"$f":"SUM(F1:F20)","v":0}]

{"sheet":"Del6","index":48,"n_rows":22,"n_cols":6,"rows_kept":22,"cut":false,"hidden":true,"merged":[[16,1,16,2],[17,1,17,2],[18,1,18,2],[19,1,19,2],[2,1,2,2],[3,1,3,2],[4,2,6,2],[7,2,10,2],[11,2,13,2],[14,2,15,2]]}
[]
[null,"Udført:",{"$f":"IF(F22>0,IF(F22>4,2,1),0)","v":0}]
[null,"Beskriv nedenstående enkeltdel:"]
[null,{"$f":"Fysisk_konstruktion!C10","v":" "}]
[null,"Hvilket materiale"]
[null,"Skal enkeltdelen fremstilles i  ",null,null,null,{"$f":"ISTEXT(C5)*1","v":0}]
[null,"Stål, krydsfiner, lister, elektronik"]
[null,"Hvilke samlinger"]
[null,"Har enkeltdelen med andre dele,",null,null,null,{"$f":"ISTEXT(C8)*1","v":0}]
[null,"Og hvordan skal de udføres"]
[null,"Skruer, søm , nitter, svejsninger, lim,"]
[null,"Hvilke grovprocesser",null,null,null,{"$f":"ISTEXT(C12)*1","v":0}]
[null,"Bukning, klipning, boring, skæring…"]
[]
[null,"Hvilke overfladebehandlinger",null,null,null,{"$f":"ISTEXT(C15)*1","v":0}]
[null,"Slibning, maling, bejdsning, lakering"]
[null,"Arbejdstegning : med mål og tegningshovede"]
[null,"Arbejdstegningen kan være fra et tegneprogram, eller den kan være håndtegnet og skannet eller fotograferet ind"]
[null,"Beskrivelse af enkeltdel "]
[null,null,null,null,null,{"$f":"ISTEXT(B20)*1","v":0}]
[]
[null,null,null,null,null,{"$f":"SUM(F1:F20)","v":0}]

{"sheet":"Fremstilling","index":49,"n_rows":39,"n_cols":20,"rows_kept":39,"cut":false,"hidden":true,"merged":[[8,1,8,2],[8,4,8,5],[8,6,8,7],[8,8,8,9],[2,1,2,10],[3,3,3,10],[4,3,4,4],[4,5,4,6],[4,8,4,10],[5,3,5,4],[5,5,5,6],[5,8,5,10],[6,3,6,4],[6,5,6,6],[6,8,6,10],[7,3,7,7],[7,8,7,9],[14,1,14,2],[14,4,14,5],[14,6,14,7],[14,8,14,9],[9,3,9,10],[10,3,10,4],[10,5,10,6],[10,8,10,10],[11,3,11,4],[11,5,11,6],[11,8,11,10],[12,3,12,4],[12,5,12,6],[12,8,12,10],[13,3,13,7],[13,8,13,9],[20,1,20,2],[20,4,20,5],[20,6,20,7],[20,8,20,9],[15,3,15,10],[16,3,16,4],[16,5,16,6],[16,8,16,10],[17,3,17,4],[17,5,17,6],[17,8,17,10],[18,3,18,4],[18,5,18,6],[18,8,18,10],[19,3,19,7],[19,8,19,9],[26,1,26,2],[26,4,26,5],[26,6,26,7],[26,8,26,9],[21,3,21,10],[22,3,22,4],[22,5,22,6],[22,8,22,10],[23,3,23,4],[23,5,23,6],[23,8,23,10],[24,3,24,4],[24,5,24,6],[24,8,24,10],[25,3,25,7],[25,8,25,9],[32,1,32,2],[32,4,32,5],[32,6,32,7],[32,8,32,9],[27,3,27,10],[28,3,28,4],[28,5,28,6],[28,8,28,10],[29,3,29,4],[29,5,29,6],[29,8,29,10],[30,3,30,4],[30,5,30,6],[30,8,30,10],[31,3,31,7],[31,8,31,9],[36,1,36,10],[37,1,37,10],[33,1,33,7],[33,8,33,10],[34,1,34,7],[34,8,34,10],[35,1,35,7],[35,9,35,10]]}
[]
[null,null,null,null,null,null,null,null,null,"Udført:",{"$f":"IF(T39>0,IF(T39>4,2,1),0)","v":0}]
[null,"Fremstilling og test af øvestykker og enkeltdele"]
[null,"Del 1","Beskrivelse",null,null,null,null,null,null,null,null,null,null,null,null,null,{"$f":"ISTEXT(D4)*1","v":0}]
[null,"Processer ",1,2,null,3,null,4,5,null,null,null,null,null,null,null,{"$f":"IF(R5>3,1,0)","v":0},{"$f":"ISTEXT(C5)+ISTEXT(D5)+ISTEXT(F5)+ISTEXT(H5)+ISTEXT(I5)","v":0}]
[null,"Procestid","Sek","Sek",null,"Sek",null,"Sek","Sek",null,null,null,null,null,null,null,{"$f":"IF(R6>3,1,0)","v":0},{"$f":"ISNUMBER(C6)+ISNUMBER(D6)+ISNUMBER(F6)+ISNUMBER(H6)+ISNUMBER(I6)","v":0}]
[null,"Proceseffekt","Watt","Watt",null,"Watt",null,"Watt","Watt",null,null,null,null,null,null,null,{"$f":"IF(R7>3,1,0)","v":0},{"$f":"ISNUMBER(C7)+ISNUMBER(D7)+ISNUMBER(F7)+ISNUMBER(H7)+ISNUMBER(I7)","v":0}]
[null,"Øvestykker","Beskrivelse",null,null,null,null,null,"Antal",null,null,null,null,null,null,null,{"$f":"ISTEXT(D8)*ISNUMBER(K8)","v":0}]
[null,"Øvestykke godkendt",null,"Ja","nej",null,"Enkeltemne godkendt",null,"Ja",null,"nej"]
[null,"Del 2","Beskrivelse",null,null,null,null,null,null,null,null,null,null,null,null,null,{"$f":"ISTEXT(D10)*1","v":0}]
[null,"Processer ",1,2,null,3,null,4,5,null,null,null,null,null,null,null,{"$f":"IF(R11>3,1,0)","v":0},{"$f":"ISTEXT(C11)+ISTEXT(D11)+ISTEXT(F11)+ISTEXT(H11)+ISTEXT(I11)","v":0}]
[null,"Procestid","Sek","Sek",null,"Sek",null,"Sek","Sek",null,null,null,null,null,null,null,{"$f":"IF(R12>3,1,0)","v":0},{"$f":"ISNUMBER(C12)+ISNUMBER(D12)+ISNUMBER(F12)+ISNUMBER(H12)+ISNUMBER(I12)","v":0}]
[null,"Proceseffekt","Watt","Watt",null,"Watt",null,"Watt","Watt",null,null,null,null,null,null,null,{"$f":"IF(R13>3,1,0)","v":0},{"$f":"ISNUMBER(C13)+ISNUMBER(D13)+ISNUMBER(F13)+ISNUMBER(H13)+ISNUMBER(I13)","v":0}]
[null,"Øvestykker","Beskrivelse",null,null,null,null,null,"Antal",null,null,null,null,null,null,null,{"$f":"ISTEXT(D14)*ISNUMBER(K14)","v":0}]
[null,"Øvestykke godkendt",null,"Ja","nej",null,"Enkeltemne godkendt",null,"Ja",null,"nej"]
[null,"Del 3","Beskrivelse",null,null,null,null,null,null,null,null,null,null,null,null,null,{"$f":"ISTEXT(D16)*1","v":0}]
[null,"Processer ",1,2,null,3,null,4,5,null,null,null,null,null,null,null,{"$f":"IF(R17>3,1,0)","v":0},{"$f":"ISTEXT(C17)+ISTEXT(D17)+ISTEXT(F17)+ISTEXT(H17)+ISTEXT(I17)","v":0}]
[null,"Procestid","Sek","Sek",null,"Sek",null,"Sek","Sek",null,null,null,null,null,null,null,{"$f":"IF(R18>3,1,0)","v":0},{"$f":"ISNUMBER(C18)+ISNUMBER(D18)+ISNUMBER(F18)+ISNUMBER(H18)+ISNUMBER(I18)","v":0}]
[null,"Proceseffekt","Watt","Watt",null,"Watt",null,"Watt","Watt",null,null,null,null,null,null,null,{"$f":"IF(R19>3,1,0)","v":0},{"$f":"ISNUMBER(C19)+ISNUMBER(D19)+ISNUMBER(F19)+ISNUMBER(H19)+ISNUMBER(I19)","v":0}]
[null,"Øvestykker","Beskrivelse",null,null,null,null,null,"Antal",null,null,null,null,null,null,null,{"$f":"ISTEXT(D20)*ISNUMBER(K20)","v":0}]
[null,"Øvestykke godkendt",null,"Ja","nej",null,"Enkeltemne godkendt",null,"Ja",null,"nej"]
[null,"Del 4","Beskrivelse",null,null,null,null,null,null,null,null,null,null,null,null,null,{"$f":"ISTEXT(D22)*1","v":0}]
[null,"Processer ",1,2,null,3,null,4,5,null,null,null,null,null,null,null,{"$f":"IF(R23>3,1,0)","v":0},{"$f":"ISTEXT(C23)+ISTEXT(D23)+ISTEXT(F23)+ISTEXT(H23)+ISTEXT(I23)","v":0}]
[null,"Procestid","Sek","Sek",null,"Sek",null,"Sek","Sek",null,null,null,null,null,null,null,{"$f":"IF(R24>3,1,0)","v":0},{"$f":"ISNUMBER(C24)+ISNUMBER(D24)+ISNUMBER(F24)+ISNUMBER(H24)+ISNUMBER(I24)","v":0}]
[null,"Proceseffekt","Watt","Watt",null,"Watt",null,"Watt","Watt",null,null,null,null,null,null,null,{"$f":"IF(R25>3,1,0)","v":0},{"$f":"ISNUMBER(C25)+ISNUMBER(D25)+ISNUMBER(F25)+ISNUMBER(H25)+ISNUMBER(I25)","v":0}]
[null,"Øvestykker","Beskrivelse",null,null,null,null,null,"Antal",null,null,null,null,null,null,null,{"$f":"ISTEXT(D26)*ISNUMBER(K26)","v":0}]
[null,"Øvestykke godkendt",null,"Ja","nej",null,"Enkeltemne godkendt",null,"Ja",null,"nej"]
[null,"Del 5","Beskrivelse",null,null,null,null,null,null,null,null,null,null,null,null,null,{"$f":"ISTEXT(D28)*1","v":0}]
[null,"Processer ",1,2,null,3,null,4,5,null,null,null,null,null,null,null,{"$f":"IF(R29>3,1,0)","v":0},{"$f":"ISTEXT(C29)+ISTEXT(D29)+ISTEXT(F29)+ISTEXT(H29)+ISTEXT(I29)","v":0}]
[null,"Procestid","Sek","Sek",null,"Sek",null,"Sek","Sek",null,null,null,null,null,null,null,{"$f":"IF(R30>3,1,0)","v":0},{"$f":"ISNUMBER(C30)+ISNUMBER(D30)+ISNUMBER(F30)+ISNUMBER(H30)+ISNUMBER(I30)","v":0}]
[null,"Proceseffekt","Watt","Watt",null,"Watt",null,"Watt","Watt",null,null,null,null,null,null,null,{"$f":"IF(R31>3,1,0)","v":0},{"$f":"ISNUMBER(C31)+ISNUMBER(D31)+ISNUMBER(F31)+ISNUMBER(H31)+ISNUMBER(I31)","v":0}]
[null,"Øvestykker","Beskrivelse",null,null,null,null,null,"Antal",null,null,null,null,null,null,null,{"$f":"ISTEXT(D32)*ISNUMBER(K32)","v":0}]
[null,"Øvestykke godkendt",null,"Ja","nej",null,"Enkeltemne godkendt",null,"ja",null,"nej",null,null,null,null,null,null,null,null,{"$f":"SUM(Q4:Q32)","v":0}]
[null,"Konstruer ud fra jeres data en tidsplan/et gantt kort",null,null,null,null,null,null,null,null,null,{"$f":"Aktivitetsplan!K2","v":0}]
[null,"Konstruer ud fra jeres data en aktivitetsplan",null,null,null,null,null,null,null,null,null,{"$f":"Aktivitetsplan!K2","v":0}]
[null,"Opfylder produktet jeres kravspecifikation",null,null,null,null,null,null,"Ja","nej"]
[null,"Giv forslag til forbedringer"]
[null,null,null,null,null,null,null,null,null,null,null,null,null,null,null,null,{"$f":"ISTEXT(B38)*1","v":0},null,null,{"$f":"IF(T33>15,1,0)","v":0}]
[null,null,null,null,null,null,null,null,null,null,null,null,null,null,null,null,null,null,null,{"$f":"L34+L35+T38","v":0}]

{"sheet":"Aktivitetsplan","index":50,"n_rows":54,"n_cols":28,"rows_kept":54,"cut":false,"hidden":true,"merged":[[22,1,22,2],[22,7,25,8],[23,1,23,2],[24,1,24,2],[25,1,25,2],[8,1,8,8],[4,1,4,8],[20,1,20,3],[20,5,21,6],[20,7,21,8],[21,1,21,2],[15,1,15,8],[16,1,16,8],[17,1,17,8],[9,1,9,8],[10,1,10,8],[11,1,11,8],[12,1,12,8],[13,1,13,8],[14,1,14,8],[3,0,3,10],[3,11,3,27],[5,1,5,8],[6,1,6,8],[7,1,7,8]]}
[null,"Om denne plan:"]
[null,"Hvis planen kun indeholder arbejdsprocesser og tidsrum, er det en tidsplan.",null,null,null,null,null,null,null,"Udført:",{"$f":"IF(K54>0,IF(K54>4,2,1),0)","v":0}]
[null,"Hvis planen også indeholder angivelse af, hvilke personer der udfører processerne, er det en aktivitetsplan."]
["Tidsplan",null,null,null,null,null,null,null,null,null,null,"Tidsramme"]
["Post\nnr.","Beskrivelse",null,null,null,null,null,null,null,"Ansvarlig","Tids-\nType",1,2,3,4,5,6,7,8,9,10,11,12,13,14,15,16,17]
[1]
[2]
[3]
[4]
[5]
[6]
[7]
[8]
[9]
[10]
[11]
[12]
[13]
[]
[]
[null,"Ansvarlig",null,null,null,"Tids-type",null,"Tidsmål"]
[null,"Navn",null,"Initialer"]
[null,"Stefan Hedemann",null,"STH",null,"Transport","T"]
[null,"Lene Ros Irson",null,"LRI",null,"Process","P"]
[null,"Tina Irma Frost",null,"TIF",null,"Lager","L"]
[null,"Svend Hildingsø",null,"SVH",null,"Ventetid","V"]
[]
[]
[]
[]
[]
[]
[]
[]
[]
[]
[]
[]
[]
[]
[null,null,null,null,null,null,null,null,null,null,{"$f":"ISTEXT(B6)*1","v":0}]
[null,null,null,null,null,null,null,null,null,null,{"$f":"ISTEXT(B7)*1","v":0}]
[null,null,null,null,null,null,null,null,null,null,0]
[null,null,null,null,null,null,null,null,null,null,0]
[null,null,null,null,null,null,null,null,null,null,0]
[null,null,null,null,null,null,null,null,null,null,0]
[null,null,null,null,null,null,null,null,null,null,0]
[null,null,null,null,null,null,null,null,null,null,0]
[null,null,null,null,null,null,null,null,null,null,0]
[null,null,null,null,null,null,null,null,null,null,0]
[null,null,null,null,null,null,null,null,null,null,0]
[null,null,null,null,null,null,null,null,null,null,0]
[null,null,null,null,null,null,null,null,null,null,0]
[null,null,null,null,null,null,null,null,null,null,{"$f":"SUM(K41:K53)","v":0}]

{"sheet":"Teknologi-analyse","index":51,"n_rows":34,"n_cols":26,"rows_kept":34,"cut":false,"hidden":true,"merged":[[21,1,21,19],[22,1,22,19],[23,1,23,19],[1,14,1,16],[15,1,15,19],[16,1,16,19],[17,1,17,19],[18,1,18,19],[19,1,19,19],[20,1,20,19],[9,1,9,19],[10,1,10,19],[11,1,11,19],[12,1,12,19],[13,1,13,19],[14,1,14,19],[8,1,8,19],[2,1,2,19],[3,1,3,19],[4,1,4,19],[5,1,6,19],[7,1,7,19]]}
[]
[null,null,null,null,null,null,null,null,null,null,null,null,null,null,"Udført:",null,null,{"$f":"IF(Z34>0,IF(Z34>10,2,1),0)","v":0}]
[null,"Detaljeret beskrivelse af PRODUKTET"]
[null,"Funktioner i produktet "]
[null,null,null,null,null,null,null,null,null,null,null,null,null,null,null,null,null,null,null,null,null,null,null,null,null,{"$f":"ISTEXT(B5)*1","v":0}]
[null,"Anvendte materialer Alle materialer skal med (lim, maling, olie, tekstil ...)"]
[]
[null,null,null,null,null,null,null,null,null,null,null,null,null,null,null,null,null,null,null,null,null,null,null,null,null,{"$f":"ISTEXT(B8)*1","v":0}]
[null,"VIDEN der knytter sig til produktet"]
[null,"Materialeegenskaber Hvad kan materialet (varme/kulde, fugt, samling, bøjning, skæring, ledningsevne, magnetisme ...)"]
[null,null,null,null,null,null,null,null,null,null,null,null,null,null,null,null,null,null,null,null,null,null,null,null,null,{"$f":"ISTEXT(B11)*1","v":0}]
[null,"Proceskendskab Hvilke processer kan benyttes (udskæring, drejning, sammenføjning, boring, syning, omrøring, slibning, maling ….)"]
[null,null,null,null,null,null,null,null,null,null,null,null,null,null,null,null,null,null,null,null,null,null,null,null,null,{"$f":"ISTEXT(B13)*1","v":0}]
[null,"Viden fra andre gymnasiefag (idehistorie, komm/it, design, kemi, fysik, biologi, matematik ….)"]
[null,null,null,null,null,null,null,null,null,null,null,null,null,null,null,null,null,null,null,null,null,null,null,null,null,{"$f":"ISTEXT(B15)*1","v":0}]
[null,"TEKNIK der knytter sig til produktet"]
[null,"Fremstilling Hvilke fremstillingsmaskiner/værktøj vil I anvende, når produktet skal fremstilles/hvilke bruger industrien"]
[null,null,null,null,null,null,null,null,null,null,null,null,null,null,null,null,null,null,null,null,null,null,null,null,null,{"$f":"ISTEXT(B18)*1","v":0}]
[null,"Håndtering Hvordan håndteres: enkeltdele i produktion, produktet på vej til forbrugeren.  Hvordan pakkes produktet "]
[null,null,null,null,null,null,null,null,null,null,null,null,null,null,null,null,null,null,null,null,null,null,null,null,null,{"$f":"ISTEXT(B20)*1","v":0}]
[null,"Kontrol Hvilken teknik vil I anvende for at kontrollere, at enkeltdele og det samlede produkt er i orden/hvordan gør industrien"]
[null,null,null,null,null,null,null,null,null,null,null,null,null,null,null,null,null,null,null,null,null,null,null,null,null,{"$f":"ISTEXT(B22)*1","v":0}]
[null,"Organisation Vis i nedenstående skema, hvilke processer der kommer i hvilken rækkefølge"]
[null,"Lad en proces fylde en boks."]
[null,null,null,null,null,null,null,null,null,null,null,null,null,null,null,null,null,null,null,null,null,null,null,null,null,{"$f":"ISTEXT(B25)*1","v":0}]
[null,null,null,null,null,null,null,null,null,null,null,null,null,null,null,null,null,null,null,null,null,null,null,null,null,{"$f":"ISTEXT(B26)*1","v":0}]
[null,null,null,null,null,null,null,null,null,null,null,null,null,null,null,null,null,null,null,null,null,null,null,null,null,{"$f":"ISTEXT(B27)*1","v":0}]
[null,null,null,null,null,null,null,null,null,null,null,null,null,null,null,null,null,null,null,null,null,null,null,null,null,0]
[null,null,null,null,null,null,null,null,null,null,null,null,null,null,null,null,null,null,null,null,null,null,null,null,null,0]
[null,null,null,null,null,null,null,null,null,null,null,null,null,null,null,null,null,null,null,null,null,null,null,null,null,0]
[null,null,null,null,null,null,null,null,null,null,null,null,null,null,null,null,null,null,null,null,null,null,null,null,null,0]
[null,null,null,null,null,null,null,null,null,null,null,null,null,null,null,null,null,null,null,null,null,null,null,null,null,0]
[]
[null,null,null,null,null,null,null,null,null,null,null,null,null,null,null,null,null,null,null,null,null,null,null,null,null,{"$f":"SUM(Z3:Z32)","v":0}]

{"sheet":"Miljøvurdering","index":52,"n_rows":17,"n_cols":12,"rows_kept":17,"cut":false,"hidden":true,"merged":[[14,1,14,5],[2,1,2,5],[3,1,3,5],[4,1,4,5],[5,1,5,5],[6,1,6,5],[8,1,8,5],[9,1,9,5],[10,1,10,5],[11,1,11,5],[12,1,12,5],[13,1,13,5]]}
[]
[null,null,null,null,"Udført:",{"$f":"IF(L17>0,IF(L17>5,2,1),0)","v":0}]
[null,"Redegør for hvad du vil undersøge, og hvad du vil bruge din miljøvurdering til"]
[null,"Redegørelse...",null,null,null,null,null,null,null,null,null,{"$f":"IF(B4=\"Redegørelse...\",0,1)","v":0}]
[null,"Indskriv produktets livscyklus i formularen "]
[null,"livscyklus analyse",null,null,null,null,{"$f":"Livscyklus!E2","v":0},null,null,null,null,{"$f":"G6","v":0}]
[null,"Vurder hvilke miljøeffekter de enkelte delprocesser medfører - tilret din livscyklus analyse"]
[]
[null,"Hvordan kan disse miljøeffekter undgås?"]
[null,null,null,null,null,null,null,null,null,null,null,{"$f":"ISTEXT(B10)*1","v":0}]
[null,"Beskriv ændringer i designet, der vil mindske betydningen af miljøeffekterne"]
[null,null,null,null,null,null,null,null,null,null,null,{"$f":"ISTEXT(B12)*1","v":0}]
[null,"Opdel miljøeffekterne i de enkelte faser efter MEKA-princippet: materialer, energi, kemikalier og andet"]
[null,"Konkluder på din miljøvurdering"]
[null,null,null,null,null,null,null,null,null,null,null,{"$f":"ISTEXT(B15)*1","v":0}]
[]
[null,null,null,null,null,null,null,null,null,null,null,{"$f":"SUM(L4:L15)","v":0}]

{"sheet":"Livscyklus","index":53,"n_rows":11,"n_cols":9,"rows_kept":11,"cut":false,"hidden":true,"merged":[[4,1,4,4],[6,1,6,4],[7,1,7,4]]}
[]
[null,null,null,"Udført:",{"$f":"IF(I3>0,IF(I3>4,2,1),0)","v":0}]
[null,"Råmaterialer","Produktion","Brugsfasen","Bortskaffelse",null,null,null,{"$f":"SUM(I4:I8)","v":0}]
[null,null,null,null,null,null,null,null,{"$f":"ISTEXT(B4)*1 + ISTEXT(C4)*1 + ISTEXT(D4)*1 + ISTEXT(E4)*1","v":0}]
[null,"Transport i relation til denne fase"]
[null,null,null,null,null,null,null,null,{"$f":"ISTEXT(B6)*1 + ISTEXT(C6)*1 + ISTEXT(D6)*1 + ISTEXT(E6)*1","v":0}]
[null,"Sammendrag af de vigtigste miljøpåvirkninger i produktets levetid"]
[null,null,null,null,null,null,null,null,{"$f":"ISTEXT(B8)*1","v":0}]
[null,null,null,null,null,null,null,null,{"$f":"ISTEXT(B9)*1","v":0}]
[]
[null,null,null,null,null,null,null,null,{"$f":"SUM(I3:I10)","v":0}]

{"sheet":"Produktmodning","index":54,"n_rows":26,"n_cols":10,"rows_kept":26,"cut":false,"hidden":true,"merged":[[22,1,22,3],[23,1,23,3],[14,1,14,3],[15,1,15,3],[16,1,16,3],[17,1,17,3],[18,1,18,3],[19,1,19,3],[13,1,13,3],[2,1,2,2],[12,1,12,3],[20,1,20,3],[21,1,21,3],[7,1,7,3],[8,2,8,3],[9,2,9,3],[10,2,10,3],[11,2,11,3]]}
[]
[null,null,"Udført:",{"$f":"IF(J26>0,IF(J26>17,2,1),0)","v":0}]
[null,"Test af din prototype",null,"Brainstorm"]
[null,"Funktion 1, der skal testes"," ",null,{"$f":"Funktionstest_1!C2","v":0},null,null,null,null,{"$f":"ISTEXT(C4)*1","v":1}]
[null,"Funktion 2, der skal testes"," ",null,{"$f":"Funktionstest_2!C2","v":0},null,null,null,null,{"$f":"ISTEXT(C5)*1","v":1}]
[null,"Holdbarhed 1, der skal testes"," ",null,{"$f":"Holdbarhedstest_1!C2","v":0},null,null,null,null,1]
[null,"Holdbarhed 2, der skal testes"," ",null,{"$f":"Holdbarhedstest_2!C2","v":0},null,null,null,null,1]
[null,"Sammendrag af resultaterne af dine tests"]
[null,"Funktion 1",{"$f":"IF(ISTEXT(Funktionstest_1!B24),Funktionstest_1!B24,\"Hentes automatisk\")","v":"Hentes automatisk"}]
[null,"Funktion 2",{"$f":"IF(ISTEXT(Funktionstest_2!B25),Funktionstest_2!B25,\"Hentes automatisk\")","v":"Hentes automatisk"}]
[null,"Holdbarhed 1",{"$f":"IF(ISTEXT(Holdbarhedstest_1!B21),Holdbarhedstest_1!B21,\"Hentes automatisk\")","v":"Hentes automatisk"}]
[null,"Holdbarhed 2",{"$f":"IF(ISTEXT(Holdbarhedstest_2!B21),Holdbarhedstest_2!B21,\"Hentes automatisk\")","v":"Hentes automatisk"}]
[null,"Tag prototypen med ud til fokusgruppen, og spørg til deres meninger",null,null,{"$f":"Kundeevaluering!D2","v":0}]
[null,"Konklussion på kundernes tilbagemelding "]
[null,null,null,null,null,null,null,null,null,{"$f":"ISTEXT(B15)*1","v":0}]
[null,"Udfyld et House of Quality",null,null,{"$f":"House_of_Quality!AC2","v":0}]
[]
[null,null,null,null,null,null,null,null,null,{"$f":"ISTEXT(B18)*1","v":0}]
[null,"Beskriv, prioriter kundeønsker og tegn det endelige produkt ",null,null,{"$f":"Endeligt_produkt!D2","v":0}]
[null,"Hvordan har produktet ændret sig?"]
[null,null,null,null,null,null,null,null,null,{"$f":"ISTEXT(B21)*1","v":0}]
[null,"Design en emballage til produktet ",null,null,{"$f":"Emballage!C2","v":0}]
[null,"Hvordan har produktet påvirket designet af emballage?"]
[null,null,null,null,null,null,null,null,null,{"$f":"ISTEXT(B24)*1","v":0}]
[]
[null,null,null,null,null,null,null,null,null,{"$f":"SUM(J15:J24,E4:E22)","v":0}]

{"sheet":"Funktionstest_1","index":55,"n_rows":25,"n_cols":9,"rows_kept":25,"cut":false,"hidden":true,"merged":[[22,1,22,2],[23,1,23,2],[16,1,16,2],[3,1,3,2],[2,1,2,2],[7,1,7,2],[8,1,8,2]]}
[]
[null,"Udført:",{"$f":"IF(I25>0,IF(I25>15,2,1),0)","v":0}]
[null,"Definition af test"]
[null,{"$f":"Produktmodning!C4","v":" "}]
[null,"Relevante krav opstillet i 5. Produktløsning",null,null,null,null,null,null,{"$f":"ISTEXT(C5)*1","v":0}]
[null,"Relevante krav opstillet i 6. Produktspecifikation",null,null,null,null,null,null,{"$f":"ISTEXT(C6)*1","v":0}]
[null,"Beskrivelse af test",null,null,null,null,null,null,0]
[null,"Skitser din testopstilling"]
[]
[null,"Antal gentagelser",null,null,null,null,null,null,{"$f":"ISNUMBER(C10)*1","v":0}]
[null,"Beskriv dine forventninger til testen",null,null,null,null,null,null,{"$f":"ISTEXT(C11)*1","v":0}]
[null,"Beskriv effektiviteten af funktionen",null,null,null,null,null,null,{"$f":"ISTEXT(C12)*1","v":0}]
[null,"Beskriv lyde og mislyde ved funktionen",null,null,null,null,null,null,0]
[null,"Beskriv eventuelle slidmærker efter test",null,null,null,null,null,null,0]
[null,"Beskriv steder, hvor der opstår varme",null,null,null,null,null,null,0]
[null,"Beskriv eventuelle sikkerheds-risici",null,null,null,null,null,null,0]
[null,"Resultat af test "]
[null,"Levede produktet op til relevante krav opstillet i 5. Produktløsning?",null,null,null,null,null,null,0]
[null,"Levede produktet op til relevante krav opstillet i 6. Produktspecifikation?",null,null,null,null,null,null,0]
[null,"Beskriv, hvad i testen der kan betragtes som en succes",null,null,null,null,null,null,0]
[null,"Beskriv, hvad i testen der ikke kan betragtes som en succes",null,null,null,null,null,null,0]
[null,"Beskriv, hvad du kan gøre bedre i produktet eller testen",null,null,null,null,null,null,0]
[null,"Konklussion på test "]
[null,null,null,null,null,null,null,null,{"$f":"ISTEXT(B24)*1","v":0}]
[null,null,null,null,null,null,null,null,{"$f":"SUM(I5:I24)","v":0}]

{"sheet":"Funktionstest_2","index":56,"n_rows":25,"n_cols":9,"rows_kept":25,"cut":false,"hidden":true,"merged":[[22,1,22,2],[23,1,23,2],[2,1,2,2],[3,1,3,2],[7,1,7,2],[8,1,8,2],[16,1,16,2]]}
[]
[null,"Udført:",{"$f":"IF(I25>0,IF(I25>15,2,1),0)","v":0}]
[null,"Definition af test"]
[null,{"$f":"Produktmodning!C5","v":" "}]
[null,"Relevante krav opstillet i 5. Produktløsning",null,null,null,null,null,null,{"$f":"ISTEXT(C5)*1","v":0}]
[null,"Relevante krav opstillet i 6. Produktspecifikation",null,null,null,null,null,null,{"$f":"ISTEXT(C6)*1","v":0}]
[null,"Beskrivelse af test",null,null,null,null,null,null,0]
[null,"Skitser din testopstilling"]
[]
[null,"Antal gentagelser",null,null,null,null,null,null,{"$f":"ISNUMBER(C10)*1","v":0}]
[null,"Beskriv dine forventninger til testen",null,null,null,null,null,null,{"$f":"ISTEXT(C11)*1","v":0}]
[null,"Beskriv effektiviteten af funktionen",null,null,null,null,null,null,{"$f":"ISTEXT(C12)*1","v":0}]
[null,"Beskriv lyde og mislyde ved funktionen",null,null,null,null,null,null,0]
[null,"Beskriv eventuelle slidmærker efter test",null,null,null,null,null,null,0]
[null,"Beskriv steder, hvor der opstår varme",null,null,null,null,null,null,0]
[null,"Beskriv eventuelle sikkerheds-risici",null,null,null,null,null,null,0]
[null,"Resultat af test "]
[null,"Levede produktet op til relevante krav opstillet i 5. Produktløsning?",null,null,null,null,null,null,0]
[null,"Levede produktet op til relevante krav opstillet i 6. Produktspecifikation?",null,null,null,null,null,null,0]
[null,"Beskriv, hvad i testen der kan betragtes som en succes",null,null,null,null,null,null,0]
[null,"Beskriv, hvad i testen der ikke kan betragtes som en succes",null,null,null,null,null,null,0]
[null,"Beskriv, hvad du kan gøre bedre i produktet eller testen",null,null,null,null,null,null,0]
[null,"Konklussion på test "]
[null,null,null,null,null,null,null,null,{"$f":"ISTEXT(B24)*1","v":0}]
[null,null,null,null,null,null,null,null,{"$f":"SUM(I5:I24)","v":0}]

{"sheet":"Holdbarhedstest_1","index":57,"n_rows":22,"n_cols":9,"rows_kept":22,"cut":false,"hidden":true,"merged":[[19,1,19,2],[20,1,20,2],[2,1,2,2],[3,1,3,2],[7,1,7,2],[8,1,8,2],[13,1,13,2]]}
[]
[null,"Udført:",{"$f":"IF(I22>0,IF(I22>12,2,1),0)","v":0}]
[null,"Definition af test"]
[null,{"$f":"Produktmodning!C6","v":" "}]
[null,"Relevante krav opstillet i 5. Produktløsning",null,null,null,null,null,null,{"$f":"ISTEXT(C5)*1","v":0}]
[null,"Relevante krav opstillet i 6. Produktspecifikation",null,null,null,null,null,null,{"$f":"ISTEXT(C6)*1","v":0}]
[null,"Beskrivelse af test",null,null,null,null,null,null,0]
[null,"Skitser din testopstilling"]
[]
[null,"Beskriv dine forventninger til testen",null,null,null,null,null,null,{"$f":"ISTEXT(C10)*1","v":0}]
[null,"Beskrivelse af belastning",null,null,null,null,null,null,{"$f":"ISTEXT(C11)*1","v":0}]
[null,"Størrelse af belastning",null,null,null,null,null,null,{"$f":"ISTEXT(C12)*1","v":0}]
[null,"Antal gentagelser",null,null,null,null,null,null,{"$f":"ISNUMBER(C13)*1","v":0}]
[null,"Resultat af test "]
[null,"Levede produktet op til relevante krav opstillet i 5. Produktløsning?",null,null,null,null,null,null,0]
[null,"Levede produktet op til relevante krav opstillet i 6. Produktspecifikation?",null,null,null,null,null,null,0]
[null,"Beskriv, hvad i testen der kan betragtes som en succes",null,null,null,null,null,null,0]
[null,"Beskriv, hvad i testen der ikke kan betragtes som en succes",null,null,null,null,null,null,0]
[null,"Beskriv, hvad du kan gøre bedre i produktet eller testen",null,null,null,null,null,null,0]
[null,"Konklussion på test "]
[null,null,null,null,null,null,null,null,{"$f":"ISTEXT(B21)*1","v":0}]
[null,null,null,null,null,null,null,null,{"$f":"SUM(I5:I21)","v":0}]

{"sheet":"Holdbarhedstest_2","index":58,"n_rows":22,"n_cols":9,"rows_kept":22,"cut":false,"hidden":true,"merged":[[19,1,19,2],[20,1,20,2],[2,1,2,2],[3,1,3,2],[7,1,7,2],[8,1,8,2],[13,1,13,2]]}
[]
[null,"Udført:",{"$f":"IF(I22>0,IF(I22>12,2,1),0)","v":0}]
[null,"Definition af test"]
[null,{"$f":"Produktmodning!C7","v":" "}]
[null,"Relevante krav opstillet i 5. Produktløsning",null,null,null,null,null,null,{"$f":"ISTEXT(C5)*1","v":0}]
[null,"Relevante krav opstillet i 6. Produktspecifikation",null,null,null,null,null,null,{"$f":"ISTEXT(C6)*1","v":0}]
[null,"Beskrivelse af test",null,null,null,null,null,null,0]
[null,"Skitser din testopstilling"]
[]
[null,"Beskriv dine forventninger til testen",null,null,null,null,null,null,{"$f":"ISTEXT(C10)*1","v":0}]
[null,"Beskrivelse af belastning",null,null,null,null,null,null,{"$f":"ISTEXT(C11)*1","v":0}]
[null,"Størrelse af belastning",null,null,null,null,null,null,{"$f":"ISTEXT(C12)*1","v":0}]
[null,"Antal gentagelser",null,null,null,null,null,null,{"$f":"ISNUMBER(C13)*1","v":0}]
[null,"Resultat af test "]
[null,"Levede produktet op til relevante krav opstillet i 5. Produktløsning?",null,null,null,null,null,null,0]
[null,"Levede produktet op til relevante krav opstillet i 6. Produktspecifikation?",null,null,null,null,null,null,0]
[null,"Beskriv, hvad i testen der kan betragtes som en succes",null,null,null,null,null,null,0]
[null,"Beskriv, hvad i testen der ikke kan betragtes som en succes",null,null,null,null,null,null,0]
[null,"Beskriv, hvad du kan gøre bedre i produktet eller testen",null,null,null,null,null,null,0]
[null,"Konklussion på test "]
[null,null,null,null,null,null,null,null,{"$f":"ISTEXT(B21)*1","v":0}]
[null,null,null,null,null,null,null,null,{"$f":"SUM(I5:I21)","v":0}]

{"sheet":"Kundeevaluering","index":59,"n_rows":24,"n_cols":9,"rows_kept":24,"cut":false,"hidden":true,"merged":[[17,1,17,3],[18,1,18,3],[19,1,19,3],[20,1,20,3],[11,1,11,2],[12,1,12,3],[13,1,13,3],[14,1,14,3],[15,2,15,3],[16,2,16,3],[9,1,9,2],[10,1,10,2],[4,1,4,3],[5,1,5,3],[6,1,6,3],[7,1,7,2],[8,1,8,2]]}
[]
[null,null,"Udført:",{"$f":"IF(I24>0,IF(I24>10,2,1),0)","v":0}]
[null,"Kundens evaluering af produktet (Den flyvende prototype)"]
[]
[null,"Hvilket produkt vil du umiddelbart sammenligne dette produkt med"]
[null,null,null,null,null,null,null,null,{"$f":"ISTEXT(B6)*1","v":0}]
[null,"Dit umiddelbare indtryk af produktet (6 er bedst, 1 er ringest)"]
[null,"Er produktet kønt i forhold til tilsvarende produkter",null,null,null,null,null,null,{"$f":"ISNUMBER(D8)*1","v":0}]
[null,"Er produktet anvendeligt i forhold til tilsvarende produkter ",null,null,null,null,null,null,{"$f":"ISNUMBER(D9)*1","v":0}]
[null,"Er det nemt at anvende produktet i forhold til tilsvarende produkter",null,null,null,null,null,null,0]
[null,"Anser du produktet for holdbart i forhold til tilsvarende produkter",null,null,null,null,null,null,0]
[null,"Anser du produktet for holdbart i forhold til tilsvarende produkter",null,null,null,null,null,null,0]
[null,"Hvad er din umiddelbare mening om produktet"]
[null,null,null,null,null,null,null,null,{"$f":"ISTEXT(B14)*1","v":0}]
[null,"Beskriv, hvilke egenskaber du finder tiltrækkende/frastødende ved produktet"]
[null,"Tiltrækkende egenskaber",null,null,null,null,null,null,{"$f":"ISTEXT(C16)*1","v":0}]
[null,"Frastødende egenskaber",null,null,null,null,null,null,{"$f":"ISTEXT(C17)*1","v":0}]
[null,"Hvilke egenskaber/funktioner ville du ønske blev lagt ind i produktet  "]
[null,null,null,null,null,null,null,null,{"$f":"ISTEXT(B19)*1","v":0}]
[null,"Hvor høj en pris ville du være parat til at ofre for produktet"]
[null,null,null,null,null,null,null,null,{"$f":"ISTEXT(B21)*1","v":0}]
[]
[]
[null,null,null,null,null,null,null,null,{"$f":"SUM(I6:I23)","v":0}]

{"sheet":"House_of_Quality","index":60,"n_rows":42,"n_cols":41,"rows_kept":42,"cut":false,"hidden":true,"merged":[[41,4,41,10],[2,1,2,30],[3,1,3,30],[1,28,1,30],[37,22,37,24],[37,25,37,27],[37,28,37,30],[38,4,38,10],[39,4,39,10],[40,4,40,10],[37,4,37,6],[37,7,37,9],[37,10,37,12],[37,13,37,15],[37,16,37,18],[37,19,37,21],[35,28,35,30],[36,4,36,6],[36,7,36,9],[36,10,36,12],[36,13,36,15],[36,16,36,18],[36,19,36,21],[36,22,36,24],[36,28,36,30],[34,28,34,30],[35,3,37,3],[35,4,35,6],[35,7,35,9],[35,10,35,12],[35,13,35,15],[35,16,35,18],[35,19,35,21],[35,22,35,24],[35,25,35,27],[34,3,34,6],[34,7,34,9],[34,10,34,12],[34,13,34,15],[34,16,34,18],[34,19,34,21],[34,22,34,24],[34,25,34,27],[36,25,36,27],[32,22,32,24],[32,25,32,27],[32,28,32,30],[33,3,33,6],[33,7,33,9],[33,10,33,12],[33,13,33,15],[33,16,33,18],[33,19,33,21],[33,22,33,24],[32,3,32,6],[32,7,32,9],[32,10,32,12],[32,13,32,15],[32,16,32,18],[32,19,32,21],[33,25,33,27],[33,28,33,30],[31,3,31,6],[31,7,31,9],[31,10,31,12],[31,13,31,15],[31,16,31,18],[31,19,31,21],[31,22,31,24],[31,25,31,27],[31,28,31,30],[29,25,29,27],[29,28,29,30],[30,3,30,5],[30,7,30,9],[30,10,30,12],[30,13,30,15],[30,16,30,18],[30,19,30,21],[30,22,30,24],[30,25,30,27],[30,28,30,30],[26,2,30,2],[26,28,26,30],[27,3,27,5],[27,7,27,9],[27,10,27,12],[27,13,27,15],[27,16,27,18],[27,19,27,21],[27,22,27,24],[27,25,27,27],[27,28,27,30],[28,28,28,30],[29,3,29,5],[29,7,29,9],[29,10,29,12],[29,13,29,15],[29,16,29,18],[29,19,29,21],[29,22,29,24],[28,3,28,5],[28,7,28,9],[28,10,28,12],[28,13,28,15],[28,16,28,18],[26,3,26,5],[26,7,26,9],[26,10,26,12],[26,13,26,15],[26,16,26,18],[26,19,26,21],[26,22,26,24],[26,25,26,27],[28,22,28,24],[28,25,28,27],[28,19,28,21],[25,3,25,5],[25,7,25,9],[25,10,25,12],[25,13,25,15],[25,16,25,18],[25,19,25,21],[25,22,25,24],[25,25,25,27],[25,28,25,30],[23,10,23,12],[23,13,23,15],[23,16,23,18],[23,19,23,21],[23,22,23,24],[23,25,23,27],[23,28,23,30],[24,3,24,5],[24,7,24,9],[24,10,24,12],[24,13,24,15],[24,16,24,18],[24,19,24,21],[24,22,24,24],[24,25,24,27],[24,28,24,30],[21,22,21,24],[21,25,21,27],[21,28,21,30],[22,1,30,1],[22,2,25,2],[22,3,22,5],[22,7,22,9],[22,10,22,12],[22,13,22,15],[22,16,22,18],[21,1,21,3],[21,7,21,9],[21,10,21,12],[21,13,21,15],[21,16,21,18],[21,19,21,21],[19,4,21,5],[19,6,21,6],[22,19,22,21],[22,22,22,24],[22,25,22,27],[22,28,22,30],[23,3,23,5],[23,7,23,9],[20,13,20,15],[20,16,20,18],[20,19,20,21],[20,22,20,24],[20,25,20,27],[20,28,20,30],[18,22,18,24],[18,25,18,27],[18,28,18,30],[19,7,19,15],[19,16,19,21],[19,22,19,30],[20,7,20,9],[20,10,20,12],[18,1,18,6],[18,7,18,9],[18,10,18,12],[18,13,18,15],[18,16,18,18],[18,19,18,21],[6,1,6,14],[7,1,8,14],[9,1,9,11],[10,1,11,11],[12,1,12,10],[13,1,14,8]]}
[]
[null,null,null,null,null,null,null,null,null,null,null,null,null,null,null,null,null,null,null,null,null,null,null,null,null,null,null,"Udført:",{"$f":"IF(SUM(H22:AE31)>0,IF(SUM(H22:AE31)>20,2,1),0)","v":0}]
[null,"Skitser din test opstilling"]
[null,"Udfyld nedenstående skema med House of Quality. Du kan se et et eksempel på et udfyldt skema på det næste faneblad, og du kan også få hjælp til udfyldelsen af en interaktiv guide på linket:"]
[null,"http://elsmar.com/pdf_files/QFD-Tutorial.swf"]
[]
[null,"Produkt"]
[null,null,null,null,null,null,null,null,null,null,null,null,null,null,null,null,null,null,null,null,null,null,null,null,null,null,null,null,null,null,null,null,null,"Beregninger"]
[]
[null,null,null,null,null,null,null,null,null,null,null,null,null,null,null,null,null,null,null,null,null,null,null,null,null,null,null,null,null,null,null,null,null,{"$f":"House_of_Quality!H$22*House_of_Quality!$G23*House_of_Quality!H23","v":0},{"$f":"House_of_Quality!K$22*House_of_Quality!$G23*House_of_Quality!K23","v":0},{"$f":"House_of_Quality!N$22*House_of_Quality!$G23*House_of_Quality!N23","v":0},{"$f":"House_of_Quality!Q$22*House_of_Quality!$G23*House_of_Quality!Q23","v":0},{"$f":"House_of_Quality!T$22*House_of_Quality!$G23*House_of_Quality!T23","v":0},{"$f":"House_of_Quality!W$22*House_of_Quality!$G23*House_of_Quality!W23","v":0},{"$f":"House_of_Quality!Z$22*House_of_Quality!$G23*House_of_Quality!Z23","v":0},{"$f":"House_of_Quality!AC$22*House_of_Quality!$G23*House_of_Quality!AC23","v":0}]
[null,null,null,null,null,null,null,null,null,null,null,null,null,null,null,null,null,null,null,null,null,null,null,null,null,null,null,null,null,null,null,null,null,{"$f":"House_of_Quality!H$22*House_of_Quality!$G24*House_of_Quality!H24","v":0},{"$f":"House_of_Quality!K$22*House_of_Quality!$G24*House_of_Quality!K24","v":0},{"$f":"House_of_Quality!N$22*House_of_Quality!$G24*House_of_Quality!N24","v":0},{"$f":"House_of_Quality!Q$22*House_of_Quality!$G24*House_of_Quality!Q24","v":0},{"$f":"House_of_Quality!T$22*House_of_Quality!$G24*House_of_Quality!T24","v":0},{"$f":"House_of_Quality!W$22*House_of_Quality!$G24*House_of_Quality!W24","v":0},{"$f":"House_of_Quality!Z$22*House_of_Quality!$G24*House_of_Quality!Z24","v":0},{"$f":"House_of_Quality!AC$22*House_of_Quality!$G24*House_of_Quality!AC24","v":0}]
[null,null,null,null,null,null,null,null,null,null,null,null,null,null,null,null,null,null,null,null,null,null,null,null,null,null,null,null,null,null,null,null,null,{"$f":"House_of_Quality!H$22*House_of_Quality!$G25*House_of_Quality!H25","v":0},{"$f":"House_of_Quality!K$22*House_of_Quality!$G25*House_of_Quality!K25","v":0},{"$f":"House_of_Quality!N$22*House_of_Quality!$G25*House_of_Quality!N25","v":0},{"$f":"House_of_Quality!Q$22*House_of_Quality!$G25*House_of_Quality!Q25","v":0},{"$f":"House_of_Quality!T$22*House_of_Quality!$G25*House_of_Quality!T25","v":0},{"$f":"House_of_Quality!W$22*House_of_Quality!$G25*House_of_Quality!W25","v":0},{"$f":"House_of_Quality!Z$22*House_of_Quality!$G25*House_of_Quality!Z25","v":0},{"$f":"House_of_Quality!AC$22*House_of_Quality!$G25*House_of_Quality!AC25","v":0}]
[null,"dato",null,null,null,null,null,null,null,null,null,null,null,null,null,null,null,null,null,null,null,null,null,null,null,null,null,null,null,null,null,null,null,{"$f":"House_of_Quality!H$22*House_of_Quality!$G26*House_of_Quality!H26","v":0},{"$f":"House_of_Quality!K$22*House_of_Quality!$G26*House_of_Quality!K26","v":0},{"$f":"House_of_Quality!N$22*House_of_Quality!$G26*House_of_Quality!N26","v":0},{"$f":"House_of_Quality!Q$22*House_of_Quality!$G26*House_of_Quality!Q26","v":0},{"$f":"House_of_Quality!T$22*House_of_Quality!$G26*House_of_Quality!T26","v":0},{"$f":"House_of_Quality!W$22*House_of_Quality!$G26*House_of_Quality!W26","v":0},{"$f":"House_of_Quality!Z$22*House_of_Quality!$G26*House_of_Quality!Z26","v":0},{"$f":"House_of_Quality!AC$22*House_of_Quality!$G26*House_of_Quality!AC26","v":0}]
[null,null,null,null,null,null,null,null,null,null,null,null,null,null,null,null,null,null,null,null,null,null,null,null,null,null,null,null,null,null,null,null,null,{"$f":"House_of_Quality!H$22*House_of_Quality!$G27*House_of_Quality!H27","v":0},{"$f":"House_of_Quality!K$22*House_of_Quality!$G27*House_of_Quality!K27","v":0},{"$f":"House_of_Quality!N$22*House_of_Quality!$G27*House_of_Quality!N27","v":0},{"$f":"House_of_Quality!Q$22*House_of_Quality!$G27*House_of_Quality!Q27","v":0},{"$f":"House_of_Quality!T$22*House_of_Quality!$G27*House_of_Quality!T27","v":0},{"$f":"House_of_Quality!W$22*House_of_Quality!$G27*House_of_Quality!W27","v":0},{"$f":"House_of_Quality!Z$22*House_of_Quality!$G27*House_of_Quality!Z27","v":0},{"$f":"House_of_Quality!AC$22*House_of_Quality!$G27*House_of_Quality!AC27","v":0}]
[null,null,null,null,null,null,null,null,null,null,null,null,null,null,null,null,null,null,null,null,null,null,null,null,null,null,null,null,null,null,null,null,null,{"$f":"House_of_Quality!H$22*House_of_Quality!$G28*House_of_Quality!H28","v":0},{"$f":"House_of_Quality!K$22*House_of_Quality!$G28*House_of_Quality!K28","v":0},{"$f":"House_of_Quality!N$22*House_of_Quality!$G28*House_of_Quality!N28","v":0},{"$f":"House_of_Quality!Q$22*House_of_Quality!$G28*House_of_Quality!Q28","v":0},{"$f":"House_of_Quality!T$22*House_of_Quality!$G28*House_of_Quality!T28","v":0},{"$f":"House_of_Quality!W$22*House_of_Quality!$G28*House_of_Quality!W28","v":0},{"$f":"House_of_Quality!Z$22*House_of_Quality!$G28*House_of_Quality!Z28","v":0},{"$f":"House_of_Quality!AC$22*House_of_Quality!$G28*House_of_Quality!AC28","v":0}]
[null,null,null,null,null,null,null,null,null,null,null,null,null,null,null,null,null,null,null,null,null,null,null,null,null,null,null,null,null,null,null,null,null,{"$f":"House_of_Quality!H$22*House_of_Quality!$G29*House_of_Quality!H29","v":0},{"$f":"House_of_Quality!K$22*House_of_Quality!$G29*House_of_Quality!K29","v":0},{"$f":"House_of_Quality!N$22*House_of_Quality!$G29*House_of_Quality!N29","v":0},{"$f":"House_of_Quality!Q$22*House_of_Quality!$G29*House_of_Quality!Q29","v":0},{"$f":"House_of_Quality!T$22*House_of_Quality!$G29*House_of_Quality!T29","v":0},{"$f":"House_of_Quality!W$22*House_of_Quality!$G29*House_of_Quality!W29","v":0},{"$f":"House_of_Quality!Z$22*House_of_Quality!$G29*House_of_Quality!Z29","v":0},{"$f":"House_of_Quality!AC$22*House_of_Quality!$G29*House_of_Quality!AC29","v":0}]
[null,null,null,null,null,null,null,null,null,null,null,null,null,null,null,null,null,null,null,null,null,null,null,null,null,null,null,null,null,null,null,null,null,{"$f":"House_of_Quality!H$22*House_of_Quality!$G30*House_of_Quality!H30","v":0},{"$f":"House_of_Quality!K$22*House_of_Quality!$G30*House_of_Quality!K30","v":0},{"$f":"House_of_Quality!N$22*House_of_Quality!$G30*House_of_Quality!N30","v":0},{"$f":"House_of_Quality!Q$22*House_of_Quality!$G30*House_of_Quality!Q30","v":0},{"$f":"House_of_Quality!T$22*House_of_Quality!$G30*House_of_Quality!T30","v":0},{"$f":"House_of_Quality!W$22*House_of_Quality!$G30*House_of_Quality!W30","v":0},{"$f":"House_of_Quality!Z$22*House_of_Quality!$G30*House_of_Quality!Z30","v":0},{"$f":"House_of_Quality!AC$22*House_of_Quality!$G30*House_of_Quality!AC30","v":0}]
[null,null,null,null,null,null,null,null,null,null,null,null,null,null,null,null,null,null,null,null,null,null,null,null,null,null,null,null,null,null,null,null,null,{"$f":"House_of_Quality!H$22*House_of_Quality!$G31*House_of_Quality!H31","v":0},{"$f":"House_of_Quality!K$22*House_of_Quality!$G31*House_of_Quality!K31","v":0},{"$f":"House_of_Quality!N$22*House_of_Quality!$G31*House_of_Quality!N31","v":0},{"$f":"House_of_Quality!Q$22*House_of_Quality!$G31*House_of_Quality!Q31","v":0},{"$f":"House_of_Quality!T$22*House_of_Quality!$G31*House_of_Quality!T31","v":0},{"$f":"House_of_Quality!W$22*House_of_Quality!$G31*House_of_Quality!W31","v":0},{"$f":"House_of_Quality!Z$22*House_of_Quality!$G31*House_of_Quality!Z31","v":0},{"$f":"House_of_Quality!AC$22*House_of_Quality!$G31*House_of_Quality!AC31","v":0}]
[null,"Retning af forbedring",null,null,null,null,null,0,null,null,0,null,null,0,null,null,0,null,null,0,null,null,0,null,null,0,null,null,0,null,null,null,null,{"$f":"SUM(AH10:AH18)","v":0},0,0,0,0,0,0,0]
[null,null,null,null,"\nTekniske \nkrav",null,"Vigtighed for kunden","Funktion",null,null,null,null,null,null,null,null,"Sortiement",null,null,null,null,null,"Teknisk",null,null,null,null,null,null,null,null,null,null,{"$f":"SUM(AH19:AO19)","v":0}]
[]
[null,"Kunde krav"]
[null,"Krav til Klatre-sele","Funktion"]
[]
[]
[]
[null,null,"Brugbarhed"]
[]
[]
[]
[]
[null,null,null,"Teknisk prioritet"]
[null,null,null,"Procent af den samlede "]
[null,null,null,"Enhed"]
[null,null,null,"Design Mål"]
[null,null,null,"Teknisk benchmarking","Vores Produkt"]
[null,null,null,null,"Konkurrent A´s produkt"]
[null,null,null,null,"Konkurrent b´s produkt"]
[null,null,null,9,"Stærk overensstemmelse"]
[null,null,null,3,"Middel overensstemmelse"]
[null,null,null,1,"Svag overensstemmelse"]
[null,null,null,0,"Ingen overensstemmelse"]

{"sheet":"Eks_House_of_Quality","index":61,"n_rows":39,"n_cols":40,"rows_kept":39,"cut":false,"hidden":true,"merged":[[38,3,38,9],[34,21,34,23],[34,24,34,26],[34,27,34,29],[35,3,35,9],[36,3,36,9],[37,3,37,9],[34,3,34,5],[34,6,34,8],[34,9,34,11],[34,12,34,14],[34,15,34,17],[34,18,34,20],[32,27,32,29],[33,3,33,5],[33,6,33,8],[33,9,33,11],[33,12,33,14],[33,15,33,17],[33,18,33,20],[33,21,33,23],[33,24,33,26],[33,27,33,29],[32,2,34,2],[32,3,32,5],[32,6,32,8],[32,9,32,11],[32,12,32,14],[32,15,32,17],[32,18,32,20],[32,21,32,23],[32,24,32,26],[31,2,31,5],[31,6,31,8],[31,9,31,11],[31,12,31,14],[31,15,31,17],[31,18,31,20],[31,21,31,23],[31,24,31,26],[31,27,31,29],[29,21,29,23],[29,24,29,26],[29,27,29,29],[30,2,30,5],[30,6,30,8],[30,9,30,11],[30,12,30,14],[30,15,30,17],[30,18,30,20],[30,21,30,23],[29,2,29,5],[29,6,29,8],[29,9,29,11],[29,12,29,14],[29,15,29,17],[29,18,29,20],[30,24,30,26],[30,27,30,29],[28,2,28,5],[28,6,28,8],[28,9,28,11],[28,12,28,14],[28,15,28,17],[28,18,28,20],[28,21,28,23],[28,24,28,26],[28,27,28,29],[27,2,27,4],[27,6,27,8],[27,9,27,11],[27,12,27,14],[27,15,27,17],[27,18,27,20],[27,21,27,23],[27,24,27,26],[27,27,27,29],[25,27,25,29],[26,2,26,4],[26,6,26,8],[26,9,26,11],[26,12,26,14],[26,15,26,17],[26,18,26,20],[26,21,26,23],[25,2,25,4],[25,6,25,8],[25,9,25,11],[25,12,25,14],[25,15,25,17],[25,18,25,20],[26,24,26,26],[26,27,26,29],[23,27,23,29],[24,2,24,4],[24,6,24,8],[24,9,24,11],[24,12,24,14],[24,15,24,17],[24,18,24,20],[24,21,24,23],[24,24,24,26],[24,27,24,29],[23,1,26,1],[23,2,23,4],[23,6,23,8],[23,9,23,11],[23,12,23,14],[23,15,23,17],[23,18,23,20],[23,21,23,23],[23,24,23,26],[25,21,25,23],[25,24,25,26],[22,2,22,4],[22,6,22,8],[22,9,22,11],[22,12,22,14],[22,15,22,17],[22,18,22,20],[22,21,22,23],[22,24,22,26],[22,27,22,29],[20,9,20,11],[20,12,20,14],[20,15,20,17],[20,18,20,20],[20,21,20,23],[20,24,20,26],[20,27,20,29],[21,2,21,4],[21,6,21,8],[21,9,21,11],[21,12,21,14],[21,15,21,17],[21,18,21,20],[21,21,21,23],[21,24,21,26],[21,27,21,29],[18,21,18,23],[18,24,18,26],[18,27,18,29],[19,0,27,0],[19,1,22,1],[19,2,19,4],[19,6,19,8],[19,9,19,11],[19,12,19,14],[19,15,19,17],[18,0,18,2],[18,6,18,8],[18,9,18,11],[18,12,18,14],[18,15,18,17],[18,18,18,20],[16,3,18,4],[16,5,18,5],[19,18,19,20],[19,21,19,23],[19,24,19,26],[19,27,19,29],[20,2,20,4],[20,6,20,8],[17,12,17,14],[17,15,17,17],[17,18,17,20],[17,21,17,23],[17,24,17,26],[17,27,17,29],[15,21,15,23],[15,24,15,26],[15,27,15,29],[16,6,16,14],[16,15,16,20],[16,21,16,29],[17,6,17,8],[17,9,17,11],[15,0,15,5],[15,6,15,8],[15,9,15,11],[15,12,15,14],[15,15,15,17],[15,18,15,20],[3,0,3,13],[4,0,5,13],[6,0,6,10],[7,0,8,10],[9,0,9,9],[10,0,11,7]]}
[null,null,null,"EKSEMPEL"]
[]
[]
["Produkt"]
["Faldsele til klatrebrug",null,null,null,null,null,null,null,null,null,null,null,null,null,null,null,null,null,null,null,null,null,null,null,null,null,null,null,null,null,null,null,"Beregninger"]
[]
[null,null,null,null,null,null,null,null,null,null,null,null,null,null,null,null,null,null,null,null,null,null,null,null,null,null,null,null,null,null,null,null,{"$f":"Eks_House_of_Quality!G$19*Eks_House_of_Quality!$F20*Eks_House_of_Quality!G20","v":0},{"$f":"Eks_House_of_Quality!J$19*Eks_House_of_Quality!$F20*Eks_House_of_Quality!J20","v":0},{"$f":"Eks_House_of_Quality!M$19*Eks_House_of_Quality!$F20*Eks_House_of_Quality!M20","v":729},{"$f":"Eks_House_of_Quality!P$19*Eks_House_of_Quality!$F20*Eks_House_of_Quality!P20","v":0},{"$f":"Eks_House_of_Quality!S$19*Eks_House_of_Quality!$F20*Eks_House_of_Quality!S20","v":0},{"$f":"Eks_House_of_Quality!V$19*Eks_House_of_Quality!$F20*Eks_House_of_Quality!V20","v":0},{"$f":"Eks_House_of_Quality!Y$19*Eks_House_of_Quality!$F20*Eks_House_of_Quality!Y20","v":0},{"$f":"Eks_House_of_Quality!AB$19*Eks_House_of_Quality!$F20*Eks_House_of_Quality!AB20","v":0}]
[null,null,null,null,null,null,null,null,null,null,null,null,null,null,null,null,null,null,null,null,null,null,null,null,null,null,null,null,null,null,null,null,{"$f":"Eks_House_of_Quality!G$19*Eks_House_of_Quality!$F21*Eks_House_of_Quality!G21","v":0},{"$f":"Eks_House_of_Quality!J$19*Eks_House_of_Quality!$F21*Eks_House_of_Quality!J21","v":243},{"$f":"Eks_House_of_Quality!M$19*Eks_House_of_Quality!$F21*Eks_House_of_Quality!M21","v":243},{"$f":"Eks_House_of_Quality!P$19*Eks_House_of_Quality!$F21*Eks_House_of_Quality!P21","v":0},{"$f":"Eks_House_of_Quality!S$19*Eks_House_of_Quality!$F21*Eks_House_of_Quality!S21","v":0},{"$f":"Eks_House_of_Quality!V$19*Eks_House_of_Quality!$F21*Eks_House_of_Quality!V21","v":243},{"$f":"Eks_House_of_Quality!Y$19*Eks_House_of_Quality!$F21*Eks_House_of_Quality!Y21","v":0},{"$f":"Eks_House_of_Quality!AB$19*Eks_House_of_Quality!$F21*Eks_House_of_Quality!AB21","v":0}]
[null,null,null,null,null,null,null,null,null,null,null,null,null,null,null,null,null,null,null,null,null,null,null,null,null,null,null,null,null,null,null,null,{"$f":"Eks_House_of_Quality!G$19*Eks_House_of_Quality!$F22*Eks_House_of_Quality!G22","v":0},{"$f":"Eks_House_of_Quality!J$19*Eks_House_of_Quality!$F22*Eks_House_of_Quality!J22","v":0},{"$f":"Eks_House_of_Quality!M$19*Eks_House_of_Quality!$F22*Eks_House_of_Quality!M22","v":243},{"$f":"Eks_House_of_Quality!P$19*Eks_House_of_Quality!$F22*Eks_House_of_Quality!P22","v":0},{"$f":"Eks_House_of_Quality!S$19*Eks_House_of_Quality!$F22*Eks_House_of_Quality!S22","v":0},{"$f":"Eks_House_of_Quality!V$19*Eks_House_of_Quality!$F22*Eks_House_of_Quality!V22","v":0},{"$f":"Eks_House_of_Quality!Y$19*Eks_House_of_Quality!$F22*Eks_House_of_Quality!Y22","v":0},{"$f":"Eks_House_of_Quality!AB$19*Eks_House_of_Quality!$F22*Eks_House_of_Quality!AB22","v":0}]
["dato",null,null,null,null,null,null,null,null,null,null,null,null,null,null,null,null,null,null,null,null,null,null,null,null,null,null,null,null,null,null,null,{"$f":"Eks_House_of_Quality!G$19*Eks_House_of_Quality!$F23*Eks_House_of_Quality!G23","v":0},{"$f":"Eks_House_of_Quality!J$19*Eks_House_of_Quality!$F23*Eks_House_of_Quality!J23","v":0},{"$f":"Eks_House_of_Quality!M$19*Eks_House_of_Quality!$F23*Eks_House_of_Quality!M23","v":0},{"$f":"Eks_House_of_Quality!P$19*Eks_House_of_Quality!$F23*Eks_House_of_Quality!P23","v":0},{"$f":"Eks_House_of_Quality!S$19*Eks_House_of_Quality!$F23*Eks_House_of_Quality!S23","v":0},{"$f":"Eks_House_of_Quality!V$19*Eks_House_of_Quality!$F23*Eks_House_of_Quality!V23","v":0},{"$f":"Eks_House_of_Quality!Y$19*Eks_House_of_Quality!$F23*Eks_House_of_Quality!Y23","v":3},{"$f":"Eks_House_of_Quality!AB$19*Eks_House_of_Quality!$F23*Eks_House_of_Quality!AB23","v":0}]
["spids til at trække pex rør i trækrør, anvendes af vvs folk ved udskiftning af rør",null,null,null,null,null,null,null,null,null,null,null,null,null,null,null,null,null,null,null,null,null,null,null,null,null,null,null,null,null,null,null,{"$f":"Eks_House_of_Quality!G$19*Eks_House_of_Quality!$F24*Eks_House_of_Quality!G24","v":0},{"$f":"Eks_House_of_Quality!J$19*Eks_House_of_Quality!$F24*Eks_House_of_Quality!J24","v":0},{"$f":"Eks_House_of_Quality!M$19*Eks_House_of_Quality!$F24*Eks_House_of_Quality!M24","v":0},{"$f":"Eks_House_of_Quality!P$19*Eks_House_of_Quality!$F24*Eks_House_of_Quality!P24","v":0},{"$f":"Eks_House_of_Quality!S$19*Eks_House_of_Quality!$F24*Eks_House_of_Quality!S24","v":0},{"$f":"Eks_House_of_Quality!V$19*Eks_House_of_Quality!$F24*Eks_House_of_Quality!V24","v":729},{"$f":"Eks_House_of_Quality!Y$19*Eks_House_of_Quality!$F24*Eks_House_of_Quality!Y24","v":0},{"$f":"Eks_House_of_Quality!AB$19*Eks_House_of_Quality!$F24*Eks_House_of_Quality!AB24","v":0}]
[null,null,null,null,null,null,null,null,null,null,null,null,null,null,null,null,null,null,null,null,null,null,null,null,null,null,null,null,null,null,null,null,{"$f":"Eks_House_of_Quality!G$19*Eks_House_of_Quality!$F25*Eks_House_of_Quality!G25","v":0},{"$f":"Eks_House_of_Quality!J$19*Eks_House_of_Quality!$F25*Eks_House_of_Quality!J25","v":0},{"$f":"Eks_House_of_Quality!M$19*Eks_House_of_Quality!$F25*Eks_House_of_Quality!M25","v":0},{"$f":"Eks_House_of_Quality!P$19*Eks_House_of_Quality!$F25*Eks_House_of_Quality!P25","v":0},{"$f":"Eks_House_of_Quality!S$19*Eks_House_of_Quality!$F25*Eks_House_of_Quality!S25","v":0},{"$f":"Eks_House_of_Quality!V$19*Eks_House_of_Quality!$F25*Eks_House_of_Quality!V25","v":27},{"$f":"Eks_House_of_Quality!Y$19*Eks_House_of_Quality!$F25*Eks_House_of_Quality!Y25","v":0},{"$f":"Eks_House_of_Quality!AB$19*Eks_House_of_Quality!$F25*Eks_House_of_Quality!AB25","v":0}]
[null,null,null,null,null,null,null,null,null,null,null,null,null,null,null,null,null,null,null,null,null,null,null,null,null,null,null,null,null,null,null,null,{"$f":"Eks_House_of_Quality!G$19*Eks_House_of_Quality!$F26*Eks_House_of_Quality!G26","v":0},{"$f":"Eks_House_of_Quality!J$19*Eks_House_of_Quality!$F26*Eks_House_of_Quality!J26","v":243},{"$f":"Eks_House_of_Quality!M$19*Eks_House_of_Quality!$F26*Eks_House_of_Quality!M26","v":729},{"$f":"Eks_House_of_Quality!P$19*Eks_House_of_Quality!$F26*Eks_House_of_Quality!P26","v":0},{"$f":"Eks_House_of_Quality!S$19*Eks_House_of_Quality!$F26*Eks_House_of_Quality!S26","v":0},{"$f":"Eks_House_of_Quality!V$19*Eks_House_of_Quality!$F26*Eks_House_of_Quality!V26","v":0},{"$f":"Eks_House_of_Quality!Y$19*Eks_House_of_Quality!$F26*Eks_House_of_Quality!Y26","v":0},{"$f":"Eks_House_of_Quality!AB$19*Eks_House_of_Quality!$F26*Eks_House_of_Quality!AB26","v":0}]
[null,null,null,null,null,null,null,null,null,null,null,null,null,null,null,null,null,null,null,null,null,null,null,null,null,null,null,null,null,null,null,null,{"$f":"Eks_House_of_Quality!G$19*Eks_House_of_Quality!$F27*Eks_House_of_Quality!G27","v":0},{"$f":"Eks_House_of_Quality!J$19*Eks_House_of_Quality!$F27*Eks_House_of_Quality!J27","v":0},{"$f":"Eks_House_of_Quality!M$19*Eks_House_of_Quality!$F27*Eks_House_of_Quality!M27","v":81},{"$f":"Eks_House_of_Quality!P$19*Eks_House_of_Quality!$F27*Eks_House_of_Quality!P27","v":27},{"$f":"Eks_House_of_Quality!S$19*Eks_House_of_Quality!$F27*Eks_House_of_Quality!S27","v":9},{"$f":"Eks_House_of_Quality!V$19*Eks_House_of_Quality!$F27*Eks_House_of_Quality!V27","v":0},{"$f":"Eks_House_of_Quality!Y$19*Eks_House_of_Quality!$F27*Eks_House_of_Quality!Y27","v":0},{"$f":"Eks_House_of_Quality!AB$19*Eks_House_of_Quality!$F27*Eks_House_of_Quality!AB27","v":27}]
[null,null,null,null,null,null,null,null,null,null,null,null,null,null,null,null,null,null,null,null,null,null,null,null,null,null,null,null,null,null,null,null,{"$f":"Eks_House_of_Quality!G$19*Eks_House_of_Quality!$F28*Eks_House_of_Quality!G28","v":0},{"$f":"Eks_House_of_Quality!J$19*Eks_House_of_Quality!$F28*Eks_House_of_Quality!J28","v":0},{"$f":"Eks_House_of_Quality!M$19*Eks_House_of_Quality!$F28*Eks_House_of_Quality!M28","v":0},{"$f":"Eks_House_of_Quality!P$19*Eks_House_of_Quality!$F28*Eks_House_of_Quality!P28","v":0},{"$f":"Eks_House_of_Quality!S$19*Eks_House_of_Quality!$F28*Eks_House_of_Quality!S28","v":0},{"$f":"Eks_House_of_Quality!V$19*Eks_House_of_Quality!$F28*Eks_House_of_Quality!V28","v":27},{"$f":"Eks_House_of_Quality!Y$19*Eks_House_of_Quality!$F28*Eks_House_of_Quality!Y28","v":0},{"$f":"Eks_House_of_Quality!AB$19*Eks_House_of_Quality!$F28*Eks_House_of_Quality!AB28","v":0}]
["Retning af forbedring",null,null,null,null,null,1,null,null,0,null,null,0,null,null,1,null,null,1,null,null,1,null,null,1,null,null,1,null,null,null,null,{"$f":"SUM(AG7:AG15)","v":0},486,2025,27,9,1026,3,27]
[null,null,null,"\nTekniske \nkrav",null,"Vigtighed for kunden","Funktion",null,null,null,null,null,null,null,null,"Sortiment",null,null,null,null,null,"Teknisk",null,null,null,null,null,null,null,null,null,null,{"$f":"SUM(AG16:AN16)","v":3603}]
[null,null,null,null,null,null,"gældende standarder",null,null,"frigang i rør ",null,null,"Træk/skub modstand",null,null,"Rør dimmentioner",null,null,"materialer",null,null,"Fastspænding",null,null,"Gnidningskoefficient",null,null,"holdbarhed (pris pr træk)"]
["Kundekrav",null,null,null,null,null,3,null,null,9,null,null,9,null,null,3,null,null,1,null,null,9,null,null,3,null,null,3]
["krav til rør træk spids","Funktion","gøre udskiftning simpel",null,null,9,0,null,null,0,null,null,9,null,null,0,null,null,0,null,null,0,null,null,0,null,null,0]
[null,null,"må aldrig tabes i yderrør",null,null,3,0,null,null,9,null,null,9,null,null,0,null,null,0,null,null,9,null,null,0,null,null,0]
[null,null,"ikke skade yderrør",null,null,3,0,null,null,0,null,null,9,null,null,0,null,null,0,null,null,0,null,null,0,null,null,0]
[null,null,"indeholde glide middel",null,null,1,0,null,null,0,null,null,0,null,null,0,null,null,0,null,null,0,null,null,1,null,null,0]
[null,"Brugbarhed","Nem at monterer",null,null,9,0,null,null,0,null,null,0,null,null,0,null,null,0,null,null,9,null,null,0,null,null,0]
[null,null,"nem at demonterer",null,null,1,0,null,null,0,null,null,0,null,null,0,null,null,0,null,null,3,null,null,0,null,null,0]
[null,null,"mulighed for træk+skub",null,null,9,0,null,null,3,null,null,9,null,null,0,null,null,0,null,null,0,null,null,0,null,null,0]
[null,null,"Rentabel",null,null,3,0,null,null,0,null,null,3,null,null,3,null,null,3,null,null,0,null,null,0,null,null,3]
[null,null,"ikke behov for værktøj",null,null,1,0,null,null,0,null,null,0,null,null,0,null,null,0,null,null,3,null,null,0,null,null,0]
[null,null,"Teknisk prioritet",null,null,null,{"$f":"Eks_House_of_Quality!AG16","v":0},null,null,{"$f":"Eks_House_of_Quality!AH16","v":486},null,null,{"$f":"Eks_House_of_Quality!AI16","v":2025},null,null,{"$f":"Eks_House_of_Quality!AJ16","v":27},null,null,{"$f":"Eks_House_of_Quality!AK16","v":9},null,null,{"$f":"Eks_House_of_Quality!AL16","v":1026},null,null,{"$f":"Eks_House_of_Quality!AM16","v":3},null,null,{"$f":"Eks_House_of_Quality!AN16","v":27}]
[null,null,"Procent af den samlede ",null,null,null,{"$f":"100/Eks_House_of_Quality!$AG$17*Eks_House_of_Quality!G29:I29","v":0},null,null,{"$f":"100/Eks_House_of_Quality!$AG$17*Eks_House_of_Quality!J29:L29","v":13.488759367194005},null,null,{"$f":"100/Eks_House_of_Quality!$AG$17*Eks_House_of_Quality!M29:O29","v":56.203164029975021},null,null,{"$f":"100/Eks_House_of_Quality!$AG$17*Eks_House_of_Quality!P29:R29","v":0.74937552039966693},null,null,{"$f":"100/Eks_House_of_Quality!$AG$17*Eks_House_of_Quality!S29:U29","v":0.24979184013322231},null,null,{"$f":"100/Eks_House_of_Quality!$AG$17*Eks_House_of_Quality!V29:X29","v":28.476269775187344},null,null,{"$f":"100/Eks_House_of_Quality!$AG$17*Eks_House_of_Quality!Y29:AA29","v":8.3263946711074108E-2},null,null,{"$f":"100/Eks_House_of_Quality!$AG$17*Eks_House_of_Quality!AB29:AD29","v":0.74937552039966693}]
[null,null,"Enhed",null,null,null,"Yes/No",null,null,"mm",null,null,"N",null,null,"stk",null,null,"stk",null,null,"N",null,null,"N",null,null,"kr/stk"]
[null,null,"Design Mål",null,null,null,"Y",null,null,3,null,null,100,null,null,4,null,null,2,null,null,500,null,null,"0.2",null,null,2]
[null,null,"Teknisk benchmarking","Vores produkt",null,null,"Y",null,null,2.8,null,null,90,null,null,2,null,null,1,null,null,460,null,null,0.21,null,null,1.24]
[null,null,null,"Konkurrent A´s produkt",null,null,"Y",null,null,3.5,null,null,110,null,null,2,null,null,2,null,null,600,null,null,0.23,null,null,5]
[null,null,null,"Konkurrent B´s produkt",null,null,"Y",null,null,2,null,null,130,null,null,4,null,null,2,null,null,520,null,null,0.19,null,null,10]
[null,null,9,"Stærk overensstemmelse"]
[null,null,3,"Middel overensstemmelse"]
[null,null,1,"Svag overensstemmelse"]
[null,null,0,"Ingen overensstemmelse"]

{"sheet":"Endeligt_produkt","index":62,"n_rows":7,"n_cols":7,"rows_kept":7,"cut":false,"hidden":true,"merged":[[2,1,2,2],[3,1,4,2],[5,1,5,2],[6,1,6,2]]}
[]
[null,null,"Udført:",{"$f":"IF(G7>0,IF(G7=1,2,1),0)","v":0}]
[null,"Tegninger  til endeligt design"]
[]
[]
[null,"Beskrivelse af endeligt design"]
[null,null,null,null,null,null,{"$f":"ISTEXT(B7)*1","v":0}]

{"sheet":"Emballage","index":63,"n_rows":25,"n_cols":9,"rows_kept":25,"cut":false,"hidden":true,"merged":[[21,1,21,2],[22,1,22,2],[15,1,15,2],[16,1,16,2],[17,1,17,2],[18,1,18,2],[19,1,19,2],[20,1,20,2],[2,1,2,2],[14,1,14,2],[3,1,3,2],[4,1,4,2],[5,1,5,2],[6,1,6,2],[7,1,7,2],[8,1,8,2],[9,1,9,2],[10,1,10,2],[11,1,11,2],[12,1,12,2],[13,1,13,2]]}
[]
[null,"Udført:",{"$f":"IF(I25>0,IF(I25>9,2,1),0)","v":0}]
[null,"Krav til Emballage-design"]
[null,"Helhedsindtryk: Beskriv, hvad man skal tænke, når man ser emballagen"]
[null,null,null,null,null,null,null,null,{"$f":"ISTEXT(B5)*1","v":0}]
[null,"Dekoration: Beskriv formgivning, materialetykkelser, dimensioner, farvevalg, illustrationer m.m."]
[null,null,null,null,null,null,null,null,{"$f":"ISTEXT(B7)*1","v":0}]
[null,"Tekst: Beskriv tekst på emballage, vejledninger, advarsler og anden væsentlig information"]
[null,null,null,null,null,null,null,null,0]
[null,"Leverandørvenlighed: beskriv tilpasning til palle, antal stk. i højden; positionslåse (ølkasser) m.m."]
[null,null,null,null,null,null,null,null,0]
[null,"Ydre styrke: Stabelbar, tryk, slag, vand, varme/kulde, spidse/skarpe genstande m.m."]
[null,null,null,null,null,null,null,null,0]
[null,"Indre emballage: transportsikring, rystelser, fastholdelse, opdeling af indhold, energinedsættelse ved fald m.m."]
[null,null,null,null,null,null,null,null,0]
[null,"Vejledninger: Brugervejledning, installationsvejledning, montagevejledning m.m."]
[null,null,null,null,null,null,null,null,0]
[null,"Materialer: pris, holdbarhed, æstetik, formbarhed, produktionsvenlighed "]
[null,null,null,null,null,null,null,null,0]
[null,"Produktion: udskæring, støbning, formning, samling, sammenføjning (limning, clips, svejsning)"]
[null,null,null,null,null,null,null,null,0]
[null,"Tegning af dit design"]
[null,null,null,null,null,null,null,null,0]
[]
[null,null,null,null,null,null,null,null,{"$f":"SUM(I5:I24)","v":0}]

{"sheet":"Produktion","index":64,"n_rows":30,"n_cols":15,"rows_kept":30,"cut":false,"hidden":true,"merged":[[17,1,17,6],[18,3,18,6],[19,3,19,6],[28,2,28,6],[21,3,21,6],[22,3,22,6],[24,1,24,6],[25,2,25,6],[26,2,26,6],[27,2,27,6],[23,3,23,6],[29,2,29,6],[8,1,8,6],[2,1,2,6],[3,2,3,6],[4,2,5,6],[6,1,6,6],[7,1,7,6],[20,3,20,6],[9,1,9,6],[10,2,10,3],[11,2,11,3],[12,2,12,3],[13,2,13,3],[14,2,14,3],[15,2,15,3],[16,1,16,6]]}
[]
[null,null,null,null,null,"Udført:",{"$f":"IF(O30>0,IF(O30>16,2,1),0)","v":0}]
[null,"Beslut produktionsform"]
[null,null,"Argumentation for valg"]
[null,"Lagerstyret"]
[null,"Ordrestyret"]
[null,"Tegn et flow over produktionsprocesserne ",null,null,null,null,null,{"$f":"Flow!C2","v":0}]
[null,"Tegn et produktionslayout",null,null,null,null,null,{"$f":"Produktionslayout!C2","v":0}]
[null,"Tegn et tidsskema ",null,null,null,null,null,{"$f":"Gantt!C2","v":0}]
[null,"Opstil en leverandørliste "]
[null,"Leverandør ","Vare/varetype",null,"Telefonnr.","E-mail","Kontakt navn"]
[null,null,null,null,null,null,null,null,null,null,null,null,{"$f":"NOT(ISBLANK(B12))*NOT(ISBLANK(C12))*NOT(ISBLANK(E12))*NOT(ISBLANK(F12))*NOT(ISBLANK(G12))","v":0}]
[null,null,null,null,null,null,null,null,null,null,null,null,{"$f":"NOT(ISBLANK(B13))*NOT(ISBLANK(C13))*NOT(ISBLANK(E13))*NOT(ISBLANK(F13))*NOT(ISBLANK(G13))","v":0}]
[null,null,null,null,null,null,null,null,null,null,null,null,0]
[null,null,null,null,null,null,null,null,null,null,null,null,0]
[null,null,null,null,null,null,null,null,null,null,null,null,0,{"$f":"SUM(M12:M16)","v":0},{"$f":"IF(N16>2,1,0)","v":0}]
[null,"Kontakt leverandører for pris og salgsbetingelser ",null,null,null,null,null,{"$f":"Priser!F2","v":0}]
[null,"Opsæt et prisoverslag over de direkte omkostninger pr. produkt"]
[null,null,"Pris","Kommentar"]
[null,"Materialer",null,null,null,null,null,null,null,null,null,null,null,null,{"$f":"ISNUMBER(C20)*ISTEXT(D20)","v":0}]
[null,"Arbejdsløn",null,null,null,null,null,null,null,null,null,null,null,null,{"$f":"ISNUMBER(C21)*ISTEXT(D21)","v":0}]
[null,"Energi",null,null,null,null,null,null,null,null,null,null,null,null,0]
[null,"Slid på maskiner",null,null,null,null,null,null,null,null,null,null,null,null,0]
[null,"Transport"]
[null,"Vurder, hvordan produktionen kan optimeres"]
[null,"Materialer",null,null,null,null,null,null,null,null,null,null,null,null,{"$f":"ISTEXT(C26)*1","v":0}]
[null,"Arbejdsløn",null,null,null,null,null,null,null,null,null,null,null,null,{"$f":"ISTEXT(C27)*1","v":0}]
[null,"Energi",null,null,null,null,null,null,null,null,null,null,null,null,0]
[null,"Slid på maskiner",null,null,null,null,null,null,null,null,null,null,null,null,0]
[null,"Transport",null,null,null,null,null,null,null,null,null,null,null,null,{"$f":"SUM(O16:O29,H7:H17)","v":0}]

{"sheet":"Flow","index":65,"n_rows":4,"n_cols":9,"rows_kept":4,"cut":false,"hidden":true,"merged":[[2,1,2,2],[3,1,3,2],[4,1,4,2]]}
[]
[null,"Udført:",{"$f":"IF(I2>0,IF(I2>0,2,1),0)","v":0},null,null,null,null,null,0]
[null,"Tegn et detaljeret flow over alle produktionsprocesser (kopier de indsatte figurer)\nDu kan også vælge at benytte et tegneprogram - fx https://www.lucidchart.com",null,null,null,null,null,null,"Sættes til 1 når der åbnes første gang"]
[null,"Indsæt vurderede/målte tider på alle processer "]

{"sheet":"Produktionslayout","index":66,"n_rows":4,"n_cols":9,"rows_kept":4,"cut":false,"hidden":true,"merged":[[2,1,2,2],[3,1,3,2],[4,1,4,2]]}
[]
[null,"Udført:",{"$f":"IF(I2>0,IF(I2>0,2,1),0)","v":0},null,null,null,null,null,0]
[null,"Tegn et detaljeret layout  over produktion og nær-/fjernlager\nHusk, at dit layout skal forholde sig til det fysiske rum, det skal opsættes i. (relevante mål skal være påført)",null,null,null,null,null,null,"Sættes til 1 når der åbnes første gang"]
[null,"Indsæt vurderede tider for processer fra ”flow over produktionsprocesserne” og transporttider"]

{"sheet":"Gantt","index":67,"n_rows":26,"n_cols":48,"rows_kept":26,"cut":false,"hidden":true,"merged":[[20,6,21,7],[21,1,21,2],[22,1,22,2],[22,6,25,7],[23,1,23,2],[24,1,24,2],[25,1,25,2],[15,2,15,5],[16,2,16,5],[17,2,17,5],[18,2,18,5],[20,1,20,3],[20,4,21,5],[20,15,20,21],[21,15,21,21],[20,12,20,13],[21,12,21,13],[2,1,2,2],[4,2,4,5],[5,2,5,5],[6,2,6,5],[7,2,7,5],[8,2,8,5],[9,2,9,5],[10,2,10,5],[11,2,11,5],[12,2,12,5],[13,2,13,5],[14,2,14,5]]}
[]
[null,"Udført:",{"$f":"IF(I2>0,IF(I2>0,2,1),0)","v":0},null,null,null,null,null,0]
[null,"Udfyld nedenstående gantt-kort:",null,null,null,null,null,null,"Sættes til 1 når der åbnes første gang"]
[]
[null,"Post","Beskrivelse",null,null,null,"Ansvarlig","Tids-type",1,2,3,4,1,2,3,4,5,6,7,8,9,10,11,12,13,14,15,16,17,18,19,20,21,22,23,24,25,26,27,28,29,30,31,32,33,34,35,36]
[null,0]
[null,1]
[null,2]
[null,3]
[null,4]
[null,5]
[null,6]
[null,7]
[null,8]
[null,9]
[null,10]
[null,11]
[null,12]
[null,13]
[]
[null,"Ansvarlig",null,null,"Tids-type",null,"Tidsmål",null,null,null,null,null,"farve",null,null,"Tidsmål "]
[null,"Navn",null,"Initialer",null,null,null,null,null,null,null,null,"kode"]
[null,null,null,null,"Transport","T"]
[null,null,null,null,"Process","P"]
[null,null,null,null,"Lager","L"]
[null,null,null,null,"Ventetid","V"]

{"sheet":"Priser","index":68,"n_rows":45,"n_cols":12,"rows_kept":45,"cut":false,"hidden":true,"merged":[[38,1,38,5],[41,1,41,5],[42,1,42,5],[26,1,26,5],[29,1,29,5],[30,1,30,5],[33,1,33,5],[34,1,34,5],[37,1,37,5],[25,1,25,5],[2,1,2,5],[5,1,5,5],[6,1,6,5],[9,1,9,5],[10,1,10,5],[13,1,13,5],[14,1,14,5],[17,1,17,5],[18,1,18,5],[21,1,21,5],[22,1,22,5]]}
[]
[null,null,null,null,"Udført:",{"$f":"IF(L45>0,IF(L45>5,2,1),0)","v":0}]
[null,"Undersøgelse af priser "]
[null,"Varenummer","Beskrivelse","Materiale ","Pris","Lev. tid"]
[null,null,null,null,null,null,null,null,null,null,null,{"$f":"NOT(ISBLANK(B5))*NOT(ISBLANK(C5))*NOT(ISBLANK(D5))*NOT(ISBLANK(E5))*NOT(ISBLANK(F5))","v":0}]
[null,"Leveringsbetingelser"]
[null,null,null,null,null,null,null,null,null,null,null,{"$f":"ISTEXT(B7)*1","v":0}]
[null,"Varenummer","Beskrivelse","Materiale ","Pris","Lev. tid"]
[null,null,null,null,null,null,null,null,null,null,null,{"$f":"NOT(ISBLANK(B9))*NOT(ISBLANK(C9))*NOT(ISBLANK(D9))*NOT(ISBLANK(E9))*NOT(ISBLANK(F9))","v":0}]
[null,"Leveringsbetingelser"]
[null,null,null,null,null,null,null,null,null,null,null,{"$f":"ISTEXT(B11)*1","v":0}]
[null,"Varenummer","Beskrivelse","Materiale ","Pris","Lev. tid"]
[null,null,null,null,null,null,null,null,null,null,null,{"$f":"NOT(ISBLANK(B13))*NOT(ISBLANK(C13))*NOT(ISBLANK(D13))*NOT(ISBLANK(E13))*NOT(ISBLANK(F13))","v":0}]
[null,"Leveringsbetingelser"]
[null,null,null,null,null,null,null,null,null,null,null,{"$f":"ISTEXT(B15)*1","v":0}]
[null,"Varenummer","Beskrivelse","Materiale ","Pris","Lev. tid"]
[null,null,null,null,null,null,null,null,null,null,null,{"$f":"NOT(ISBLANK(B17))*NOT(ISBLANK(C17))*NOT(ISBLANK(D17))*NOT(ISBLANK(E17))*NOT(ISBLANK(F17))","v":0}]
[null,"Leveringsbetingelser"]
[null,null,null,null,null,null,null,null,null,null,null,{"$f":"ISTEXT(B19)*1","v":0}]
[null,"Varenummer","Beskrivelse","Materiale ","Pris","Lev. tid"]
[null,null,null,null,null,null,null,null,null,null,null,{"$f":"NOT(ISBLANK(B21))*NOT(ISBLANK(C21))*NOT(ISBLANK(D21))*NOT(ISBLANK(E21))*NOT(ISBLANK(F21))","v":0}]
[null,"Leveringsbetingelser"]
[null,null,null,null,null,null,null,null,null,null,null,{"$f":"ISTEXT(B23)*1","v":0}]
[null,"Varenummer","Beskrivelse","Materiale ","Pris","Lev. tid"]
[null,null,null,null,null,null,null,null,null,null,null,{"$f":"NOT(ISBLANK(B25))*NOT(ISBLANK(C25))*NOT(ISBLANK(D25))*NOT(ISBLANK(E25))*NOT(ISBLANK(F25))","v":0}]
[null,"Leveringsbetingelser"]
[null,null,null,null,null,null,null,null,null,null,null,{"$f":"ISTEXT(B27)*1","v":0}]
[null,"Varenummer","Beskrivelse","Materiale ","Pris","Lev. tid"]
[null,null,null,null,null,null,null,null,null,null,null,{"$f":"NOT(ISBLANK(B29))*NOT(ISBLANK(C29))*NOT(ISBLANK(D29))*NOT(ISBLANK(E29))*NOT(ISBLANK(F29))","v":0}]
[null,"Leveringsbetingelser"]
[null,null,null,null,null,null,null,null,null,null,null,{"$f":"ISTEXT(B31)*1","v":0}]
[null,"Varenummer","Beskrivelse","Materiale ","Pris","Lev. tid"]
[null,null,null,null,null,null,null,null,null,null,null,{"$f":"NOT(ISBLANK(B33))*NOT(ISBLANK(C33))*NOT(ISBLANK(D33))*NOT(ISBLANK(E33))*NOT(ISBLANK(F33))","v":0}]
[null,"Leveringsbetingelser"]
[null,null,null,null,null,null,null,null,null,null,null,{"$f":"ISTEXT(B35)*1","v":0}]
[null,"Varenummer","Beskrivelse","Materiale ","Pris","Lev. tid"]
[null,null,null,null,null,null,null,null,null,null,null,{"$f":"NOT(ISBLANK(B37))*NOT(ISBLANK(C37))*NOT(ISBLANK(D37))*NOT(ISBLANK(E37))*NOT(ISBLANK(F37))","v":0}]
[null,"Leveringsbetingelser"]
[null,null,null,null,null,null,null,null,null,null,null,{"$f":"ISTEXT(B39)*1","v":0}]
[null,"Varenummer","Beskrivelse","Materiale ","Pris","Lev. tid"]
[null,null,null,null,null,null,null,null,null,null,null,{"$f":"NOT(ISBLANK(B41))*NOT(ISBLANK(C41))*NOT(ISBLANK(D41))*NOT(ISBLANK(E41))*NOT(ISBLANK(F41))","v":0}]
[null,"Leveringsbetingelser"]
[null,null,null,null,null,null,null,null,null,null,null,{"$f":"ISTEXT(B43)*1","v":0}]
[]
[null,null,null,null,null,null,null,null,null,null,null,{"$f":"SUM(L5:L44)","v":0}]

{"sheet":"Markedsføring","index":69,"n_rows":26,"n_cols":12,"rows_kept":26,"cut":false,"hidden":true,"merged":[[20,1,20,4],[21,1,21,2],[21,3,24,4],[22,1,22,2],[23,1,23,2],[24,1,24,2],[14,1,14,3],[15,1,15,3],[16,1,16,3],[17,1,17,4],[18,1,18,2],[18,3,19,4],[19,1,19,2],[13,1,13,3],[2,1,2,4],[3,2,3,4],[4,2,4,4],[5,2,5,4],[6,2,6,4],[7,2,7,4],[8,1,8,4],[9,1,9,4],[10,1,10,3],[11,1,11,3],[12,1,12,3]]}
[]
[null,null,null,"Udført:",{"$f":"IF(K26>0,IF(K26>10,2,1),0)","v":0}]
[null,"Redegørelse for produktstrategi  (Product)"]
[null,"Navn på produktet ",null,null,null,null,null,null,null,null,{"$f":"ISTEXT(C4)*1","v":0}]
[null,"Egenskaber, der skal fremhæves ved produktet",null,null,null,null,null,null,null,null,{"$f":"ISTEXT(C5)*1","v":0}]
[null,"Services, der er knyttet til produktet",null,null,null,null,null,null,null,null,0]
[null,"Historie, der skal fortælles om produktet",null,null,null,null,null,null,null,null,0]
[null,"Logodesignet til produktet eller til virksomheden",null,null,null,null,null,null,null,null,0]
[null,"Grafisk design af emballagen ",null,null,null,{"$f":"Grafisk_design!D2","v":0}]
[null,"Redegør for prisstrategien     (Price) "]
[null,"Specielt produkt -  høj pris ",null,null,null,null,null,null,null,null,null,{"$f":"ISNUMBER(E11)*1","v":0}]
[null,"Mange konkurrenter -  lav pris",null,null,null,null,null,null,null,null,null,{"$f":"ISNUMBER(E12)*1","v":0}]
[null,"Høj, men faldende startpris",null,null,null,null,null,null,null,null,null,0]
[null,"Lav startpris med håb om stigning",null,null,null,null,null,null,null,null,{"$f":"IF(SUM(L11:L14)>0,1,0)","v":0},0]
[null,"Omkostninger forbundet med 1 produkt",null,null,null,null,null,null,null,null,{"$f":"ISNUMBER(E15)*1","v":0}]
[null,"Pris pr. produkt"]
[null,"Fortjeneste pr. produkt"]
[null,"Redegør for distributionsstrategien  (Placement) "]
[null,"Vil I selv stå for distributionen - beskriv hvordan  ",null,null,null,null,null,null,null,null,{"$f":"ISTEXT(D19)*1","v":0}]
[null,"Vil I have andre til at stå for distributionen - beskriv hvordan  "]
[null,"Redegør for kommunikationsstrategien  (Promotion)"]
[null,"Vil I anvende annoncer i blade, radio- og TVspots, banner reklamer m.m.?",null,null,null,null,null,null,null,null,{"$f":"ISTEXT(D22)*1","v":0}]
[null,"Vil I opsøge kunden med breve, opringninger, mails m.m.  Hvordan?"]
[null,"Vil I anvende konkurrencer, vareprøver, pakketilbud m.m. Hvordan?"]
[null,"Kan I skaffe medieomtale af jeres produkter?"]
[null,null,null,null,null,null,null,null,null,null,{"$f":"SUM(K4:K25)+F9","v":0}]

{"sheet":"Grafisk_design","index":70,"n_rows":24,"n_cols":11,"rows_kept":24,"cut":false,"hidden":true,"merged":[[20,1,20,3],[21,1,21,2],[22,1,22,2],[14,2,14,3],[15,2,15,3],[16,2,16,3],[17,2,17,3],[18,2,18,3],[19,2,19,3],[13,2,13,3],[2,1,2,3],[3,1,3,3],[4,2,4,3],[5,2,5,3],[6,2,6,3],[7,2,7,3],[8,2,8,3],[9,2,9,3],[10,2,10,3],[11,2,11,3],[12,1,12,3]]}
[]
[null,null,"Udført:",{"$f":"IF(K24>0,IF(K24>14,2,1),0)","v":0}]
[null,"Beskriv tekst på emballagen "]
[null,"(Vejledning, Story telling, Tekniske data, Identifikation, m.m.)"]
[null,"Vejledninger ",null,null,null,null,null,null,null,null,{"$f":"ISTEXT(C5)*1","v":0}]
[null,"Tekniske data",null,null,null,null,null,null,null,null,{"$f":"ISTEXT(C6)*1","v":0}]
[null,"Produktidentifikation",null,null,null,null,null,null,null,null,0]
[null,"Anmeldelser/priser",null,null,null,null,null,null,null,null,0]
[null,"Godkendelser",null,null,null,null,null,null,null,null,0]
[null,"Story telling",null,null,null,null,null,null,null,null,0]
[null,"Stregkoder",null,null,null,null,null,null,null,null,0]
[null,"Sprog ",null,null,null,null,null,null,null,null,0]
[null,"Argumenter for layout"]
[null,"Hvilken overfladeglans",null,null,null,null,null,null,null,null,0]
[null,"Hvilken baggrundsfarve",null,null,null,null,null,null,null,null,0]
[null,"Hvilken fonttype",null,null,null,null,null,null,null,null,0]
[null,"Hvilke tekststørrelser ",null,null,null,null,null,null,null,null,0]
[null,"Hvilke blikfang",null,null,null,null,null,null,null,null,0]
[null,"Hvilke farver",null,null,null,null,null,null,null,null,0]
[null,"Hvilke illustrationer",null,null,null,null,null,null,null,null,0]
[null,"Billeder af designforslag "]
[]
[]
[null,null,null,null,null,null,null,null,null,null,{"$f":"SUM(K5:K23)","v":0}]

{"sheet":"Økonomi","index":71,"n_rows":21,"n_cols":9,"rows_kept":21,"cut":false,"hidden":true,"merged":[[17,1,17,2],[18,1,18,2],[19,1,19,2],[16,1,16,2],[15,1,15,2],[2,1,2,2],[8,1,8,2],[9,1,9,2],[10,1,10,2],[11,1,11,2]]}
[]
[null,null,"Udført:",{"$f":"IF(I22>0,IF(I22>13,2,1),0)","v":0}]
[null,"Redegør for produktets forventede diffusion  "]
[null,"Hvilke fordele giver produktet kunden i forhold til konkurrentens produkter",null,null,null,null,null,null,{"$f":"ISTEXT(C4)*1","v":0}]
[null,"Hvad ved produktet kræver specielle færdigheder/normer/holdninger af kunden",null,null,null,null,null,null,{"$f":"ISTEXT(C5)*1","v":0}]
[null,"Hvor svært er det at anvende/lære, hvordan man anvender produktet",null,null,null,null,null,null,0]
[null,"Hvor er produktet tilgængeligt for kunden, kan man tage det i hånden, prøve det, se det ",null,null,null,null,null,null,0]
[null,"Hvordan skabes synlighed for produktet, i medierne ",null,null,null,null,null,null,0]
[null,"Tegn en PLC kurve over den forventede diffusion"]
[null,"Påfør styktal og tider for forskellige former for adoptanter"]
[null,null,null,null,null,null,null,null,{"$f":"ISTEXT(B11)*1","v":0}]
[null,"Opstil budgetter"]
[null,null,"Omsætningsbudget",{"$f":"Omsætningsbudget!H2","v":0}]
[null,null,"Etableringsbudget",{"$f":"Etableringsbudget!F3","v":0}]
[null,null,"Faste udgifter",{"$f":"Faste_udgifter!F2","v":0}]
[null,"Vurder ud fra budgetterne virksomhedens økonomi "]
[null,{"$f":"\"De aktuelle tal er: Resultat 3. år \" &Omsætningsbudget!N27 & \" , Samlede investeringsomkostninger \" & Etableringsbudget!C46 & \", of faste omk. pr.måned er \" & Faste_udgifter!D35","v":"De aktuelle tal er: Resultat 3. år 1000 , Samlede investeringsomkostninger 0, of faste omk. pr.måned er 0"}]
[null,null,null,null,null,null,null,null,{"$f":"ISTEXT(B18)*1","v":0}]
[null,"Beskriv, hvor der kunne sættes ind for at få en bedre økonomi"]
[null,null,null,null,null,null,null,null,{"$f":"ISTEXT(B20)*1","v":0}]
[null,null,null,null,null,null,null,null,{"$f":"SUM(I4:I20,D13:D15)","v":0}]

{"sheet":"Omsætningsbudget","index":72,"n_rows":27,"n_cols":14,"rows_kept":27,"cut":false,"hidden":true,"merged":[[23,0,23,12],[4,1,4,8],[5,1,5,5],[5,7,5,8],[6,1,6,5],[6,7,6,8],[7,1,7,5],[7,7,7,8],[8,1,8,5],[9,1,9,12],[14,0,14,12],[18,0,18,12],[22,1,22,5]]}
[]
[null,null,null,null,null,null,"Udført:",{"$f":"IF(H8<>5,IF(G9<>53,2,1),0)","v":0}]
[]
[]
[null,"Omkostninger pr produkt "]
[null,"Materiale omkostninger pr. produkt",null,null,null,null,5,"Variable"]
[null,"Variable omkostninger (- løn) pr. produkt",null,null,null,null,0,"omkostninger i alt "]
[null,"Løn omkostninger pr. produkt",null,null,null,null,0,{"$f":"G6+G7+G8","v":5}]
[null,"Salgspris pr. produkt",null,null,null,null,53]
[null,"Beskriv hvor mange stk der sælges ",null,null,null,null,null,null,null,null,null,null,null,"I alt"]
[null,"jan","feb","mar","apr","maj","jun","jul","aug","sep","okt","nov","dec"]
["Første år",0,0,0,0,0,0,0,0,0,0,0,0,{"$f":"SUM(B12:M12)","v":0}]
["Andet år",0,0,0,0,0,0,0,0,0,0,0,0,{"$f":"SUM(B13:M13)","v":0}]
["Tredje år",0,0,0,0,0,0,200,0,0,0,0,0,{"$f":"SUM(B14:M14)","v":200}]
["Variable omkostninger",null,null,null,null,null,null,null,null,null,null,null,null,"I alt"]
["Første år",{"$f":"B12*$H$5","v":0},{"$f":"C12*$H$5","v":0},0,0,0,0,0,0,0,0,0,0,{"$f":"SUM(B16:M16)","v":0}]
["Andet år",{"$f":"B13*$H$5","v":0},0,0,0,0,0,0,0,0,0,0,0,{"$f":"SUM(B17:M17)","v":0}]
["Tredje år",0,0,0,0,0,0,0,0,0,0,0,0,{"$f":"SUM(B18:M18)","v":0}]
["indtægter",null,null,null,null,null,null,null,null,null,null,null,null,"I alt"]
["Første år",{"$f":"B12*$G$6","v":0},{"$f":"C12*$G$6","v":0},0,0,0,0,0,0,0,0,0,0,{"$f":"SUM(B20:M20)","v":0}]
["Andet år",{"$f":"B13*$G$6","v":0},0,0,0,0,0,0,0,0,0,0,0,{"$f":"SUM(B21:M21)","v":0}]
["Tredje år",0,0,0,0,0,0,1000,0,0,0,0,0,{"$f":"SUM(B22:M22)","v":1000}]
[null,"Faste udgifter pr. md",null,null,null,null,{"$f":"Faste_udgifter!D35","v":0}]
["Resultat",null,null,null,null,null,null,null,null,null,null,null,null,"I alt"]
["Første år",{"$f":"B20-B16-$G$20","v":0},{"$f":"C20-C16-$G$20","v":0},0,0,0,0,0,0,0,0,0,0,{"$f":"SUM(B25:M25)","v":0}]
["Andet år",{"$f":"B21-B17-$G$20","v":0},0,0,0,0,0,0,0,0,0,0,0,{"$f":"SUM(B26:M26)","v":0}]
["Tredje år",0,0,0,0,0,0,1000,0,0,0,0,0,{"$f":"SUM(B27:M27)","v":1000}]

{"sheet":"Etableringsbudget","index":73,"n_rows":46,"n_cols":6,"rows_kept":46,"cut":false,"hidden":true,"merged":[[35,1,35,2],[35,4,35,5],[4,1,4,4],[5,1,5,2],[5,4,5,5],[15,1,15,2],[15,4,15,5],[25,1,25,2],[25,4,25,5]]}
[]
[]
[null,null,null,null,"Udført:",{"$f":"IF(C46>0,IF(C46>1,2,1),0)","v":0}]
[]
[null,"Etablerings budget "]
[null,"produktionsmaskiner",null,null,"Bygninger/lokaler"]
[null,null,0,null,null,0]
[null,null,0,null,null,0]
[null,null,0,null,null,0]
[null,null,0,null,null,0]
[null,null,0,null,null,0]
[null,null,0,null,null,0]
[null,null,0,null,null,0]
[null,"produktionsmaskiner i alt",{"$f":"SUM(C7:C13)","v":0},null,"Bygninger i alt",{"$f":"SUM(F7:F13)","v":0}]
[]
[null,"Kontorudstyr og software",null,null,"Møbler"]
[null,null,0,null,null,0]
[null,null,0,null,null,0]
[null,null,0,null,null,0]
[null,null,0,null,null,0]
[null,null,0,null,null,0]
[null,null,0,null,null,0]
[null,null,0,null,null,0]
[null,"Kontorudstyr i alt",{"$f":"SUM(C17:C23)","v":0},null,"Møbler i alt",{"$f":"SUM(F17:F23)","v":0}]
[]
[null,"Transport Cykel/bil/truck ect",null,null,"varerindkøb før start"]
[null,null,0,null,null,0]
[null,null,0,null,null,0]
[null,null,0,null,null,0]
[null,null,0,null,null,0]
[null,null,0,null,null,0]
[null,null,0,null,null,0]
[null,null,0,null,null,0]
[null,"Transport i alt",{"$f":"SUM(C27:C33)","v":0},null,"Transport i alt",{"$f":"SUM(F27:F33)","v":0}]
[]
[null,"Patenter, designbesk. og andet",null,null,"Rådgivning, advokat, revisor m.m."]
[null,null,0,null,null,0]
[null,null,0,null,null,0]
[null,null,0,null,null,0]
[null,null,0,null,null,0]
[null,null,0,null,null,0]
[null,null,0,null,null,0]
[null,null,0,null,null,0]
[null,"Imaterielle rettigheder",{"$f":"SUM(C37:C43)","v":0},null,"Imaterielle rettigheder",{"$f":"SUM(F37:F43)","v":0}]
[]
[null,"Anskaffelser i alt",{"$f":"C14+C24+F14+F24+C34+C44+F34+F44","v":0}]

{"sheet":"Faste_udgifter","index":74,"n_rows":35,"n_cols":6,"rows_kept":35,"cut":false,"hidden":true,"merged":[[34,1,34,2],[3,1,3,5],[4,1,4,2],[4,4,4,5],[14,1,14,2],[14,4,14,5],[24,1,24,2],[24,4,24,5]]}
[]
[null,null,null,null,"Udført:",{"$f":"IF(D35>0,IF(D35>10,2,1),0)","v":0}]
[]
[null,"Faste omkostninger  pr. måned "]
[null,"Husleje",null,null,"El vand varme internet"]
[null,null,0,null,null,0]
[null,null,0,null,null,0]
[null,null,0,null,null,0]
[null,null,0,null,null,0]
[null,null,0,null,null,0]
[null,null,0,null,null,0]
[null,null,0,null,null,0]
[null,"Husleje i alt",{"$f":"SUM(C6:C12)","v":0},null,"El vand varme internet i alt",{"$f":"SUM(F6:F12)","v":0}]
[]
[null,"leje ( software, biler m.m. )",null,null,"Medarbejdere (Løn)"]
[null,null,0,null,null,0]
[null,null,0,null,null,0]
[null,null,0,null,null,0]
[null,null,0,null,null,0]
[null,null,0,null,null,0]
[null,null,0,null,null,0]
[null,null,0,null,null,0]
[null,"leje ( software, biler m.m. )",{"$f":"SUM(C16:C22)","v":0},null,"Møbler i alt",{"$f":"SUM(F16:F22)","v":0}]
[]
[null,"Renter for lån mv."]
[null,null,0,null,null,0]
[null,null,0,null,null,0]
[null,null,0,null,null,0]
[null,null,0,null,null,0]
[null,null,0,null,null,0]
[null,null,0,null,null,0]
[null,null,0,null,null,0]
[null,"Renter for lån i alt ",{"$f":"SUM(C26:C32)","v":0},null,null,{"$f":"SUM(F26:F32)","v":0}]
[]
[null,"Faste omkostninger pr måned",null,{"$f":"C13+C23+F13+F23+C33+F33","v":0}]

{"sheet":"Virksomhedsetablering","index":75,"n_rows":28,"n_cols":6,"rows_kept":28,"cut":false,"hidden":true,"merged":[[6,1,8,1]]}
[]
[null,"Udført:",{"$f":"IF(F28>0,IF(F28>12,2,1),0)","v":0}]
[null,"Virksomhedens etablering"]
[null,"Argumenter for valg af virksomhedsform (Enkeltejer/Interessentskab [personlig hæfte], Anpartsselskab [indskud 80.000], Aktieselskab [indskud 500 .000])"]
[null,"(Enkeltejer/Interessentskab [personlig hæfte], Anpartsselskab [indskud 80.000], Aktieselskab [indskud 500 .000])"]
[null,null,null,null,null,{"$f":"ISTEXT(B6)*1","v":0}]
[null,"Argumenter for valg af organisationsform "]
[]
[]
[null,null,null,null,null,{"$f":"ISTEXT(B10)*1","v":0}]
[null,"Tegn organisationen "]
[]
[null,"Udfør en personlighedstest for de nuværende ansatte ",{"$f":"PAEI!R2","v":0}]
[null,"Udform en kontrakt for de enkelte medarbejdere i virksomheden ",{"$f":"Gruppekontrakt!D2","v":0}]
[null,"Formuler virksomhedens vision (en ledestjerne der ikke nødvendigvis skal kunne nås)"]
[null,null,null,null,null,{"$f":"ISTEXT(B16)*1","v":0}]
[null,"Formuler virksomhedens mission (det der sættes i værk for, at komme nærmere visionen)"]
[null,null,null,null,null,{"$f":"ISTEXT(B18)*1","v":0}]
[null,"Formuler virksomhedens mål (Det der skal kunne nås inden for en overskuelig fremtid [f.eks. 1 år])"]
[null,null,null,null,null,{"$f":"ISTEXT(B20)*1","v":0}]
[null,"Udfyld virksomhedens forretningsmodel",{"$f":"Forretningsmodel!G2","v":0}]
[null,"Udfyld en SWOT for virksomheden: ",{"$f":"SWOT_analyse!G2","v":0}]
[null,"eventuelt med udgangspunkt i konkurrende virksomheder "]
[null,"Opstil en forretningsplan for virksomheden "]
[null,"forretningsplan"]
[null,"Indsæt her linket til den udfyldte forretningsplan"]
[]
[null,null,null,null,null,{"$f":"SUM(F6:F27)","v":0}]

{"sheet":"PAEI","index":76,"n_rows":115,"n_cols":19,"rows_kept":115,"cut":false,"hidden":true,"merged":[[44,2,44,3],[44,5,44,7],[44,9,44,11],[44,13,44,15],[2,1,2,17],[3,1,3,17],[39,1,39,16],[42,2,42,3],[42,5,42,7],[42,9,42,11],[42,13,42,15],[43,2,43,3],[43,5,43,7],[43,9,43,11],[43,13,43,15]]}
[]
[null,null,null,null,null,null,null,null,null,null,null,null,null,null,null,null,"Udført:",{"$f":"IF(G87>0,IF(G88>0,2,1),0)","v":0}]
[null,"Undersøg en medarbejder"]
[null,"Skriv 1 eller x ved de ting nedenfor, du mener karakteriserer dig selv, og lad de øvrige stå tomme - husk, at du først må bladre ned på siden og se testresultatet, når du har udfyldt HELE skemaet"]
[]
[null,"point",null,null,"point",null,null,"point",null,null,"point",null,null,"point",null,null,"point"]
[null,null,"1. Positiv",null,null,"21. Fremtidsbevidst",null,null,"41. Centraliserer",null,null,"61. Kvalitetsbevidst",null,null,"81. Administrator",null,null,"101. Målbevidst"]
[null,null,"2. Visionær",null,null,"22. Responsiv",null,null,"42. Går i spidsen",null,null,"62. Kontrolleret",null,null,"82. Giver efter",null,null,"102. Tålmodig"]
[null,null,"3. Vellidt",null,null,"23. Moderat",null,null,"43. Let sind",null,null,"63. Fysisk aktiv",null,null,"83. Billedlig",null,null,"103. Praktisk"]
[null,null,"4. Traditionstro",null,null,"24. Tidlig voksen",null,null,"44. Rastløs",null,null,"64. Tager chancer",null,null,"84. Dogmatisk",null,null,"104. Viljestærk"]
[null,null,"5. Intellektuel",null,null,"25. Tilfreds",null,null,"45. Analytisk",null,null,"65. Harmonisk",null,null,"85. Formel",null,null,"105. Energisk"]
[null,"point",null,null,"point",null,null,"point",null,null,"point",null,null,"point",null,null,"point"]
[null,null,"6. Eventyrlysten",null,null,"26. Aggressiv",null,null,"46. Inspirerende",null,null,"66. Beslutsom",null,null,"86. Bagstræberisk",null,null,"106. Nøjagtig"]
[null,null,"7. Villig",null,null,"27. Optimistisk",null,null,"47. Attraktiv",null,null,"67. Prøvende",null,null,"87. Utroværdig",null,null,"107. Respektfuld"]
[null,null,"8. Detaljerig",null,null,"28. Resultattrang",null,null,"48. Uovervindelig",null,null,"68. Rodet",null,null,"88. Udglattende",null,null,"108. Populær"]
[null,null,"9 . Kammeratlig",null,null,"29. Musikalsk",null,null,"49. Organisator",null,null,"69. Utålmodig",null,null,"89. Drivende",null,null,"109. Åbent sind"]
[null,null,"10. Karakterstærk",null,null,"30. Veltalende",null,null,"50. Menneskelig",null,null,"70. Idérig",null,null,"90. Nonchalant",null,null,"110. Modig"]
[null,"point",null,null,"point",null,null,"point",null,null,"point",null,null,"point",null,null,"point"]
[null,null,"11. Påvirkelig",null,null,"31. Argumentativ",null,null,"51. Glemsom",null,null,"71. Majestætisk",null,null,"91. Legesyg",null,null,"111. Kritisk"]
[null,null,"12. Gestikulerende",null,null,"32. Upræcis",null,null,"52. Ubøjelig",null,null,"72. Forsigtig",null,null,"92. Rolig",null,null,"112. Fordomsfuld"]
[null,null,"13. Elsker smiger",null,null,"33. Konventionel",null,null,"53. Lystrer ordrer",null,null,"73. Melankolsk",null,null,"93. Entusiastisk",null,null,"113. Ophidset"]
[null,null,"14. Stræber",null,null,"34. Beundret",null,null,"54. Selvcentreret",null,null,"74. Fanatisk",null,null,"94. Tillidsfuld",null,null,"114. Uenergisk"]
[null,null,"15. Upålidelig",null,null,"35. Ineffektiv",null,null,"55. Ryggesløs",null,null,"75. Autoritær",null,null,"95. Pionerånd",null,null,"115. Forandringssky"]
[null,"point",null,null,"point",null,null,"point",null,null,"point",null,null,"point",null,null,"point"]
[null,null,"16. Velovervejet",null,null,"36. Sensitiv",null,null,"56. Diplomatisk",null,null,"76. Fredelig",null,null,"96. Samarbejdsvillig",null,null,"116. Skabende"]
[null,null,"17. Straffer gerne",null,null,"37. Uafhængig",null,null,"57. Kontrollerende",null,null,"77. Uformel",null,null,"97. Ansvarsbevidst",null,null,"117. Overbevisende"]
[null,null,"18. Munter",null,null,"38. Regelbunden",null,null,"58. Charmerende",null,null,"78. Tilpasser sig",null,null,"98. Kraftfuld",null,null,"118. Aktiv"]
[null,null,"19. Original",null,null,"39. Spørgende",null,null,"59. Idealistisk",null,null,"79. Loyal",null,null,"99. Taler frit",null,null,"119. Hårdt arbejdende"]
[null,null,"20. Afbalanceret",null,null,"40. Jovial",null,null,"60. Presser på",null,null,"80. Skaber enighed",null,null,"100. Lyttende",null,null,"120. Involveret"]
[]
[]
[null,"Dette regneark er udarbejdet med tilladelse fra Undervisningsministeriet. "]
[null,"Det originale materiale kan findes på linket: ",null,null,null,"http://pub.uvm.dk/2006/eudlaering/pdf/samarbejde_eks_4.pdf"]
[null,"Se Introduktion til roller i forbindelse med gruppesamarbejde"]
[null,null,"http://pub.uvm.dk/2006/eudlaering/samarbejde.html"]
[]
[]
[]
[]
[null,"Analyseresultat"]
[]
[]
[null,null,{"$f":"IF(G87>0,G87,\"\")","v":""},null,null,{"$f":"IF(G88>0,G88,\"\")","v":""},null,null,null,{"$f":"IF(G89>0,G89,\"\")","v":""},null,null,null,{"$f":"IF(G90>0,G90,\"\")","v":""}]
[null,null,"Producent",null,null,"Administrator",null,null,null,"Entreprenør",null,null,null,"Integrator"]
[null,null,{"$f":"IF(G87>=21,C93,IF(G87>=16,C94,IF(G87>=11,C95,IF(G87>=5,C96,\"Ingen Producent del\"))))","v":"Ingen Producent del"},null,null,{"$f":"IF(G88>=21,G93,IF(G88>=16,G94,IF(G88>=11,G95,IF(G88>=5,G96,\"Ingen Integrator del\"))))","v":"Ingen Integrator del"},null,null,null,{"$f":"IF(G89>=21,K93,IF(G89>=16,K94,IF(G89>=11,K95,IF(G89>=5,K94,\"ingen Entreprenør del\"))))","v":"ingen Entreprenør del"},null,null,null,{"$f":"IF(G90>=21,O93,IF(G90>=16,O94,IF(G90>=11,O95,IF(G90>=5,O94,\"Ingen Administrator  del\"))))","v":"Ingen Administrator  del"}]
[]
[]
[]
[]
[]
[]
[]
[]
[]
[]
[]
[]
[]
[]
[]
[]
[]
[]
[]
[]
[]
[]
[]
[null,"x","AAAAAAAAAAA","x","BBBBBB","x","CCCCCCC","x","DDDDDD","x","EEEEEE","x","FFFFF","x","GGGGGG","x","HHHHHHH","x","IIIIIII"]
[null,{"$f":"B11","v":0},{"$f":"C11","v":"5. Intellektuel"},{"$f":"E13","v":0},{"$f":"F13","v":"26. Aggressiv"},{"$f":"B8","v":0},{"$f":"C8","v":"2. Visionær"},{"$f":"B10","v":0},{"$f":"C10","v":"4. Traditionstro"},{"$f":"B7","v":0},{"$f":"C7","v":"1. Positiv"},{"$f":"B23","v":0},{"$f":"C23","v":"15. Upålidelig"},{"$f":"B15","v":0},{"$f":"C15","v":"8. Detaljerig"},{"$f":"B14","v":0},{"$f":"C14","v":"7. Villig"},{"$f":"B9","v":0},{"$f":"C9","v":"3. Vellidt"}]
[null,{"$f":"B17","v":0},{"$f":"C17","v":"10. Karakterstærk"},{"$f":"E19","v":0},{"$f":"F19","v":"31. Argumentativ"},{"$f":"B13","v":0},{"$f":"C13","v":"6. Eventyrlysten"},{"$f":"E15","v":0},{"$f":"F15","v":"28. Resultattrang"},{"$f":"B29","v":0},{"$f":"C29","v":"20. Afbalanceret"},{"$f":"E16","v":0},{"$f":"F16","v":"29. Musikalsk"},{"$f":"B22","v":0},{"$f":"C22","v":"14. Stræber"},{"$f":"B16","v":0},{"$f":"C16","v":"9 . Kammeratlig"},{"$f":"B19","v":0},{"$f":"C19","v":"11. Påvirkelig"}]
[null,{"$f":"B21","v":0},{"$f":"C21","v":"13. Elsker smiger"},{"$f":"E26","v":0},{"$f":"F26","v":"37. Uafhængig"},{"$f":"B20","v":0},{"$f":"C20","v":"12. Gestikulerende"},{"$f":"E21","v":0},{"$f":"F21","v":"33. Konventionel"},{"$f":"E11","v":0},{"$f":"F11","v":"25. Tilfreds"},{"$f":"E20","v":0},{"$f":"F20","v":"32. Upræcis"},{"$f":"B26","v":0},{"$f":"C26","v":"17. Straffer gerne"},{"$f":"E8","v":0},{"$f":"F8","v":"22. Responsiv"},{"$f":"B27","v":0},{"$f":"C27","v":"18. Munter"}]
[null,{"$f":"B25","v":0},{"$f":"C25","v":"16. Velovervejet"},{"$f":"H15","v":0},{"$f":"I15","v":"48. Uovervindelig"},{"$f":"B28","v":0},{"$f":"C28","v":"19. Original"},{"$f":"H11","v":0},{"$f":"I11","v":"45. Analytisk"},{"$f":"E17","v":0},{"$f":"F17","v":"30. Veltalende"},{"$f":"E25","v":0},{"$f":"F25","v":"36. Sensitiv"},{"$f":"E9","v":0},{"$f":"F9","v":"23. Moderat"},{"$f":"E14","v":0},{"$f":"F14","v":"27. Optimistisk"},{"$f":"E22","v":0},{"$f":"F22","v":"34. Beundret"}]
[null,{"$f":"E10","v":0},{"$f":"F10","v":"24. Tidlig voksen"},{"$f":"H29","v":0},{"$f":"I29","v":"60. Presser på"},{"$f":"E7","v":0},{"$f":"F7","v":"21. Fremtidsbevidst"},{"$f":"K23","v":0},{"$f":"L23","v":"75. Autoritær"},{"$f":"E29","v":0},{"$f":"F29","v":"40. Jovial"},{"$f":"H19","v":0},{"$f":"I19","v":"51. Glemsom"},{"$f":"E27","v":0},{"$f":"F27","v":"38. Regelbunden"},{"$f":"E28","v":0},{"$f":"F28","v":"39. Spørgende"},{"$f":"E23","v":0},{"$f":"F23","v":"35. Ineffektiv"}]
[null,{"$f":"H7","v":0},{"$f":"I7","v":"41. Centraliserer"},{"$f":"K16","v":0},{"$f":"L16","v":"69. Utålmodig"},{"$f":"H10","v":0},{"$f":"I10","v":"44. Rastløs"},{"$f":"K28","v":0},{"$f":"L28","v":"79. Loyal"},{"$f":"K11","v":0},{"$f":"L11","v":"65. Harmonisk"},{"$f":"K15","v":0},{"$f":"L15","v":"68. Rodet"},{"$f":"H8","v":0},{"$f":"I8","v":"42. Går i spidsen"},{"$f":"H13","v":0},{"$f":"I13","v":"46. Inspirerende"},{"$f":"H9","v":0},{"$f":"I9","v":"43. Let sind"}]
[null,{"$f":"H20","v":0},{"$f":"I20","v":"52. Ubøjelig"},{"$f":"N16","v":0},{"$f":"O16","v":"89. Drivende"},{"$f":"H23","v":0},{"$f":"I23","v":"55. Ryggesløs"},{"$f":"N7","v":0},{"$f":"O7","v":"81. Administrator"},{"$f":"K25","v":0},{"$f":"L25","v":"76. Fredelig"},{"$f":"K26","v":0},{"$f":"L26","v":"77. Uformel"},{"$f":"H16","v":0},{"$f":"I16","v":"49. Organisator"},{"$f":"K14","v":0},{"$f":"L14","v":"67. Prøvende"},{"$f":"H14","v":0},{"$f":"I14","v":"47. Attraktiv"}]
[null,{"$f":"H22","v":0},{"$f":"I22","v":"54. Selvcentreret"},{"$f":"N21","v":0},{"$f":"O21","v":"93. Entusiastisk"},{"$f":"H28","v":0},{"$f":"I28","v":"59. Idealistisk"},{"$f":"N10","v":0},{"$f":"O10","v":"84. Dogmatisk"},{"$f":"N20","v":0},{"$f":"O20","v":"92. Rolig"},{"$f":"N8","v":0},{"$f":"O8","v":"82. Giver efter"},{"$f":"H21","v":0},{"$f":"I21","v":"53. Lystrer ordrer"},{"$f":"K20","v":0},{"$f":"L20","v":"72. Forsigtig"},{"$f":"H17","v":0},{"$f":"I17","v":"50. Menneskelig"}]
[null,{"$f":"H25","v":0},{"$f":"I25","v":"56. Diplomatisk"},{"$f":"N27","v":0},{"$f":"O27","v":"98. Kraftfuld"},{"$f":"K10","v":0},{"$f":"L10","v":"64. Tager chancer"},{"$f":"N11","v":0},{"$f":"O11","v":"85. Formel"},{"$f":"N29","v":0},{"$f":"O29","v":"100. Lyttende"},{"$f":"N14","v":0},{"$f":"O14","v":"87. Utroværdig"},{"$f":"H26","v":0},{"$f":"I26","v":"57. Kontrollerende"},{"$f":"K27","v":0},{"$f":"L27","v":"78. Tilpasser sig"},{"$f":"H27","v":0},{"$f":"I27","v":"58. Charmerende"}]
[null,{"$f":"K7","v":0},{"$f":"L7","v":"61. Kvalitetsbevidst"},{"$f":"Q11","v":0},{"$f":"R11","v":"105. Energisk"},{"$f":"K17","v":0},{"$f":"L17","v":"70. Idérig"},{"$f":"Q7","v":0},{"$f":"R7","v":"101. Målbevidst"},{"$f":"Q27","v":0},{"$f":"R27","v":"118. Aktiv"},{"$f":"N17","v":0},{"$f":"O17","v":"90. Nonchalant"},{"$f":"K8","v":0},{"$f":"L8","v":"62. Kontrolleret"},{"$f":"N25","v":0},{"$f":"O25","v":"96. Samarbejdsvillig"},{"$f":"K9","v":0},{"$f":"L9","v":"63. Fysisk aktiv"}]
[null,{"$f":"K13","v":0},{"$f":"L13","v":"66. Beslutsom"},{"$f":"Q17","v":0},{"$f":"R17","v":"110. Modig"},{"$f":"K22","v":0},{"$f":"L22","v":"74. Fanatisk"},{"$f":"Q13","v":0},{"$f":"R13","v":"106. Nøjagtig"},null,null,{"$f":"N19","v":0},{"$f":"O19","v":"91. Legesyg"},{"$f":"N22","v":0},{"$f":"O22","v":"94. Tillidsfuld"},{"$f":"Q8","v":0},{"$f":"R8","v":"102. Tålmodig"},{"$f":"K21","v":0},{"$f":"L21","v":"73. Melankolsk"}]
[null,{"$f":"K19","v":0},{"$f":"L19","v":"71. Majestætisk"},{"$f":"Q26","v":0},{"$f":"R26","v":"117. Overbevisende"},{"$f":"N9","v":0},{"$f":"O9","v":"83. Billedlig"},{"$f":"Q20","v":0},{"$f":"R20","v":"112. Fordomsfuld"},null,null,{"$f":"N28","v":0},{"$f":"O28","v":"99. Taler frit"},{"$f":"Q9","v":0},{"$f":"R9","v":"103. Praktisk"},{"$f":"Q29","v":0},{"$f":"R29","v":"120. Involveret"},{"$f":"K29","v":0},{"$f":"L29","v":"80. Skaber enighed"}]
[null,{"$f":"N13","v":0},{"$f":"O13","v":"86. Bagstræberisk"},null,null,{"$f":"N23","v":0},{"$f":"O23","v":"95. Pionerånd"},{"$f":"Q23","v":0},{"$f":"R23","v":"115. Forandringssky"},null,null,{"$f":"Q16","v":0},{"$f":"R16","v":"109. Åbent sind"},{"$f":"Q14","v":0},{"$f":"R14","v":"107. Respektfuld"},null,null,{"$f":"N15","v":0},{"$f":"O15","v":"88. Udglattende"}]
[null,{"$f":"N26","v":0},{"$f":"O26","v":"97. Ansvarsbevidst"},null,null,{"$f":"Q21","v":0},{"$f":"R21","v":"113. Ophidset"},null,null,null,null,null,null,{"$f":"Q19","v":0},{"$f":"R19","v":"111. Kritisk"},null,null,{"$f":"Q15","v":0},{"$f":"R15","v":"108. Populær"}]
[null,{"$f":"Q10","v":0},{"$f":"R10","v":"104. Viljestærk"},null,null,{"$f":"Q25","v":0},{"$f":"R25","v":"116. Skabende"},null,null,null,null,null,null,{"$f":"Q28","v":0},{"$f":"R28","v":"119. Hårdt arbejdende"},null,null,{"$f":"Q22","v":0},{"$f":"R22","v":"114. Uenergisk"}]
[null,{"$f":"15-COUNTIF(B70:B84,0)","v":0},"A Resultat",{"$f":"12-COUNTIF(D70:D84,0)","v":0}," B Resultat",{"$f":"15-COUNTIF(F70:F84,0)","v":0}," C Resultat",{"$f":"13-COUNTIF(H70:H84,0)","v":0}," D Resultat",{"$f":"10-COUNTIF(J70:J84,0)","v":0},"E Resultat",{"$f":"13-COUNTIF(L70:L84,0)","v":0}," F Resultat",{"$f":"15-COUNTIF(N70:N84,0)","v":0}," G Resultat",{"$f":"12-COUNTIF(P70:P84,0)","v":0}," H Resultat",{"$f":"15-COUNTIF(R70:R84,0)","v":0}," I Resultat"]
[]
[null,null,null,null,"DGGH",null,{"$f":"H85+N85+N85+P85","v":0},null,"Producent"]
[null,null,null,null,"BAAD",null,{"$f":"D85+B85+B85+H85","v":0},null,"Administrator"]
[null,null,null,null,"BCCF",null,{"$f":"D85+F85+F85+L85","v":0},null,"Entreprenør"]
[null,null,null,null,"HIIF",null,{"$f":"P85+R85+R85+L85","v":0},null,"Integrator"]
[]
[null,null,"Producent",null,null,null,"Administrator",null,null,null,"Entreprenør",null,null,null,"Integrator"]
[null,null,"Stræbsom og resultatorienteret\nGår i spidsen for gruppen\nFuld kontrol af gruppen\nKritisk over for kvalitet\nSkaffer resultaterne hjem\nHurtig til at straffe og belønne\nStor respekt for systemet",null,null,null,"Majestætisk/intellektuel\nViljestærk og vedholdende\nStor personlig drivkraft\nKonservativ og diplomatisk\nTidlig voksen og fornuftig\nCentraliserer og samler\nLægger store planer og gennemfører dem",null,null,null,"Pionerånd, driver gruppen frem\nEventyrlysten og modig\nInspirerende og idérig\nSkaber visioner og nytænkning\nTager gerne chancer\nFarverig og gestikulerende\nEr forudsigelig",null,null,null,"Venlig og charmerende\nPopulær og vellidt\nMunter og generøs\nÅben over for andre mennesker\nSensitiv over for følelser\nStor menneskelig ansvarlighed\nOmsorgsfuld og hjælpsom\nGod politisk forståelse"]
[null,null,"Karakterstærk og loyal\nGod administrator\nTager ikke mange chancer\nKonventionel og formel\nLægger vægt på fakta\nLoyal og tillidsfuld\nSystematisk og praktisk",null,null,null,"Delegerer med fast hånd\nKan lide faste rammer\nNøjagtig i sine krav\nVil se hurtige resultater\nSikrer at regler overholdes\nGod selvkontrol\nGod administrator",null,null,null,"Veltalende og overbevisende\nUformel og original\nÅben over for nye ideer\nKatalysator for andres ideer\nKan placere nytænkning de rigtige steder",null,null,null,"Kammeratlig\nSer lyst på tingene\nPoleret og venlig optræden\nHarmonisator\nLøser konflikter og skaber nye muligheder"]
[null,null,"Er ikke bange\nHøflig, tålmodig og villig\nSøgende i samarbejde med andre\nKan snakke meget\nKan være glemsom og upræcis",null,null,null,"Optimistisk og balanceret\nSætter mennesket over systemet\nManøvrerer tingene på plads\nOrganiserer sig ud af problemerne",null,null,null,"Analytisk og ansvarsbevidst\nSamarbejdsvillig\nForstår værdien af nye tanker og ideer\nGennemførelse tager tid\nSkynder sig langsomt",null,null,null,"Er ikke bange for konflikter\nSætter gruppen over den enkelte\nEr uafhængig og stærk\nIndividualist i problemløsning\nBeslutninger skal gennemføres"]
[null,null,"Ønsker ikke faste regler\nKan være hård i samarbejdet med\nandre, ryggesløs\nAggressiv og uafhængig\nKan være utroværdig\nUkonventionel og rastløs\nArbejder gerne alene\nSætter sine egne regler",null,null,null,"Uenergisk og doven\nKan virke nonchalant\nKan i pressede situationer blive\nmelankolsk og selvmedlidende\nOfte letsindig/Arbejder i bølger\nArbejder gerne uden regler\nKan ikke lide rutinearbejde",null,null,null,"Intet kan ændres\nMenneskeligt stabil med faste holdninger\nKan virke farveløs og kedelig\nEr god i specialistjob\nBevarer det traditionsrige og forudsigelige\nRegelfast",null,null,null,"Ønsker ingen forandringer\nDogmatisk, autoritær og magtsyg\nArbejder gerne alene\nElsker smiger og ros\nGår ind for disciplin og hårdt arbejde\nEr ofte hård i sin straf\nBeslutninger gennemføres til yderste\nkonsekvens\nGiver ikke efter"]
[]
[null,{"$f":"PAEI!K7","v":0},{"$f":"PAEI!L7","v":"61. Kvalitetsbevidst"},{"$f":"PAEI!Q11","v":0},{"$f":"PAEI!R11","v":"105. Energisk"},{"$f":"PAEI!K17","v":0},{"$f":"PAEI!L17","v":"70. Idérig"},{"$f":"PAEI!Q7","v":0},{"$f":"PAEI!R7","v":"101. Målbevidst"},{"$f":"PAEI!Q27","v":0},{"$f":"PAEI!R27","v":"118. Aktiv"},{"$f":"PAEI!N17","v":0},{"$f":"PAEI!O17","v":"90. Nonchalant"},{"$f":"PAEI!K8","v":0},{"$f":"PAEI!L8","v":"62. Kontrolleret"},{"$f":"PAEI!N25","v":0},{"$f":"PAEI!O25","v":"96. Samarbejdsvillig"},{"$f":"PAEI!K9","v":0},{"$f":"PAEI!L9","v":"63. Fysisk aktiv"}]
[null,{"$f":"PAEI!K13","v":0},{"$f":"PAEI!L13","v":"66. Beslutsom"},{"$f":"PAEI!Q17","v":0},{"$f":"PAEI!R17","v":"110. Modig"},{"$f":"PAEI!K22","v":0},{"$f":"PAEI!L22","v":"74. Fanatisk"},{"$f":"PAEI!Q13","v":0},{"$f":"PAEI!R13","v":"106. Nøjagtig"},null,null,{"$f":"PAEI!N19","v":0},{"$f":"PAEI!O19","v":"91. Legesyg"},{"$f":"PAEI!N22","v":0},{"$f":"PAEI!O22","v":"94. Tillidsfuld"},{"$f":"PAEI!Q8","v":0},{"$f":"PAEI!R8","v":"102. Tålmodig"},{"$f":"PAEI!K21","v":0},{"$f":"PAEI!L21","v":"73. Melankolsk"}]
[null,{"$f":"PAEI!K19","v":0},{"$f":"PAEI!L19","v":"71. Majestætisk"},{"$f":"PAEI!Q26","v":0},{"$f":"PAEI!R26","v":"117. Overbevisende"},{"$f":"PAEI!N9","v":0},{"$f":"PAEI!O9","v":"83. Billedlig"},{"$f":"PAEI!Q20","v":0},{"$f":"PAEI!R20","v":"112. Fordomsfuld"},null,null,{"$f":"PAEI!N28","v":0},{"$f":"PAEI!O28","v":"99. Taler frit"},{"$f":"PAEI!Q9","v":0},{"$f":"PAEI!R9","v":"103. Praktisk"},{"$f":"PAEI!Q29","v":0},{"$f":"PAEI!R29","v":"120. Involveret"},{"$f":"PAEI!K29","v":0},{"$f":"PAEI!L29","v":"80. Skaber enighed"}]
[null,{"$f":"PAEI!N13","v":0},{"$f":"PAEI!O13","v":"86. Bagstræberisk"},null,null,{"$f":"PAEI!N23","v":0},{"$f":"PAEI!O23","v":"95. Pionerånd"},{"$f":"PAEI!Q23","v":0},{"$f":"PAEI!R23","v":"115. Forandringssky"},null,null,{"$f":"PAEI!Q16","v":0},{"$f":"PAEI!R16","v":"109. Åbent sind"},{"$f":"PAEI!Q14","v":0},{"$f":"PAEI!R14","v":"107. Respektfuld"},null,null,{"$f":"PAEI!N15","v":0},{"$f":"PAEI!O15","v":"88. Udglattende"}]
[null,{"$f":"PAEI!N26","v":0},{"$f":"PAEI!O26","v":"97. Ansvarsbevidst"},null,null,{"$f":"PAEI!Q21","v":0},{"$f":"PAEI!R21","v":"113. Ophidset"},null,null,null,null,null,null,{"$f":"PAEI!Q19","v":0},{"$f":"PAEI!R19","v":"111. Kritisk"},null,null,{"$f":"PAEI!Q15","v":0},{"$f":"PAEI!R15","v":"108. Populær"}]
[null,{"$f":"PAEI!Q10","v":0},{"$f":"PAEI!R10","v":"104. Viljestærk"},null,null,{"$f":"PAEI!Q25","v":0},{"$f":"PAEI!R25","v":"116. Skabende"},null,null,null,null,null,null,{"$f":"PAEI!Q28","v":0},{"$f":"PAEI!R28","v":"119. Hårdt arbejdende"},null,null,{"$f":"PAEI!Q22","v":0},{"$f":"PAEI!R22","v":"114. Uenergisk"}]
[null,{"$f":"15-COUNTIF(B89:B103,0)","v":9},"A Resultat",{"$f":"12-COUNTIF(D89:D103,0)","v":9}," B Resultat",{"$f":"15-COUNTIF(F89:F103,0)","v":9}," C Resultat",{"$f":"13-COUNTIF(H89:H103,0)","v":9}," D Resultat",{"$f":"10-COUNTIF(J89:J103,0)","v":9},"E Resultat",{"$f":"13-COUNTIF(L89:L103,0)","v":9}," F Resultat",{"$f":"15-COUNTIF(N89:N103,0)","v":9}," G Resultat",{"$f":"12-COUNTIF(P89:P103,0)","v":9}," H Resultat",{"$f":"15-COUNTIF(R89:R103,0)","v":9}," I Resultat"]
[]
[null,null,null,null,"DGGH",null,{"$f":"H104+N104+N104+P104","v":36}]
[null,null,null,null,"BAAD",null,{"$f":"D104+B104+B104+H104","v":36}]
[null,null,null,null,"BCCF",null,{"$f":"D104+F104+F104+L104","v":36}]
[null,null,null,null,"HIIF",null,{"$f":"P104+R104+R104+L104","v":36}]
[]
[null,null,"Producent",null,null,null,"Integrator",null,null,null,"Entreprenør",null,null,null,"Administrator"]
[null,null,"Stræbsom og resultatorienteret\nGår i spidsen for gruppen\nFuld kontrol af gruppen\nKritisk over for kvalitet\nSkaffer resultaterne hjem\nHurtig til at straffe og belønne\nStor respekt for systemet",null,null,null,"Majestætisk/intellektuel\nViljestærk og vedholdende\nStor personlig drivkraft\nKonservativ og diplomatisk\nTidlig voksen og fornuftig\nCentraliserer og samler\nLægger store planer og gennemfører dem",null,null,null,"Pionerånd, driver gruppen frem\nEventyrlysten og modig\nInspirerende og idérig\nSkaber visioner og nytænkning\nTager gerne chancer\nFarverig og gestikulerende\nEr forudsigelig",null,null,null,"Venlig og charmerende\nPopulær og vellidt\nMunter og generøs\nÅben over for andre mennesker\nSensitiv over for følelser\nStor menneskelig ansvarlighed\nOmsorgsfuld og hjælpsom\nGod politisk forståelse"]
[null,null,"Karakterstærk og loyal\nGod administrator\nTager ikke mange chancer\nKonventionel og formel\nLægger vægt på fakta\nLoyal og tillidsfuld\nSystematisk og praktisk",null,null,null,"Delegerer med fast hånd\nKan lide faste rammer\nNøjagtig i sine krav\nVil se hurtige resultater\nSikrer at regler overholdes\nGod selvkontrol\nGod administrator",null,null,null,"Veltalende og overbevisende\nUformel og original\nÅben over for nye ideer\nKatalysator for andres ideer\nKan placere nytænkning de rigtige steder",null,null,null,"Kammeratlig\nSer lyst på tingene\nPoleret og venlig optræden\nHarmonisator\nLøser konflikter og skaber nye muligheder"]
[null,null,"Er ikke bange\nHøflig, tålmodig og villig\nSøgende i samarbejde med andre\nKan snakke meget\nKan være glemsom og upræcis",null,null,null,"Optimistisk og balanceret\nSætter mennesket over systemet\nManøvrerer tingene på plads\nOrganiserer sig ud af problemerne",null,null,null,"Analytisk og ansvarsbevidst\nSamarbejdsvillig\nForstår værdien af nye tanker og ideer\nGennemførelse tager tid\nSkynder sig langsomt",null,null,null,"Er ikke bange for konflikter\nSætter gruppen over den enkelte\nEr uafhængig og stærk\nIndividualist i problemløsning\nBeslutninger skal gennemføres"]
[null,null,"Ønsker ikke faste regler\nKan være hård i samarbejdet med\nandre, ryggesløs\nAggressiv og uafhængig\nKan være utroværdig\nUkonventionel og rastløs\nArbejder gerne alene\nSætter sine egne regler",null,null,null,"Uenergisk og doven\nKan virke nonchalant\nKan i pressede situationer blive\nmelankolsk og selvmedlidende\nOfte letsindig/Arbejder i bølger\nArbejder gerne uden regler\nKan ikke lide rutinearbejde",null,null,null,"Intet kan ændres\nMenneskeligt stabil med faste holdninger\nKan virke farveløs og kedelig\nEr god i specialistjob\nBevarer det traditionsrige og forudsigelige\nRegelfast",null,null,null,"Ønsker ingen forandringer\nDogmatisk, autoritær og magtsyg\nArbejder gerne alene\nElsker smiger og ros\nGår ind for disciplin og hårdt arbejde\nEr ofte hård i sin straf\nBeslutninger gennemføres til yderste\nkonsekvens\nGiver ikke efter"]

{"sheet":"Gruppekontrakt","index":77,"n_rows":39,"n_cols":9,"rows_kept":39,"cut":false,"hidden":true,"merged":[[37,1,37,2],[25,1,27,2],[28,1,28,2],[29,1,31,2],[32,1,32,2],[33,1,35,2],[36,1,36,2],[24,1,24,2],[2,1,2,2],[3,1,5,2],[6,1,6,2],[7,1,9,2],[15,1,15,2],[16,1,16,2],[17,1,19,2],[20,1,20,2],[21,1,23,2]]}
[]
[null,null,"Udført:",{"$f":"IF(I39>0,IF(I39>10,2,1),0)","v":0}]
[null,"Hvilke forventninger har I til projektet?"]
[null,null,null,null,null,null,null,null,{"$f":"ISTEXT(B4)*1","v":0}]
[]
[]
[null,"Hvilke betænkeligheder har I med hensyn til projektet?"]
[null,null,null,null,null,null,null,null,{"$f":"ISTEXT(B8)*1","v":0}]
[]
[]
[null,"Hvor meget tid vil I bruge pr. person, på arbejdet i gruppen",null,null,null,null,null,null,{"$f":"ISTEXT(C11)*1","v":0}]
[null,"Hvad er jeres ambitionsniveau? (karakterniveau)",null,null,null,null,null,null,{"$f":"ISTEXT(C12)*1","v":0}]
[null,"Hvordan skal beslutninger i gruppen træffes? (Flertal/konsensus/anarki?)",null,null,null,null,null,null,0]
[null,"Har I alle adgang til it og internettet hjemme?",null,null,null,null,null,null,0]
[null,"Hvor vil I gemme fælles data (drev/sky/dropbox m.m.)",null,null,null,null,null,null,0]
[null,"Hvordan skal arbejdet fordeles i gruppen (kvantitativt/kvalitativt)?"]
[null,"Kan gruppen pålægge medlemmerne arbejde?"]
[null,null,null,null,null,null,null,null,{"$f":"ISTEXT(B18)*1","v":0}]
[]
[]
[null,"Hvilke forventninger har I, i forhold til projektet?"]
[null,null,null,null,null,null,null,null,{"$f":"ISTEXT(B22)*1","v":0}]
[]
[]
[null,"Hvilke betænkeligheder har I, i forhold til projektet?"]
[null,null,null,null,null,null,null,null,{"$f":"ISTEXT(B26)*1","v":0}]
[]
[]
[null,"Hvad gør man, hvis man ikke kommer en dag?"]
[null,null,null,null,null,null,null,null,{"$f":"ISTEXT(B30)*1","v":0}]
[]
[]
[null,"Hvad betyder det, hvis der er en i gruppen, der ikke har lavet sit arbejde? "]
[null,null,null,null,null,null,null,null,{"$f":"ISTEXT(B34)*1","v":0}]
[]
[]
[null,"Andre ting, der er vigtigt i forhold til gruppen "]
[null,null,null,null,null,null,null,null,{"$f":"ISTEXT(B38)*1","v":0}]
[null,null,null,null,null,null,null,null,{"$f":"SUM(I4:I38)","v":0}]

{"sheet":"Forretningsmodel","index":78,"n_rows":15,"n_cols":9,"rows_kept":15,"cut":false,"hidden":true,"merged":[[2,1,2,6],[6,1,11,1],[6,2,8,2],[6,3,11,4],[6,5,8,5],[6,6,11,6],[4,3,4,4],[5,3,5,4],[13,1,13,3],[13,4,13,6],[14,1,14,3],[14,4,14,6],[12,1,12,6]]}
[]
[null,null,null,null,null,"Udført:",{"$f":"IF(I15>0,IF(I15>8,2,1),0)","v":0}]
[null,"Udfyld nedenstående 9 områder"]
[]
[null,"Aktør-netværk","Nøgleaktiviteter","Virksomhedens ”tilbud”",null,"Kunderelationer","Målgruppe/kundesegment",null,{"$f":"ISTEXT(B7)*1","v":0}]
[null,"Hvem arbejder virksomheden sammen med","Hvad er virksomhedens arbejdsområde","Hvad tilbyder vi kunden/brugeren:\nværdier, ydelser, prestige  ",null,"Hvordan ”binder” vi kunden ","Hvem er vores kunder",null,{"$f":"ISTEXT(C7)*1","v":0}]
[null,null,null,null,null,null,null,null,{"$f":"ISTEXT(C12)*1","v":0}]
[null,null,null,null,null,null,null,null,{"$f":"ISTEXT(D7)*1","v":0}]
[null,null,null,null,null,null,null,null,{"$f":"ISTEXT(F7)*1","v":0}]
[null,null,"Nøgleressourcer",null,null,"Salgskanaler",null,null,{"$f":"ISTEXT(F12)*1","v":0}]
[null,null,"Hvad råder vi over, som gør os specielle",null,null,"Hvordan når vi ud til kunderne",null,null,{"$f":"ISTEXT(G7)*1","v":0}]
[null,null,null,null,null,null,null,null,{"$f":"ISTEXT(B15)*1","v":0}]
[null,"Omkostningsstruktur ",null,null,null,null,null,null,{"$f":"ISTEXT(E15)*1","v":0}]
[null,"Omkostnings-produktudvikling ",null,null,"Salg og indtægter"]
[null,null,null,null,null,null,null,null,{"$f":"SUM(I5:I14)","v":0}]

{"sheet":"SWOT_analyse","index":79,"n_rows":10,"n_cols":12,"rows_kept":10,"cut":false,"hidden":true,"merged":[[8,3,8,4],[8,5,8,6],[2,1,2,6],[4,1,4,6],[5,3,5,4],[5,5,5,6],[6,3,6,4],[6,5,6,6],[7,3,7,4],[7,5,7,6]]}
[]
[null,null,null,null,null,"Udført:",{"$f":"IF(L10>0,IF(L10>7,2,1),0)","v":0}]
[null,"Udfyld nedenstående 8 områder"]
[]
[null,"Swot den store model"]
[null,null,null,"Styrker ",null,"Svagheder"]
[null,null,null,null,null,null,null,null,null,{"$f":"ISTEXT(C7)*1","v":0},{"$f":"ISTEXT(D7)*1","v":0},{"$f":"ISTEXT(F7)*1","v":0}]
[null,"Muligheder",null,null,null,null,null,null,null,{"$f":"ISTEXT(C8)*1","v":0},{"$f":"ISTEXT(D8)*1","v":0},{"$f":"ISTEXT(F8)*1","v":0}]
[null,"Trusler",null,null,null,null,null,null,null,0,0,0]
[null,null,null,null,null,null,null,null,null,null,null,{"$f":"SUM(J7:L9)","v":0}]